Workbook

Sheet Broker
B7: Residential Affordability Assessment
B9: Application Name | F9: Adviser Name | J9: Date Completed
B11: Product Type | F11: Product Rate
B13: No. of applicants | F13: No. of adults residing in property | J13: No. of dependant children residing in property
D14: =IF(AND(D13=1,H13="2+"),"Number of Adults Higher than Number of Applicants","") -> 
B15: Loan Required
B17: Type of mortgage required
B19: Mortgage required £
B21: Part & Part | D21: Capital & Interest | H21: Interest-Only
B23: Value of property | H23: Loan to Value | J23: =IFERROR(F19/F23,"") -> 
B25: Term required (years) | H25: (Max: 40 yrs C&I/P&P, 30 yrs I/O)
B27: Income
B29: Applicant 1 | D29: Annual Gross Income | H29: Applicant 2 | J29: Annual Gross Income
D30: Reliable Annual Overtime / Bonus | J30: Reliable Annual Overtime / Bonus
B31: Average Net Monthly Income (Inclusive of bonus) | G31: =IF(AND(F29<>"",F31=""),1,0) -> 0 | H31: Average Net Monthly Income (Inclusive of bonus) | M31: =IF(AND(L29<>"",L31=""),1,0) -> 0
D32: Land & Property Income (Gross) | J32: Land & Property Income (Gross)
D33: Land & Property Income (Net) | J33: Land & Property Income (Net)
D34: Other Monthly Income | J34: Other Monthly Income
F35: =IFERROR(F31*(F29/(F29+F30))+(F31*(F30/(F29+F30))*0.5)+(F33*0.5)+(F34*0.5),0) -> 0 | L35: =IFERROR(L31*(L29/(L29+L30))+(L31*(L30/(L29+L30))*0.5)+(L33*0.5)+(L34*0.5),0) -> 0
B36: Applicant 3 | D36: Annual Gross Income | H36: Applicant4 | J36: Annual Gross Income
D37: Reliable Annual Overtime / Bonus | J37: Reliable Annual Overtime / Bonus
B38: Average Net Monthly Income (Inclusive of bonus) | G38: =IF(AND(F36<>"",F38=""),1,0) -> 0 | H38: Average Net Monthly Income (Inclusive of bonus) | M38: =IF(AND(L36<>"",L38=""),1,0) -> 0
D39: Land & Property Income (Gross) | J39: Land & Property Income (Gross)
D40: Land & Property Income (Net) | J40: Land & Property Income (Net)
D41: Other Monthly Income | J41: Other Monthly Income | M41: =SUM(G31,G38,M38,M31) -> 0
F42: =IFERROR(F38*(F36/(F36+F37))+(F38*(F37/(F36+F37))*0.5)+(F40*0.5)+(F41*0.5),0) -> 0 | L42: =IFERROR(L38*(L36/(L36+L37))+(L38*(L37/(L36+L37))*0.5)+(L40*0.5)+(L41*0.5),0) -> 0
B43: Expenditure
B45: Applicant 1 | D45: Loans/HP (Monthly Repayments) | H45: Applicant 2 | J45: Loans/HP (Monthly Repayments)
D46: Credit Card (Total Balances) | J46: Credit Card (Total Balances)
D47: Other Unsecured Monthly Pmts | J47: Other Unsecured Monthly Pmts
D48: School/Nursery Fees | J48: School/Nursery Fees
D49: Other (Monthly Payments) | J49: Other (Monthly Payments)
F50: =F45+(F46*3%)+F47+F48+F49 -> 0 | L50: =L45+(L46*3%)+L47+L48+L49 -> 0
B51: Applicant 3 | D51: Loans/HP (Monthly Repayments) | H51: Applicant 4 | J51: Loans/HP (Monthly Repayments)
D52: Credit Card (Total Balances) | J52: Credit Card (Total Balances)
D53: Other Unsecured Monthly Pmts | J53: Other Unsecured Monthly Pmts
D54: School/Nursery Fees | J54: School/Nursery Fees
D55: Other (Monthly Payments) | J55: Other (Monthly Payments)
F56: =F51+(F52*3%)+F53+F54+F55 -> 0 | L56: =L51+(L52*3%)+L53+L54+L55 -> 0
B57: Affordability Calculation
B59: Total Amount Requested | F59: =' VBS Criteria'!M11 -> 0
B61: Maximum Capital & Interest loan (£) | F61: =IFERROR(' VBS Criteria'!P28,"") ->  | H61: Outcome | J61: =IFERROR( IF(M41>0,"Please enter net income figure", IF($F$59>=F61*1.3,"Fail", IF($F$59>=F61*1.1,"Max Loan Only - refer to Intermediary Team", IF($F$59>=F61*0.85,"Refer to Intermediary Team","Pass")))),"") -> 
B63: Maximum Interest Only loan (£) | F63: =' VBS Criteria'!P36 ->  | H63: Outcome | J63: =IF(F63>F23*0.6,"Interest-only above 60% LTV - refer",IF($F$59>=F63*1.05,"Max Loan Only",IF($F$59>=F63*0.95,"Refer to Intermediary Team","Pass"))) -> 
B65: Maximum Part & Part loan (£) | F65: =' VBS Criteria'!P52 ->  | H65: Outcome | J65: =IF($F$59>=F65*1.1,"Max Loan Only",IF($F$59>=F65*0.95,"Refer to Intermediary Team","Pass")) -> 
B67: Documentation Requirement
B68: Employed | F68: Self-Employed | J68: Bank Statements
B69: =IFERROR(VLOOKUP(' VBS Criteria'!M40,'Guidance Notes'!B35:I38,2,FALSE),"") -> 4 months* (or 3 months worth where pay frequency is less than monthly) If payslip is less than period 4 or bonus/overtime is being used then please provide latest P60 | F69: =IFERROR(VLOOKUP(' VBS Criteria'!M40,'Guidance Notes'!B35:I38,7,FALSE),"") -> Latest 2 years Tax calculation summaries HMRC Tax year overviews and Latest years accounts 3 months business bank statements | J69: =IFERROR(VLOOKUP(' VBS Criteria'!M40,'Guidance Notes'!B35:I38,8,FALSE),"") -> 3 months personal main bank statements for all applicants including joint accounts
B72: Guidance Notes
B74: Income
B75: Annual Gross Income | E75: Employed - Basic Pay only Self Employed - Dividends or Net Profit (2yr Avg) plus salary - Retired - Annual Gross Pension Income
B76: Annual Overtime / Bonus | E76: Employed Only - Annual value of bonus, overtime, car allowance or other enhancements received - P60 will be required to support reliability of income
B77: Net Monthly Income | E77: Employed/Retired - Monthly total income after tax (including bonus/overtime etc) Self-Employed - Declared Gross income after tax
B78: Land & Property Income (Gross) | E78: Please enter the applicants profit from property rental income (minus mortgage payments and not based solely on SA302 computation)
B79: Land & Property Income (Net) | E79: Gross Amount delared minus tax
B80: Other Income | E80: Benefit income (see policy for acceptable benefits) - Any other income types, please discuss with Intermediary Sales Team
B81: Expenditure
B82: Loans/HP (Monthly Repayments) | E82: Cumulative monthly payments per applicant
B83: Credit Card (Balances) | E83: Total value of all credit cards held per applicant excluding regularly cleared credit cards
B84: Other Unsecured Monthly Pmts | E84: Catalogues, credit agreements with over 3 months to run,
B85: School/Nursery Fees | E85: Fees to be stated on a monthly basis. Please advise the Intermediary Sales Team if these fees are due to end.
B86: Other (Monthly Payments) | E86: Example - Service charges or any regular bon-essential monthly expenditure items over £100pm
B87: Other
B88: Product Type | E88: 5 Year Fixed and Discounted products are assessed against a lower stressed rate. This may change the maximum loan requested
B89: Product Rate | E89: The product rate is required where a 5 year product has been selected. This allows us to assess affordability accurately
B90: Affordability Assessment | E90: The assessment is based on ONS figures. Please advise the Intermediary Sales Team if you believe expenditure to be higher than average.
B91: =CONCATENATE("Stress Rate Used - ",' VBS Criteria'!C43) -> Stress Rate Used - 8.7 | C91: %
B94: Affordability Overview
B96: Repayment Type | F96: =' VBS Criteria'!M15 -> 0 | J96: Gross Income Used | L96: =' VBS Criteria'!M21 -> 0
B97: Maximum Affordable Loan | F97: =IF(F96="Capital & Interest",' VBS Criteria'!P21,IF(F96="Interest Only",' VBS Criteria'!P31,IF(F96="Part & Part",' VBS Criteria'!P46,""))) ->  | J97: Net Monthly Income Used | L97: =' VBS Criteria'!M22 -> 0
B98: Maximum Affordable Loan Multiple | F98: =IFERROR(F97/' VBS Criteria'!M21,"") ->  | J98: ONS Total | L98: =' VBS Criteria'!M24 -> 
B99: 4.5x income | F99: =IF(F96="Capital & Interest",' VBS Criteria'!P23,IF(F96="Interest Only",' VBS Criteria'!P33,IF(F96="Part & Part",' VBS Criteria'!P48,""))) ->  | J99: Council Tax | L99: =' VBS Criteria'!M25 -> 
B100: 5x Income | F100: =IF(F96="Capital & Interest",' VBS Criteria'!P24,IF(F96="Interest Only","N/A",IF(F96="Part & Part",' VBS Criteria'!P49,""))) ->  | J100: Commitments and Declared Expenditure | L100: =' VBS Criteria'!M26 -> 0
B101: 90% of affordable Loan (>4.5x) | F101: =IF(F96="Capital & Interest",' VBS Criteria'!P22,IF(F96="Interest Only","N/A",IF(F96="Part & Part",' VBS Criteria'!P47,""))) ->  | J101: Total Expenditure | L101: =' VBS Criteria'!M27 -> 
B103: Maximum Loan Available | F103: =IF(F96="Capital & Interest",' VBS Criteria'!P28,IF(F96="Interest Only",' VBS Criteria'!P36,IF(F96="Part & Part",' VBS Criteria'!P52,""))) ->  | J103: Amount Available for Mortgage | L103: =' VBS Criteria'!M29 -> 
J105: Payment at Stressed rate | L105: =IF(F96="Capital & Interest",' VBS Criteria'!P25,IF(F96="Interest Only",' VBS Criteria'!P34,IF(F96="Part & Part",' VBS Criteria'!P44,""))) -> 
J107: Affordability | L107: =L103-L105 -> 

Sheet PEL (hidden)
A1: PEL
A3: Proxy Expected Loss
B5: LTV | C5: PEL
A6: BTL | C6: 0.007
A7: Holiday BTL | C7: 0.007
A8: Mainstream | B8: 80% to 90% | C8: 0.01
A9: Mainstream | B9: >90% | C9: 0.011
A10: Mainstream | B10: <80% | C10: 0.007
A11: Mainstream | B11: <60% | C11: 0.0055
A13: LTV Bands | C13: Description
A14: 0 | B14: 0.6 | C14: Less than 60%
A15: 0.6000001 | B15: 0.7 | C15: 60 % <70%
A16: 0.7000001 | B16: 0.8 | C16: 70% <80%
A17: 0.8000001 | B17: 0.9 | C17: 80% <90%
A18: 0.9000001 | B18: 0.95 | C18: 90% <95%
A19: 0.950000001 | B19: 1 | C19: ≥95%
A21: LEL Assumptions
A23: PD Scalar | B23: Current
A24: Resi | B24: 2.5
A25: BTL | B25: 2.7
A26: Floors
A27: PD | B27: 0.0005
A28: LGD | B28: 0.05 | C28: 5% on all loans | E28: On loans >50% LTV
A29: Prob (Possession │Default) | B29: 0.7
A30: Haircut | B30: 0.25
A31: Sale Cost % | B31: 0.1
A32: Sale Costs - Cap | B32: 30000

Sheet 1 - Main (hidden)
F1: Residential Affordability Calculator | L1: Mortgage Affordability Calculator - 20.0 - February 2025
C2: Borrower name(s) | K2: Prepared by:
C4: Application number | K4: Date prepared:
C6: Product Type
C8: Product Rate
C10: Type of mortgage required | H10: =IF(F12="","",IFERROR(IF(AND(OR(F10='Drop down'!C3,F10='Drop down'!#REF!),H16>60),"WARNING LOAN EXCEEDS 60% LTV",""),"")) -> 
C12: Mortgage required £
C14: Part & Part Capital & Interest | H14: Interest-Only
C16: Value of property | H16: =IFERROR(((' VBS Criteria'!G11)/F16)*100,"") ->  | I16: %
C18: Term required (years) (Max: 40 yrs C&I, 30 yrs I/O) | H18: =IF(AND(OR(F10='Drop down'!C3),F18>30),"WARNING LOAN EXCEEDS MAX 30 YEAR TERM (N/A FOR RIO)","") -> 
C20: Number of applicants
C22: Household - Number of adults residing in property | H22: =IF(AND(F20=1,F22="2+"),"Adults in property higher than applicants - please refer","") -> 
C24: Number of dependant children residing in property | F24: 0
F26: Applicant 1 | H26: Applicant 2 | J26: Applicant 3 | L26: Applicant 4
C27: Credit Score
C29: Total Gross Annual Income | F29: ='2 - Income'!H30 -> 0 | H29: ='2 - Income'!P30 -> 0 | J29: ='2 - Income'!H62 -> 0 | L29: ='2 - Income'!P62 -> 0
C31: Net Monthly income | F31: ='2 - Income'!H31/12 -> 0 | H31: ='2 - Income'!P31/12 -> 0 | J31: ='2 - Income'!H63/12 -> 0 | L31: ='2 - Income'!P63/12 -> 0
C32: Monthly committed expenditure:
C33: Unsecured Credit Commitments | F33: ='3 - Debt'!M4 -> 0 | H33: ='3 - Debt'!M5 -> 0 | J33: ='3 - Debt'!M6 -> 0 | L33: ='3 - Debt'!M7 -> 0
C35: Essential expenditure & basic standard of living costs: | E35: ONS Category | F35: Amount Used | N35: Affordability based on | P35: ONS | Q35: Higher Amount | R35: Override
C36: Council tax | E36: n/a | F36: ='4 - Expenditure'!J4 -> 0 | N36: ='4 - Expenditure'!K4 ->  | Q36: =F36 -> 0
C37: Ground rent / service charge | E37: 4 | F37: ='4 - Expenditure'!G5 -> 0 | N37: ='4 - Expenditure'!K5 ->  | Q37: =F37 -> 0
C38: Home Fuel & Utility Bills | E38: 4 | F38: ='4 - Expenditure'!G6 -> 0 | N38: ='4 - Expenditure'!K6 ->  | P38: =IFERROR(HLOOKUP(' VBS Criteria'!G19,'ONS Update'!$C$5:$J$17,5,FALSE),"") ->  | Q38: =IF(R38>0,R38,(IF(P38>(F38),P38,F38))) ->  | R38: 0 | S38: =IF(AND(F38<P38,$F$12>$H$66),1,0) -> 0
C39: Food, groceries, toiletries and cleaning products | E39: 1, 5 and 12 | F39: ='4 - Expenditure'!G7 -> 0 | N39: ='4 - Expenditure'!K7 ->  | P39: =IFERROR(HLOOKUP(' VBS Criteria'!G19,'ONS Update'!$C$5:$J$17,2,FALSE)+(HLOOKUP(' VBS Criteria'!G19,'ONS Update'!$C$5:$J$17,6,FALSE)*50%)+(HLOOKUP(' VBS Criteria'!G19,'ONS Update'!$C$5:$J$17,13,FALSE)*31%),"") ->  | Q39: =IF((J39+F39)>P39,(J39+F39),P39) -> 
C40: Essential Travel Costs (exclude car insurance) | E40: 7 | F40: ='4 - Expenditure'!G8 -> 0 | N40: ='4 - Expenditure'!K8 ->  | P40: =IFERROR(HLOOKUP(' VBS Criteria'!G19,'ONS Update'!$C$5:$J$17,8,FALSE),"") ->  | Q40: =IF(R40>0, R40,(IF(P40>(F40+J40),P40,F40+J40))) ->  | R40: 0 | S40: =IF(AND(F40<P40,$F$12>$H$66),1,0) -> 0
C41: Essential Insurances (include car insurance if applicable) | E41: 12 | F41: ='4 - Expenditure'!G9 -> 0 | N41: ='4 - Expenditure'!K9 ->  | P41: =IFERROR(HLOOKUP(' VBS Criteria'!G19,'ONS Update'!$C$5:$J$17,13,FALSE)*69%,"") ->  | Q41: =IF(R41>0, R41,(IF(P41>(F41+J41),P41,F41+J41))) ->  | R41: 0 | S41: =IF(AND(F41<P41,$F$12>$H$66),1,0) -> 0
C42: Telephones / Internet / TV and Satellite costs | E42: 8 & 9 | F42: ='4 - Expenditure'!G10 -> 0 | N42: ='4 - Expenditure'!K10 ->  | P42: =IFERROR(HLOOKUP(' VBS Criteria'!G19,'ONS Update'!$C$5:$J$17,9,FALSE)+(HLOOKUP(' VBS Criteria'!G19,'ONS Update'!$C$5:$J$17,10,FALSE)*35%),"") ->  | Q42: =IF(R42>0, R42,(IF(P42>(F42+J42),P42,F42+J42))) ->  | R42: 0 | S42: =IF(AND(F42<P42,$F$12>$H$66),1,0) -> 0
C43: Childcare (include School Fees if applicable) | F43: ='4 - Expenditure'!G11 -> 0 | N43: ='4 - Expenditure'!K11 ->  | Q43: =F43+J43 -> 0
C44: Clothing and Footwear | E44: 3 | F44: ='4 - Expenditure'!G12 -> 0 | N44: ='4 - Expenditure'!K12 ->  | P44: =IFERROR(HLOOKUP(' VBS Criteria'!G19,'ONS Update'!$C$5:$J$17,4,FALSE),"") ->  | Q44: =IF((J44+F44)>P44,(J44+F44),P44) -> 
C45: Other Noted Expenditure (from expenditure tab) | F45: ='4 - Expenditure'!J24 -> 0 | N45: =IF(F45>0,"See tab 4","") ->  | Q45: =F45 -> 0
C46: Higher of ONS Miscellaneous Expenditure or 5% of Income | F46: =IF(SUM(F31:L31)=0,0,MIN((' VBS Criteria'!G21*' VBS Criteria'!B4),' VBS Criteria'!J51)) -> 0 | N46: =IFERROR(IF(F46>P46,"5% of Income","ONS"),"") -> ONS | P46: =IFERROR(HLOOKUP(' VBS Criteria'!G19,'ONS Update'!$C$5:$J$17,3,FALSE)+(HLOOKUP(' VBS Criteria'!G19,'ONS Update'!$C$5:$J$17,6,FALSE)*50%)+HLOOKUP(' VBS Criteria'!G19,'ONS Update'!$C$5:$J$17,7,FALSE)+(HLOOKUP(' VBS Criteria'!G19,'ONS Update'!$C$5:$J$17,10,FALSE)*65%)+HLOOKUP(' VBS Criteria'!G19,'ONS Update'!$C$5:$J$17,11,FALSE),"") ->  | Q46: =IF(J46+F46>P46,F46,P46) -> 
D49: Affordability Overview
D51: Total Net Income | F51: =' VBS Criteria'!G21 -> 0 | H51: Repayment Type | L51: =' VBS Criteria'!G15 -> 0
D52: Essential Expenditure | F52: =SUM(Q36:Q46) -> 0 | H52: Maximum Affordable Loan | L52: =IF(' VBS Criteria'!G15="Capital & Interest",' VBS Criteria'!J11,IF(' VBS Criteria'!G15="Interest Only",' VBS Criteria'!J22,IF(' VBS Criteria'!G15="Part & Part",' VBS Criteria'!J38,""))) -> 
D53: Unsecured Credit Commitments | F53: =SUM(F33,H33,J33,L33) -> 0 | H53: Maximum Affordable Loan Multiple | L53: =IFERROR(L52/' VBS Criteria'!G20,"") -> 
D54: Expenditure Total | F54: =SUM(F52:F53) -> 0 | H54: 4.5x income | L54: =IF(' VBS Criteria'!G15="Capital & Interest",' VBS Criteria'!J14,IF(' VBS Criteria'!G15="Interest Only",' VBS Criteria'!J25,IF(' VBS Criteria'!G15="Part & Part",' VBS Criteria'!J40,""))) -> 
H55: 5x Income | L55: =IF(' VBS Criteria'!G15="Capital & Interest",' VBS Criteria'!J15,IF(' VBS Criteria'!G15="Interest Only","N/A",IF(' VBS Criteria'!G15="Part & Part",' VBS Criteria'!J41,""))) -> 
D56: Income available for mortgage repayment | F56: =' VBS Criteria'!G28 -> 0 | H56: =IF(' VBS Criteria'!B32<>"Standard","85% of Maximum affordable loan","90% of affordable Loan (>4.5x)") -> 90% of affordable Loan (>4.5x) | L56: =IF(' VBS Criteria'!G15="Capital & Interest",' VBS Criteria'!J18,IF(' VBS Criteria'!G15="Interest Only","N/A",IF(' VBS Criteria'!G15="Part & Part",' VBS Criteria'!J43,""))) -> 
D57: Stressed Mortgage Payment | F57: =IFERROR(IF(AND(' VBS Criteria'!G22="No",' VBS Criteria'!G23="No"),' VBS Criteria'!J16,IF(' VBS Criteria'!G22="Yes",' VBS Criteria'!J26,IF(' VBS Criteria'!G23="Yes",' VBS Criteria'!J36,""))),0) -> 0
D58: Surplus Income Against Stress | F58: =F56-F57 -> 0 | H58: Maximum Loan Available | L58: =IF(' VBS Criteria'!G15="Capital & Interest",' VBS Criteria'!J19,IF(' VBS Criteria'!G15="Interest Only",' VBS Criteria'!J28,IF(' VBS Criteria'!G15="Part & Part",' VBS Criteria'!J44,""))) -> 
D60: Mortgage Payment - Product Rate | F60: =IFERROR(IF(AND(' VBS Criteria'!G22="No",' VBS Criteria'!G23="No"),' VBS Criteria'!J47,IF(' VBS Criteria'!G22="Yes",' VBS Criteria'!J48,IF(' VBS Criteria'!G23="Yes",' VBS Criteria'!J49,""))),0) -> 0 | H60: Loan as % of Max Affordable Loan | L60: =IFERROR(IF(L58<J66,L58,J66)/L52,"") ->  | N60: Check 3.7.1 of Standard Residential Core Criteria for restrictions on use
D61: Surplus Income Against Product Rate | F61: =F56-F60 -> 0 | N61: of Max Affordable Loan dependent on the Stressed Rate used.
D62: PEL Trigger | F62: =IF(F27="","",IFERROR(' VBS Criteria'!G63,"")) -> 
C64: Affordability Outcome (Subject to Underwriting)
H65: Max Loan | J65: Loan Requested | L65: Decision
C66: Maximum Capital & Interest loan based on data input (£) | H66: =' VBS Criteria'!J19 -> 0 | J66: =' VBS Criteria'!G11 -> 0 | L66: =IF(J66=0,"",IFERROR(IF(J66>=H66*1.3,"Fail",IF(J66>=H66*1.1,"Max Loan Only - refer to Intermediary Team",IF(J66>=H66*0.95,"Refer to Intermediary Team","Pass"))),"")) -> 
C68: Maximum Interest Only loan based on data input (£) | H68: =' VBS Criteria'!J28 -> 0 | J68: =' VBS Criteria'!G11 -> 0 | L68: =IF(J68=0,"",IFERROR(IF(J68>=H68*1.3,"Fail",IF(J68>=H68*1.1,"Max Loan Only - refer to Intermediary Team",IF(J68>=H68*0.95,"Refer to Intermediary Team","Pass"))),"")) -> 
C70: Maximum Part and Part loan based on data input (£) | H70: =' VBS Criteria'!J44 -> 0 | J70: =' VBS Criteria'!G11 -> 0 | L70: =IF(J70=0,"",IFERROR(IF(J70>=H70*1.3,"Fail",IF(J70>=H70*1.1,"Max Loan Only - refer to Intermediary Team",IF(J70>=H70*0.95,"Refer to Intermediary Team","Pass"))),"")) -> 
D74: Income multiple based on mortgage required (for info) | H74: =IFERROR(MAX(F12,SUM(F14,K14))/(F29+H29+J29+L29),"") ->  | J74: =IFERROR(IF(OR(AND(F22=1,H74>4.5),AND(F22>1,H74>4)),"High income multiple",""),"") ->  | N74: =CONCATENATE("Stress Rate Used - ",' VBS Criteria'!B43) -> Stress Rate Used - 8.7 | O74: %
D76: Capital & Interest
D77: requested loan as % of max affordable C&I loan | H77: =IFERROR(ROUNDUP(' VBS Criteria'!G11/' VBS Criteria'!J11*100,1),"") ->  | I77: %
D78: Surplus income after stressed C&I mortgage repayment(£) and (%) | H78: =IFERROR(' VBS Criteria'!G28-' VBS Criteria'!J16,"") ->  | J78: =IFERROR((' VBS Criteria'!$G$28-' VBS Criteria'!$J$16)/' VBS Criteria'!$G$21,"") -> 
D80: Interest Only
D81: requested loan as % of max affordable I/O loan | H81: =IFERROR(ROUNDUP(' VBS Criteria'!G11/(' VBS Criteria'!J22)*100,1),"") ->  | I81: %
D82: Surplus income after stressed I/O mortgage repayment(£) and (%) | H82: =' VBS Criteria'!G28-' VBS Criteria'!J26 -> 0 | J82: =IFERROR((' VBS Criteria'!$G$28-' VBS Criteria'!$J$26)/' VBS Criteria'!$G$21,"") -> 
D84: Part & Part
D85: requested loan as % of max affordable I/O loan | H85: =IFERROR(ROUNDUP(' VBS Criteria'!G11/(' VBS Criteria'!J24)*100,1),"") ->  | I85: %
D86: Surplus income after stressed I/O mortgage repayment(£) and (%) | H86: =' VBS Criteria'!G28-' VBS Criteria'!J36 ->  | J86: =IFERROR((' VBS Criteria'!$G$28-' VBS Criteria'!J36)/' VBS Criteria'!$G$21,"") -> 
C88: Documentary evidence level - | F88: =IFERROR(' VBS Criteria'!G42,"") ->  | H88: refer to guidance notes for details of evidence requirements
C94: Level | D94: Income evidence requirements | O94: Additional evidence requirements
D95: Employed | I95: Self-employed | M95: Retired
C96: 1 | D96: 1 month* (or 1 months worth where pay frequency is less than monthly) recent payslip which must show a YTD figure including more than 4 months salary, where this is not possible an additional payslip meeting this requirement or P60 | I96: Latest 2 years Tax calculation summaries supported by the HMRC Tax year overviews and latest years accounts. | M96: Pension statement or 1 month pension advice slip (dated within the last 3months) Where >3 months old an additional Bank Statement showing pension credit | O96: None
C97: 2 | D97: 2 months* (or 2 months worth where pay frequency is less than monthly) recent payslip which must show a YTD figure including more than 4 months salary, where this is not possible an additional payslip meeting this requirement or P60
C98: 3 | D98: 3 months* (or 3 months worth where pay frequency is less than monthly) recent payslip which must show a YTD figure including more than 4 months salary, where this is not possible an additional payslip meeting this requirement or P60 | M98: Pension Statement dated within the last 3 months & P60, Where statement >3 months main Bank Statements must show pension credit | O98: 1 months personal main bank statement
C99: 4 | I99: Above plus 3 months business bank statements | O99: 3 months personal main bank statements
C100: *Note - Where Basic Salary fluctuates each month or additional income (e.g. Bonuses / Overtime/ Allowances) is used additional evidence may be requested e.g. P60.

Sheet Drop down (hidden)
A1: Term of mort | C1: Type of mort | E1: Dependants | F1: calculation | G1: Number of applicants | H1: Calculation | I1: Stressed Rate | J1: Source | L1: Decision | M1: Mortgage Type | O1: Matrix
A2: 1 | C2: Capital & Interest | E2: 0 | F2: 0 | G2: 1 | H2: 1 | I2: Standard | J2: Adviser Input | L2: Pass | M2: Residential | O2: LTV | P2: =90>=95 | Q2: 2 | R2: 3 | S2: 4 | T2: 4
A3: 2 | C3: Interest Only | E3: 1 | F3: 10 | G3: 2+ | H3: 2 | I3: 5-Year Fixed | J3: Bank Statement | L3: Fail | M3: Self-Build | P3: =80>90 | Q3: 2 | R3: 3 | S3: 4 | T3: 4
A4: 3 | C4: Part & Part | E4: 2 | F4: 20 | I4: 5-Year Discount | J4: Underwriter Input | L4: Marginal Pass | P4: =60>80 | Q4: 1 | R4: 2 | S4: 3 | T4: 4
A5: 4 | E5: 3+ | F5: 30 | L5: Refer | P5: <60 | Q5: 1 | R5: 2 | S5: 3 | T5: 4
A6: 5 | C6: Source | Q6: <75 | R6: 75>=90 | S6: 90>=95 | T6: 95>=100 | U6: % of max affordabe loan used
A7: 6 | C7: Broker | O7: Calculations
A8: 7 | C8: Direct | O8: LTV | U8: LTV
A9: 8 | O9: =90>=95 | P9: 3 | Q9: =Q$13*$P9 -> 3 | R9: =R$13*$P9 -> 15 | S9: 36 | T9: 75
A10: 9 | O10: =80>90 | P10: 2.5 | Q10: 2.5 | R10: 12.5 | S10: 30 | T10: 62.5
A11: 10 | O11: =60>80 | P11: 2 | Q11: 2 | R11: 10 | S11: 24 | T11: 50
A12: 11 | O12: <60 | P12: 1 | Q12: =Q$13*$P12 -> 1 | R12: =R$13*$P12 -> 5 | S12: =S$13*$P12 -> 12 | T12: =T$13*$P12 -> 25
A13: 12 | Q13: 1 | R13: 5 | S13: 12 | T13: 25
A14: 13 | Q14: <75 | R14: 75>=90 | S14: 90>=95 | T14: 95>=100 | U14: % of max affordability used
A15: 14
A16: 15 | O16: LTV | Q16: Affordability | S16: Decision | T16: Upper LTI
A17: 16 | O17: 0 | P17: 1 | Q17: 0 | R17: 1 | S17: Pass | T17: Refer to Underwriter
A18: 17 | O18: 60 | P18: 2 | Q18: 75 | R18: 5 | S18: Pass | T18: Refer to Underwriter
A19: 18 | O19: 80 | P19: 2.5 | Q19: 90 | R19: 12 | S19: Pass | T19: Fail
A20: 19 | O20: 90 | P20: 3 | Q20: 95 | R20: 25 | S20: Marginal Pass | T20: Fail
A21: 20 | O21: 100 | Q21: 100.01 | R21: 1000 | S21: Fail | T21: Fail
A22: 21
A23: 22 | P23: Total of Affordability x LTV
A24: 23 | Q24: level
A25: 24 | P25: 0 | Q25: Level 1
A26: 25 | P26: 2 | Q26: Level 2
A27: 26 | P27: 10 | Q27: Level 3
A28: 27 | P28: 24 | Q28: Level 4
A29: 28
A30: 29
A31: 30
A32: 31
A33: 32 | O33: test
A34: 33 | O34: LTV | P34: 59 | Q34: =VLOOKUP(P34,O17:P21,2,TRUE) -> 1
A35: 34 | O35: Affordability | P35: 74.5 | Q35: =VLOOKUP(P35,Q17:S21,2,TRUE) -> 1 | R35: =VLOOKUP(P35,Q17:S21,3,TRUE) -> Pass
A36: 35 | Q36: =Q34*Q35 -> 1 | R36: =VLOOKUP(Q36,P25:Q28,2,TRUE) -> Level 1
A37: 36
A38: 37
A39: 38
A40: 39
A41: 40

Sheet Council Tax Bands UK (hidden)
A1: 2023/4 15% buffer | B1: Rates Accessed here | L1: 1991 | N1: Adjusted | P1: Average | Q1: Mth Avg | T1: 2023/4 Actual
B2: Band A | C2: Band B | D2: Band C | E2: Band D | F2: Band E | G2: Band F | H2: Band G | I2: Band H | K2: Band A | L2: 0 | M2: 40000 | N2: 0 | O2: 175000 | P2: =AVERAGE(B:B) -> 1594.801313 | Q2: =CEILING(P2/12,1) -> 133 | U2: Band A | V2: Band B | W2: Band C | X2: Band D | Y2: Band E | Z2: Band F | AA2: Band G | AB2: Band H
A3: Adur | B3: =U3*115% -> 1699.999 | C3: =V3*115% -> 1983.3245 | D3: 2266.6615 | E3: 2549.9985 | F3: 3116.661 | G3: 3683.335 | H3: 4249.9975 | I3: 5099.997 | K3: Band B | L3: =M2+1 -> 40001 | M3: 52000 | N3: =O2+1 -> 175001 | O3: 225000 | P3: =AVERAGE(C:C) -> 1860.599997 | Q3: =CEILING(P3/12,1) -> 156 | T3: Adur | U3: 1478.26 | V3: 1724.63 | W3: 1971.01 | X3: 2217.39 | Y3: 2710.14 | Z3: 3202.9 | AA3: 3695.65 | AB3: 4434.78
A4: Allerdale | B4: =U4*115% -> 1599.5235 | C4: =V4*115% -> 1866.105 | D4: =W4*115% -> 2132.6865 | E4: =X4*115% -> 2399.2795 | F4: =Y4*115% -> 2932.454 | G4: =Z4*115% -> 3465.6285 | H4: =AA4*115% -> 3998.803 | I4: =AB4*115% -> 4798.559 | K4: Band C | L4: =M3+1 -> 52001 | M4: 68000 | N4: =O3+1 -> 225001 | O4: 300000 | P4: =AVERAGE(D:D) -> 2126.398836 | Q4: 178 | T4: Allerdale | U4: 1390.89 | V4: 1622.7 | W4: 1854.51 | X4: 2086.33 | Y4: 2549.96 | Z4: 3013.59 | AA4: 3477.22 | AB4: 4172.66
A5: Amber Valley | B5: 1654.6775 | C5: 1930.459 | D5: 2206.2405 | E5: 2482.022 | F5: 3033.585 | G5: 3585.1365 | H5: 4136.6995 | I5: 4964.044 | K5: Band D | L5: =M4+1 -> 68001 | M5: 88000 | N5: =O4+1 -> 300001 | O5: 385000 | P5: =AVERAGE(E:E) -> 2392.201872 | Q5: 200 | T5: Amber Valley | U5: 1438.85 | V5: 1678.66 | W5: 1918.47 | X5: 2158.28 | Y5: 2637.9 | Z5: 3117.51 | AA5: 3597.13 | AB5: 4316.56
A6: Arun | B6: 1758.4535 | C6: 2051.5195 | D6: 2344.597 | E6: 2637.6745 | F6: 3223.8295 | G6: 3809.973 | H6: 4396.128 | I6: 5275.349 | K6: Band E | L6: 88001 | M6: 120000 | N6: 385001 | O6: 525000 | P6: =AVERAGE(F:F) -> 2923.802348 | Q6: 244 | T6: Arun | U6: 1529.09 | V6: 1783.93 | W6: 2038.78 | X6: 2293.63 | Y6: 2803.33 | Z6: 3313.02 | AA6: 3822.72 | AB6: 4587.26
A7: Ashfield | B7: 1610.5635 | C7: 1878.985 | D7: 2147.4065 | E7: 2415.8395 | F7: 2952.694 | G7: 3489.5485 | H7: 4026.403 | I7: 4831.679 | K7: Band F | L7: 120001 | M7: 160000 | N7: 525001 | O7: 700000 | P7: =AVERAGE(G:G) -> 3455.401659 | Q7: 288 | T7: Ashfield | U7: 1400.49 | V7: 1633.9 | W7: 1867.31 | X7: 2100.73 | Y7: 2567.56 | Z7: 3034.39 | AA7: 3501.22 | AB7: 4201.46
A8: Ashford | B8: 1559.9635 | C8: 1819.9555 | D8: 2079.959 | E8: 2339.951 | F8: 2859.935 | G8: 3379.9305 | H8: 3899.9145 | I8: 4679.902 | K8: Band G | L8: 160001 | M8: 320000 | N8: 700001 | O8: 1400000 | P8: =AVERAGE(H:H) -> 3987.003184 | Q8: 333 | T8: Ashford | U8: 1356.49 | V8: 1582.57 | W8: 1808.66 | X8: 2034.74 | Y8: 2486.9 | Z8: 2939.07 | AA8: 3391.23 | AB8: 4069.48
A9: Babergh | B9: 1451.0815 | C9: 1692.9265 | D9: 1934.7715 | E9: 2176.6165 | F9: 2660.3065 | G9: 3143.9965 | H9: 3627.698 | I9: 4353.233 | K9: Band H | L9: 320001 | N9: 1400001 | P9: =AVERAGE(I:I) -> 4784.403743 | Q9: 399 | T9: Babergh | U9: 1261.81 | V9: 1472.11 | W9: 1682.41 | X9: 1892.71 | Y9: 2313.31 | Z9: 2733.91 | AA9: 3154.52 | AB9: 3785.42
A10: Barking & Dagenham | B10: 1407.7265 | C10: 1642.3495 | D10: 1876.9725 | E10: 2111.5955 | F10: 2580.8415 | G10: 3050.076 | H10: 3519.322 | I10: 4223.191 | T10: Barking & Dagenham | U10: 1224.11 | V10: 1428.13 | W10: 1632.15 | X10: 1836.17 | Y10: 2244.21 | Z10: 2652.24 | AA10: 3060.28 | AB10: 3672.34
A11: Barnet | B11: 1558.7445 | C11: 1818.541 | D11: 2078.326 | E11: 2338.1225 | F11: 2857.704 | G11: 3377.2855 | H11: 3896.867 | I11: 4676.245 | T11: Barnet | U11: 1355.43 | V11: 1581.34 | W11: 1807.24 | X11: 2033.15 | Y11: 2484.96 | Z11: 2936.77 | AA11: 3388.58 | AB11: 4066.3
A12: Barnsley | B12: 1581.618 | C12: 1845.221 | D12: 2108.824 | E12: 2372.427 | F12: 2899.633 | G12: 3426.839 | H12: 3954.045 | I12: 4744.854 | T12: Barnsley | U12: 1375.32 | V12: 1604.54 | W12: 1833.76 | X12: 2062.98 | Y12: 2521.42 | Z12: 2979.86 | AA12: 3438.3 | AB12: 4125.96
A13: Barrow-in-Furness | B13: 1498.013 | C13: 1747.678 | D13: 1997.343 | E13: 2247.0195 | F13: 2746.361 | G13: 3245.691 | H13: 3745.0325 | I13: 4494.039 | T13: Barrow-in-Furness | U13: 1302.62 | V13: 1519.72 | W13: 1736.82 | X13: 1953.93 | Y13: 2388.14 | Z13: 2822.34 | AA13: 3256.55 | AB13: 3907.86
A14: Basildon | B14: 1776.3705 | C14: 2072.438 | D14: 2368.494 | E14: 2664.5615 | F14: 3256.685 | G14: 3848.8085 | H14: 4440.932 | I14: 5329.123 | T14: Basildon | U14: 1544.67 | V14: 1802.12 | W14: 2059.56 | X14: 2317.01 | Y14: 2831.9 | Z14: 3346.79 | AA14: 3861.68 | AB14: 4634.02
A15: Basingstoke & Deane | B15: 1573.269 | C15: 1835.4805 | D15: 2097.692 | E15: 2359.9035 | F15: 2884.3265 | G15: 3408.7495 | H15: 3933.1725 | I15: 4719.807 | T15: Basingstoke & Deane | U15: 1368.06 | V15: 1596.07 | W15: 1824.08 | X15: 2052.09 | Y15: 2508.11 | Z15: 2964.13 | AA15: 3420.15 | AB15: 4104.18
A16: Bassetlaw | B16: 1634.8285 | C16: 1907.298 | D16: 2179.779 | E16: 2452.2485 | F16: 2997.1875 | G16: 3542.138 | H16: 4087.077 | I16: 4904.497 | T16: Bassetlaw | U16: 1421.59 | V16: 1658.52 | W16: 1895.46 | X16: 2132.39 | Y16: 2606.25 | Z16: 3080.12 | AA16: 3553.98 | AB16: 4264.78
A17: Bath & North East Somerset | B17: 1562.2865 | C17: 1822.658 | D17: 2083.041 | E17: 2343.424 | F17: 2864.19 | G17: 3384.9445 | H17: 3905.7105 | I17: 4686.848 | T17: Bath & North East Somerset | U17: 1358.51 | V17: 1584.92 | W17: 1811.34 | X17: 2037.76 | Y17: 2490.6 | Z17: 2943.43 | AA17: 3396.27 | AB17: 4075.52
A18: Bedford | B18: 1466.6525 | C18: 1711.085 | D18: 1955.529 | E18: 2199.973 | F18: 2688.861 | G18: 3177.7375 | H18: 3666.6255 | I18: 4399.946 | T18: Bedford | U18: 1275.35 | V18: 1487.9 | W18: 1700.46 | X18: 1913.02 | Y18: 2338.14 | Z18: 2763.25 | AA18: 3188.37 | AB18: 3826.04
A19: Bexley | B19: 1674.584 | C19: 1953.6775 | D19: 2232.771 | E19: 2511.876 | F19: 3070.0745 | G19: 3628.2615 | H19: 4186.46 | I19: 5023.752 | T19: Bexley | U19: 1456.16 | V19: 1698.85 | W19: 1941.54 | X19: 2184.24 | Y19: 2669.63 | Z19: 3155.01 | AA19: 3640.4 | AB19: 4368.48
A20: Birmingham | B20: 1625.9965 | C20: 1896.994 | D20: 2168.003 | E20: 2439.0005 | F20: 2980.9955 | G20: 3523.002 | H20: 4064.997 | I20: 4878.001 | T20: Birmingham | U20: 1413.91 | V20: 1649.56 | W20: 1885.22 | X20: 2120.87 | Y20: 2592.17 | Z20: 3063.48 | AA20: 3534.78 | AB20: 4241.74
A21: Blaby | B21: 1664.395 | C21: 1941.7865 | D21: 2219.1895 | E21: 2496.5925 | F21: 3051.387 | G21: 3606.193 | H21: 4160.9875 | I21: 4993.185 | T21: Blaby | U21: 1447.3 | V21: 1688.51 | W21: 1929.73 | X21: 2170.95 | Y21: 2653.38 | Z21: 3135.82 | AA21: 3618.25 | AB21: 4341.9
A22: Blackburn with Darwen | B22: 1687.211 | C22: 1968.409 | D22: 2249.607 | E22: 2530.8165 | F22: 3093.224 | G22: 3655.62 | H22: 4218.0275 | I22: 5061.633 | T22: Blackburn with Darwen | U22: 1467.14 | V22: 1711.66 | W22: 1956.18 | X22: 2200.71 | Y22: 2689.76 | Z22: 3178.8 | AA22: 3667.85 | AB22: 4401.42
A23: Blackpool | B23: 1567.5535 | C23: 1828.8105 | D23: 2090.0675 | E23: 2351.3245 | F23: 2873.8385 | G23: 3396.3525 | H23: 3918.878 | I23: 4702.649 | T23: Blackpool | U23: 1363.09 | V23: 1590.27 | W23: 1817.45 | X23: 2044.63 | Y23: 2498.99 | Z23: 2953.35 | AA23: 3407.72 | AB23: 4089.26
A24: Bolsover | B24: 1585.2635 | C24: 1849.476 | D24: 2113.6885 | E24: 2377.901 | F24: 2906.326 | G24: 3434.7395 | H24: 3963.1645 | I24: 4755.802 | T24: Bolsover | U24: 1378.49 | V24: 1608.24 | W24: 1837.99 | X24: 2067.74 | Y24: 2527.24 | Z24: 2986.73 | AA24: 3446.23 | AB24: 4135.48
A25: Bolton | B25: 1575.7645 | C25: 1838.39 | D25: 2101.0155 | E25: 2363.641 | F25: 2888.892 | G25: 3414.143 | H25: 3939.4055 | I25: 4727.282 | T25: Bolton | U25: 1370.23 | V25: 1598.6 | W25: 1826.97 | X25: 2055.34 | Y25: 2512.08 | Z25: 2968.82 | AA25: 3425.57 | AB25: 4110.68
A26: Boston | B26: 1500.2095 | C26: 1750.2425 | D26: 2000.2755 | E26: 2250.3085 | F26: 2750.3745 | G26: 3250.4405 | H26: 3750.518 | I26: 4500.617 | T26: Boston | U26: 1304.53 | V26: 1521.95 | W26: 1739.37 | X26: 1956.79 | Y26: 2391.63 | Z26: 2826.47 | AA26: 3261.32 | AB26: 3913.58
A27: Bracknell Forest | B27: 1499.439 | C27: 1749.3455 | D27: 1999.252 | E27: 2249.1585 | F27: 2748.9715 | G27: 3248.7845 | H27: 3748.5975 | I27: 4498.317 | T27: Bracknell Forest | U27: 1303.86 | V27: 1521.17 | W27: 1738.48 | X27: 1955.79 | Y27: 2390.41 | Z27: 2825.03 | AA27: 3259.65 | AB27: 3911.58
A28: Bradford | B28: 1541.2875 | C28: 1798.1745 | D28: 2055.05 | E28: 2311.937 | F28: 2825.6995 | G28: 3339.462 | H28: 3853.2245 | I28: 4623.874 | T28: Bradford | U28: 1340.25 | V28: 1563.63 | W28: 1787 | X28: 2010.38 | Y28: 2457.13 | Z28: 2903.88 | AA28: 3350.63 | AB28: 4020.76
A29: Braintree | B29: 1621.0515 | C29: 1891.221 | D29: 2161.3905 | E29: 2431.5715 | F29: 2971.922 | G29: 3512.2725 | H29: 4052.623 | I29: 4863.143 | T29: Braintree | U29: 1409.61 | V29: 1644.54 | W29: 1879.47 | X29: 2114.41 | Y29: 2584.28 | Z29: 3054.15 | AA29: 3524.02 | AB29: 4228.82
A30: Breckland | B30: 1475.4155 | C30: 1721.3085 | D30: 1967.213 | E30: 2213.1175 | F30: 2704.9265 | G30: 3196.724 | H30: 3688.533 | I30: 4426.235 | T30: Breckland | U30: 1282.97 | V30: 1496.79 | W30: 1710.62 | X30: 1924.45 | Y30: 2352.11 | Z30: 2779.76 | AA30: 3207.42 | AB30: 3848.9
A31: Brent | B31: 1524.5895 | C31: 1778.6935 | D31: 2032.786 | E31: 2286.89 | F31: 2795.0865 | G31: 3303.283 | H31: 3811.4795 | I31: 4573.78 | T31: Brent | U31: 1325.73 | V31: 1546.69 | W31: 1767.64 | X31: 1988.6 | Y31: 2430.51 | Z31: 2872.42 | AA31: 3314.33 | AB31: 3977.2
A32: Brentwood | B32: 1708.7735 | C32: 1993.5595 | D32: 2278.357 | E32: 2563.1545 | F32: 3132.7495 | G32: 3702.333 | H32: 4271.928 | I32: 5126.309 | T32: Brentwood | U32: 1485.89 | V32: 1733.53 | W32: 1981.18 | X32: 2228.83 | Y32: 2724.13 | Z32: 3219.42 | AA32: 3714.72 | AB32: 4457.66
A33: Brighton & Hove | B33: 1798.0135 | C33: 2097.6805 | D33: 2397.359 | E33: 2697.026 | F33: 3296.36 | G33: 3895.7055 | H33: 4495.0395 | I33: 5394.052 | T33: Brighton & Hove | U33: 1563.49 | V33: 1824.07 | W33: 2084.66 | X33: 2345.24 | Y33: 2866.4 | Z33: 3387.57 | AA33: 3908.73 | AB33: 4690.48
A34: Bristol | B34: 1625.9045 | C34: 1896.8905 | D34: 2167.8765 | E34: 2438.8625 | F34: 2980.8345 | G34: 3522.795 | H34: 4064.767 | I34: 4877.725 | T34: Bristol | U34: 1413.83 | V34: 1649.47 | W34: 1885.11 | X34: 2120.75 | Y34: 2592.03 | Z34: 3063.3 | AA34: 3534.58 | AB34: 4241.5
A35: Broadland | B35: 1412.3495 | C35: 1647.7315 | D35: 1883.125 | E35: 2118.5185 | F35: 2589.3055 | G35: 3060.081 | H35: 3530.868 | I35: 4237.037 | T35: Broadland | U35: 1228.13 | V35: 1432.81 | W35: 1637.5 | X35: 1842.19 | Y35: 2251.57 | Z35: 2660.94 | AA35: 3070.32 | AB35: 3684.38
A36: Bromley | B36: 1607.8955 | C36: 1875.8685 | D36: 2143.853 | E36: 2411.8375 | F36: 2947.8065 | G36: 3483.764 | H36: 4019.733 | I36: 4823.675 | T36: Bromley | U36: 1398.17 | V36: 1631.19 | W36: 1864.22 | X36: 2097.25 | Y36: 2563.31 | Z36: 3029.36 | AA36: 3495.42 | AB36: 4194.5
A37: Bromsgrove | B37: 1530.9375 | C37: 1786.088 | D37: 2041.2385 | E37: 2296.4005 | F37: 2806.713 | G37: 3317.0255 | H37: 3827.338 | I37: 4592.801 | T37: Bromsgrove | U37: 1331.25 | V37: 1553.12 | W37: 1774.99 | X37: 1996.87 | Y37: 2440.62 | Z37: 2884.37 | AA37: 3328.12 | AB37: 3993.74
A38: Broxbourne | B38: 1757.775 | C38: 2050.7375 | D38: 2343.7 | E38: 2636.6625 | F38: 3222.5875 | G38: 3808.5125 | H38: 4394.4375 | I38: 5273.325 | T38: Broxbourne | U38: 1528.5 | V38: 1783.25 | W38: 2038 | X38: 2292.75 | Y38: 2802.25 | Z38: 3311.75 | AA38: 3821.25 | AB38: 4585.5
A39: Broxtowe | B39: 1668.9145 | C39: 1947.065 | D39: 2225.227 | E39: 2503.3775 | F39: 3059.6785 | G39: 3615.991 | H39: 4172.292 | I39: 5006.755 | T39: Broxtowe | U39: 1451.23 | V39: 1693.1 | W39: 1934.98 | X39: 2176.85 | Y39: 2660.59 | Z39: 3144.34 | AA39: 3628.08 | AB39: 4353.7
A40: Buckinghamshire | B40: 1720.2505 | C40: 2006.957 | D40: 2293.6635 | E40: 2580.37 | F40: 3153.783 | G40: 3727.196 | H40: 4300.6205 | I40: 5160.74 | T40: Buckinghamshire | U40: 1495.87 | V40: 1745.18 | W40: 1994.49 | X40: 2243.8 | Y40: 2742.42 | Z40: 3241.04 | AA40: 3739.67 | AB40: 4487.6
A41: Burnley | B41: 1670.996 | C41: 1949.4915 | D41: 2227.987 | E41: 2506.494 | F41: 3063.4965 | G41: 3620.4875 | H41: 4177.49 | I41: 5012.988 | T41: Burnley | U41: 1453.04 | V41: 1695.21 | W41: 1937.38 | X41: 2179.56 | Y41: 2663.91 | Z41: 3148.25 | AA41: 3632.6 | AB41: 4359.12
A42: Bury | B42: 1599.2015 | C42: 1865.737 | D42: 2132.2725 | E42: 2398.808 | F42: 2931.879 | G42: 3464.9385 | H42: 3998.0095 | I42: 4797.616 | T42: Bury | U42: 1390.61 | V42: 1622.38 | W42: 1854.15 | X42: 2085.92 | Y42: 2549.46 | Z42: 3012.99 | AA42: 3476.53 | AB42: 4171.84
A43: Calderdale | B43: 1630.056 | C43: 1901.732 | D43: 2173.408 | E43: 2445.084 | F43: 2988.436 | G43: 3531.788 | H43: 4075.14 | I43: 4890.168 | T43: Calderdale | U43: 1417.44 | V43: 1653.68 | W43: 1889.92 | X43: 2126.16 | Y43: 2598.64 | Z43: 3071.12 | AA43: 3543.6 | AB43: 4252.32
A44: Cambridge | B44: 1457.0155 | C44: 1699.8495 | D44: 1942.695 | E44: 2185.529 | F44: 2671.197 | G44: 3156.8765 | H44: 3642.5445 | I44: 4371.058 | T44: Cambridge | U44: 1266.97 | V44: 1478.13 | W44: 1689.3 | X44: 1900.46 | Y44: 2322.78 | Z44: 2745.11 | AA44: 3167.43 | AB44: 3800.92
A45: Camden | B45: 1595.7515 | C45: 1861.712 | D45: 2127.6725 | E45: 2393.633 | F45: 2925.554 | G45: 3457.4635 | H45: 3989.3845 | I45: 4787.266 | T45: Camden | U45: 1387.61 | V45: 1618.88 | W45: 1850.15 | X45: 2081.42 | Y45: 2543.96 | Z45: 3006.49 | AA45: 3469.03 | AB45: 4162.84
A46: Cannock Chase | B46: 1621.2355 | C46: 1891.4395 | D46: 2161.6435 | E46: 2431.8475 | F46: 2972.2555 | G46: 3512.6635 | H46: 4053.083 | I46: 4863.695 | T46: Cannock Chase | U46: 1409.77 | V46: 1644.73 | W46: 1879.69 | X46: 2114.65 | Y46: 2584.57 | Z46: 3054.49 | AA46: 3524.42 | AB46: 4229.3
A47: Canterbury | B47: 1575.0975 | C47: 1837.6195 | D47: 2100.13 | E47: 2362.652 | F47: 2887.6845 | G47: 3412.717 | H47: 3937.7495 | I47: 4725.304 | T47: Canterbury | U47: 1369.65 | V47: 1597.93 | W47: 1826.2 | X47: 2054.48 | Y47: 2511.03 | Z47: 2967.58 | AA47: 3424.13 | AB47: 4108.96
A48: Carlisle | B48: 1663.4865 | C48: 1940.7285 | D48: 2217.9705 | E48: 2495.224 | F48: 3049.7195 | G48: 3604.215 | H48: 4158.7105 | I48: 4990.448 | T48: Carlisle | U48: 1446.51 | V48: 1687.59 | W48: 1928.67 | X48: 2169.76 | Y48: 2651.93 | Z48: 3134.1 | AA48: 3616.27 | AB48: 4339.52
A49: Castle Point | B49: 1624.329 | C49: 1895.0505 | D49: 2165.772 | E49: 2436.4935 | F49: 2977.9365 | G49: 3519.3795 | H49: 4060.8225 | I49: 4872.987 | T49: Castle Point | U49: 1412.46 | V49: 1647.87 | W49: 1883.28 | X49: 2118.69 | Y49: 2589.51 | Z49: 3060.33 | AA49: 3531.15 | AB49: 4237.38
A50: Central Bedfordshire | B50: 1552.3735 | C50: 1811.1005 | D50: 2069.839 | E50: 2328.566 | F50: 2846.02 | G50: 3363.4855 | H50: 3880.9395 | I50: 4657.132 | T50: Central Bedfordshire | U50: 1349.89 | V50: 1574.87 | W50: 1799.86 | X50: 2024.84 | Y50: 2474.8 | Z50: 2924.77 | AA50: 3374.73 | AB50: 4049.68
A51: Charnwood | B51: 1578.8925 | C51: 1842.047 | D51: 2105.19 | E51: 2368.3445 | F51: 2894.642 | G51: 3420.9395 | H51: 3947.237 | I51: 4736.689 | T51: Charnwood | U51: 1372.95 | V51: 1601.78 | W51: 1830.6 | X51: 2059.43 | Y51: 2517.08 | Z51: 2974.73 | AA51: 3432.38 | AB51: 4118.86
A52: Chelmsford | B52: 1719.365 | C52: 2005.922 | D52: 2292.479 | E52: 2579.0475 | F52: 3152.173 | G52: 3725.287 | H52: 4298.4125 | I52: 5158.095 | T52: Chelmsford | U52: 1495.1 | V52: 1744.28 | W52: 1993.46 | X52: 2242.65 | Y52: 2741.02 | Z52: 3239.38 | AA52: 3737.75 | AB52: 4485.3
A53: Cheltenham | B53: 1616.9115 | C53: 1886.4025 | D53: 2155.882 | E53: 2425.373 | F53: 2964.3435 | G53: 3503.314 | H53: 4042.2845 | I53: 4850.746 | T53: Cheltenham | U53: 1406.01 | V53: 1640.35 | W53: 1874.68 | X53: 2109.02 | Y53: 2577.69 | Z53: 3046.36 | AA53: 3515.03 | AB53: 4218.04
A54: Cherwell | B54: 1663.245 | C54: 1940.4525 | D54: 2217.66 | E54: 2494.8675 | F54: 3049.2825 | G54: 3603.6975 | H54: 4158.1125 | I54: 4989.735 | T54: Cherwell | U54: 1446.3 | V54: 1687.35 | W54: 1928.4 | X54: 2169.45 | Y54: 2651.55 | Z54: 3133.65 | AA54: 3615.75 | AB54: 4338.9
A55: Cheshire East | B55: 1559.446 | C55: 1819.3575 | D55: 2079.2575 | E55: 2339.169 | F55: 2858.9805 | G55: 3378.8035 | H55: 3898.615 | I55: 4678.338 | T55: Cheshire East | U55: 1356.04 | V55: 1582.05 | W55: 1808.05 | X55: 2034.06 | Y55: 2486.07 | Z55: 2938.09 | AA55: 3390.1 | AB55: 4068.12
A56: Cheshire West and Chester | B56: 1633.2185 | C56: 1905.412 | D56: 2177.617 | E56: 2449.822 | F56: 2994.232 | G56: 3538.6305 | H56: 4083.0405 | I56: 4899.644 | T56: Cheshire West and Chester | U56: 1420.19 | V56: 1656.88 | W56: 1893.58 | X56: 2130.28 | Y56: 2603.68 | Z56: 3077.07 | AA56: 3550.47 | AB56: 4260.56
A57: Chesterfield | B57: 1635.392 | C57: 1907.9535 | D57: 2180.515 | E57: 2453.088 | F57: 2998.2225 | G57: 3543.3455 | H57: 4088.48 | I57: 4906.176 | T57: Chesterfield | U57: 1422.08 | V57: 1659.09 | W57: 1896.1 | X57: 2133.12 | Y57: 2607.15 | Z57: 3081.17 | AA57: 3555.2 | AB57: 4266.24
A58: Chichester | B58: 878.324 | C58: 1024.7075 | D58: 1171.1025 | E58: 1317.486 | F58: 1610.2645 | G58: 1903.0315 | H58: 2195.81 | I58: 2634.972 | T58: Chichester | U58: 763.76 | V58: 891.05 | W58: 1018.35 | X58: 1145.64 | Y58: 1400.23 | Z58: 1654.81 | AA58: 1909.4 | AB58: 2291.28
A59: Chorley | B59: 1542.081 | C59: 1799.0945 | D59: 2056.108 | E59: 2313.1215 | F59: 2827.1485 | G59: 3341.1755 | H59: 3855.2025 | I59: 4626.243 | T59: Chorley | U59: 1340.94 | V59: 1564.43 | W59: 1787.92 | X59: 2011.41 | Y59: 2458.39 | Z59: 2905.37 | AA59: 3352.35 | AB59: 4022.82
A60: City of London | B60: 1703.0695 | C60: 1986.9125 | D60: 2270.7555 | E60: 2554.5985 | F60: 3122.2845 | G60: 3689.9705 | H60: 4257.668 | I60: 5109.197 | T60: City of London | U60: 1480.93 | V60: 1727.75 | W60: 1974.57 | X60: 2221.39 | Y60: 2715.03 | Z60: 3208.67 | AA60: 3702.32 | AB60: 4442.78
A61: Colchester | B61: 1582.1125 | C61: 1845.796 | D61: 2109.491 | E61: 2373.1745 | F61: 2900.5415 | G61: 3427.92 | H61: 3955.287 | I61: 4746.349 | T61: Colchester | U61: 1375.75 | V61: 1605.04 | W61: 1834.34 | X61: 2063.63 | Y61: 2522.21 | Z61: 2980.8 | AA61: 3439.38 | AB61: 4127.26
A62: Copeland | B62: 1675.9295 | C62: 1955.2415 | D62: 2234.565 | E62: 2513.8885 | F62: 3072.5355 | G62: 3631.171 | H62: 4189.818 | I62: 5027.777 | T62: Copeland | U62: 1457.33 | V62: 1700.21 | W62: 1943.1 | X62: 2185.99 | Y62: 2671.77 | Z62: 3157.54 | AA62: 3643.32 | AB62: 4371.98
A63: Cornwall | B63: 1608.9765 | C63: 1877.1335 | D63: 2145.2905 | E63: 2413.459 | F63: 2949.7845 | G63: 3486.11 | H63: 4022.4355 | I63: 4826.918 | T63: Cornwall | U63: 1399.11 | V63: 1632.29 | W63: 1865.47 | X63: 2098.66 | Y63: 2565.03 | Z63: 3031.4 | AA63: 3497.77 | AB63: 4197.32
A64: Cotswold | B64: 1716.996 | C64: 2003.162 | D64: 2289.328 | E64: 2575.494 | F64: 3147.826 | G64: 3720.158 | H64: 4292.49 | I64: 5150.988 | T64: Cotswold | U64: 1493.04 | V64: 1741.88 | W64: 1990.72 | X64: 2239.56 | Y64: 2737.24 | Z64: 3234.92 | AA64: 3732.6 | AB64: 4479.12
A65: Coventry | B65: 1599.9145 | C65: 1866.565 | D65: 2133.227 | E65: 2399.8775 | F65: 2933.1785 | G65: 3466.491 | H65: 3999.792 | I65: 4799.755 | T65: Coventry | U65: 1391.23 | V65: 1623.1 | W65: 1854.98 | X65: 2086.85 | Y65: 2550.59 | Z65: 3014.34 | AA65: 3478.08 | AB65: 4173.7
A66: Craven | B66: 1650.6065 | C66: 1925.698 | D66: 2200.801 | E66: 2475.904 | F66: 3026.11 | G66: 3576.3045 | H66: 4126.5105 | I66: 4951.808 | T66: Craven | U66: 1435.31 | V66: 1674.52 | W66: 1913.74 | X66: 2152.96 | Y66: 2631.4 | Z66: 3109.83 | AA66: 3588.27 | AB66: 4305.92
A67: Crawley | B67: 1593.118 | C67: 1858.6415 | D67: 2124.1535 | E67: 2389.677 | F67: 2920.7125 | G67: 3451.7595 | H67: 3982.795 | I67: 4779.354 | T67: Crawley | U67: 1385.32 | V67: 1616.21 | W67: 1847.09 | X67: 2077.98 | Y67: 2539.75 | Z67: 3001.53 | AA67: 3463.3 | AB67: 4155.96
A68: Croydon | B68: =U68*115% -> 1540.3215 | C68: =V68*115% -> 1797.036 | D68: =W68*115% -> 2053.7505 | E68: =X68*115% -> 2310.4765 | F68: =Y68*115% -> 2823.917 | G68: =Z68*115% -> 3337.3575 | H68: =AA68*115% -> 3850.798 | I68: =AB68*115% -> 4620.953 | T68: Croydon | U68: 1339.41 | V68: 1562.64 | W68: 1785.87 | X68: 2009.11 | Y68: 2455.58 | Z68: 2902.05 | AA68: 3348.52 | AB68: 4018.22
A69: Dacorum | B69: 1628.9405 | C69: 1900.4325 | D69: 2171.9245 | E69: 2443.4165 | F69: 2986.4005 | G69: 3529.373 | H69: 4072.357 | I69: 4886.833 | T69: Dacorum | U69: 1416.47 | V69: 1652.55 | W69: 1888.63 | X69: 2124.71 | Y69: 2596.87 | Z69: 3069.02 | AA69: 3541.18 | AB69: 4249.42
A70: Darlington | B70: 1476.5655 | C70: 1722.654 | D70: 1968.7425 | E70: 2214.8425 | F70: 2707.031 | G70: 3199.2195 | H70: 3691.408 | I70: 4429.685 | T70: Darlington | U70: 1283.97 | V70: 1497.96 | W70: 1711.95 | X70: 1925.95 | Y70: 2353.94 | Z70: 2781.93 | AA70: 3209.92 | AB70: 3851.9
A71: Dartford | B71: 1830.6505 | C71: 2135.757 | D71: 2440.875 | E71: 2745.9815 | F71: 3356.1945 | G71: 3966.419 | H71: 4576.632 | I71: 5491.963 | T71: Dartford | U71: 1591.87 | V71: 1857.18 | W71: 2122.5 | X71: 2387.81 | Y71: 2918.43 | Z71: 3449.06 | AA71: 3979.68 | AB71: 4775.62
A72: Derbyshire Dales | B72: 1649.031 | C72: 1923.8695 | D72: 2198.708 | E72: 2473.5465 | F72: 3023.2235 | G72: 3572.9005 | H72: 4122.5775 | I72: 4947.093 | T72: Derbyshire Dales | U72: 1433.94 | V72: 1672.93 | W72: 1911.92 | X72: 2150.91 | Y72: 2628.89 | Z72: 3106.87 | AA72: 3584.85 | AB72: 4301.82
A73: Doncaster | B73: 1413.7065 | C73: 1649.33 | D73: 1884.942 | E73: 2120.5655 | F73: 2591.801 | G73: 3063.0365 | H73: 3534.272 | I73: 4241.131 | T73: Doncaster | U73: 1229.31 | V73: 1434.2 | W73: 1639.08 | X73: 1843.97 | Y73: 2253.74 | Z73: 2663.51 | AA73: 3073.28 | AB73: 3687.94
A74: Dover | B74: 1775.7035 | C74: 2071.6445 | D74: 2367.597 | E74: 2663.5495 | F74: 3255.4545 | G74: 3847.348 | H74: 4439.253 | I74: 5327.099 | T74: Dover | U74: 1544.09 | V74: 1801.43 | W74: 2058.78 | X74: 2316.13 | Y74: 2830.83 | Z74: 3345.52 | AA74: 3860.22 | AB74: 4632.26
A75: Dudley | B75: 1411.349 | C75: 1646.57 | D75: 1881.8025 | E75: 2117.0235 | F75: 2587.477 | G75: 3057.919 | H75: 3528.3725 | I75: 4234.047 | T75: Dudley | U75: 1227.26 | V75: 1431.8 | W75: 1636.35 | X75: 1840.89 | Y75: 2249.98 | Z75: 2659.06 | AA75: 3068.15 | AB75: 3681.78
A76: Durham | B76: 1643.212 | C76: 1917.073 | D76: 2190.9455 | E76: 2464.818 | F76: 3012.5515 | G76: 3560.2965 | H76: 4108.03 | I76: 4929.636 | T76: Durham | U76: 1428.88 | V76: 1667.02 | W76: 1905.17 | X76: 2143.32 | Y76: 2619.61 | Z76: 3095.91 | AA76: 3572.2 | AB76: 4286.64
A77: Ealing | B77: 1714.0405 | C77: 1999.712 | D77: 2285.395 | E77: 2571.0665 | F77: 3142.4095 | G77: 3713.764 | H77: 4285.107 | I77: 5142.133 | T77: Ealing | U77: 1490.47 | V77: 1738.88 | W77: 1987.3 | X77: 2235.71 | Y77: 2732.53 | Z77: 3229.36 | AA77: 3726.18 | AB77: 4471.42
A78: East Cambridgeshire | B78: 1554.9955 | C78: 1814.1595 | D78: 2073.3235 | E78: 2332.4875 | F78: 2850.8155 | G78: 3369.1435 | H78: 3887.483 | I78: 4664.975 | T78: East Cambridgeshire | U78: 1352.17 | V78: 1577.53 | W78: 1802.89 | X78: 2028.25 | Y78: 2478.97 | Z78: 2929.69 | AA78: 3380.42 | AB78: 4056.5
A79: East Devon | B79: 1623.0065 | C79: 1893.498 | D79: 2164.001 | E79: 2434.504 | F79: 2975.51 | G79: 3516.5045 | H79: 4057.5105 | I79: 4869.008 | T79: East Devon | U79: 1411.31 | V79: 1646.52 | W79: 1881.74 | X79: 2116.96 | Y79: 2587.4 | Z79: 3057.83 | AA79: 3528.27 | AB79: 4233.92
A80: East Hampshire | B80: 1556.8585 | C80: 1816.333 | D80: 2075.8075 | E80: 2335.282 | F80: 2854.231 | G80: 3373.18 | H80: 3892.1405 | I80: 4670.564 | T80: East Hampshire | U80: 1353.79 | V80: 1579.42 | W80: 1805.05 | X80: 2030.68 | Y80: 2481.94 | Z80: 2933.2 | AA80: 3384.47 | AB80: 4061.36
A81: East Hertfordshire | B81: 1628.4 | C81: 1899.8 | D81: 2171.2 | E81: 2442.6 | F81: 2985.4 | G81: 3528.2 | H81: 4071 | I81: 4885.2 | T81: East Hertfordshire | U81: 1416 | V81: 1652 | W81: 1888 | X81: 2124 | Y81: 2596 | Z81: 3068 | AA81: 3540 | AB81: 4248
A82: East Lindsey | B82: 1574.7755 | C82: 1837.2285 | D82: 2099.693 | E82: 2362.1575 | F82: 2887.0865 | G82: 3412.004 | H82: 3936.933 | I82: 4724.315 | T82: East Lindsey | U82: 1369.37 | V82: 1597.59 | W82: 1825.82 | X82: 2054.05 | Y82: 2510.51 | Z82: 2966.96 | AA82: 3423.42 | AB82: 4108.1
A83: East Riding of Yorkshire | B83: 1547.7045 | C83: 1805.661 | D83: 2063.606 | E83: 2321.5625 | F83: 2837.464 | G83: 3353.3655 | H83: 3869.267 | I83: 4643.125 | T83: East Riding of Yorkshire | U83: 1345.83 | V83: 1570.14 | W83: 1794.44 | X83: 2018.75 | Y83: 2467.36 | Z83: 2915.97 | AA83: 3364.58 | AB83: 4037.5
A84: East Staffordshire | B84: 1769.2865 | C84: 2064.158 | D84: 2359.041 | E84: 2653.924 | F84: 3243.69 | G84: 3833.4445 | H84: 4423.2105 | I84: 5307.848 | T84: East Staffordshire | U84: 1538.51 | V84: 1794.92 | W84: 2051.34 | X84: 2307.76 | Y84: 2820.6 | Z84: 3333.43 | AA84: 3846.27 | AB84: 4615.52
A85: East Suffolk | B85: 1550.7635 | C85: 1809.226 | D85: 2067.6885 | E85: 2326.151 | F85: 2843.076 | G85: 3359.9895 | H85: 3876.9145 | I85: 4652.302 | T85: East Suffolk | U85: 1348.49 | V85: 1573.24 | W85: 1797.99 | X85: 2022.74 | Y85: 2472.24 | Z85: 2921.73 | AA85: 3371.23 | AB85: 4045.48
A86: Eastbourne | B86: 1709.4865 | C86: 1994.399 | D86: 2279.3115 | E86: 2564.224 | F86: 3134.049 | G86: 3703.874 | H86: 4273.7105 | I86: 5128.448 | T86: Eastbourne | U86: 1486.51 | V86: 1734.26 | W86: 1982.01 | X86: 2229.76 | Y86: 2725.26 | Z86: 3220.76 | AA86: 3716.27 | AB86: 4459.52
A87: Eastleigh | B87: 1496.8745 | C87: 1746.344 | D87: 1995.825 | E87: 2245.306 | F87: 2744.268 | G87: 3243.2185 | H87: 3742.1805 | I87: 4490.612 | T87: Eastleigh | U87: 1301.63 | V87: 1518.56 | W87: 1735.5 | X87: 1952.44 | Y87: 2386.32 | Z87: 2820.19 | AA87: 3254.07 | AB87: 3904.88
A88: Eden | B88: 1535.0545 | C88: 1790.895 | D88: 2046.747 | E88: 2302.5875 | F88: 2814.2685 | G88: 3325.961 | H88: 3837.642 | I88: 4605.175 | T88: Eden | U88: 1334.83 | V88: 1557.3 | W88: 1779.78 | X88: 2002.25 | Y88: 2447.19 | Z88: 2892.14 | AA88: 3337.08 | AB88: 4004.5
A89: Elmbridge | B89: 1690.6955 | C89: 1972.4685 | D89: 2254.253 | E89: 2536.0375 | F89: 3099.6065 | G89: 3663.164 | H89: 4226.733 | I89: 5072.075 | T89: Elmbridge | U89: 1470.17 | V89: 1715.19 | W89: 1960.22 | X89: 2205.25 | Y89: 2695.31 | Z89: 3185.36 | AA89: 3675.42 | AB89: 4410.5
A90: Enfield | B90: 1574.8905 | C90: 1837.3665 | D90: 2099.8425 | E90: 2362.33 | F90: 2887.2935 | G90: 3412.257 | H90: 3937.2205 | I90: 4724.66 | T90: Enfield | U90: 1369.47 | V90: 1597.71 | W90: 1825.95 | X90: 2054.2 | Y90: 2510.69 | Z90: 2967.18 | AA90: 3423.67 | AB90: 4108.4
A91: Epping Forest | B91: 1661.8305 | C91: 1938.808 | D91: 2215.774 | E91: 2492.7515 | F91: 3046.695 | G91: 3600.6385 | H91: 4154.582 | I91: 4985.503 | T91: Epping Forest | U91: 1445.07 | V91: 1685.92 | W91: 1926.76 | X91: 2167.61 | Y91: 2649.3 | Z91: 3130.99 | AA91: 3612.68 | AB91: 4335.22
A92: Epsom & Ewell | B92: 1512.3305 | C92: 1764.376 | D92: 2016.433 | E92: 2268.49 | F92: 2772.604 | G92: 3276.7065 | H92: 3780.8205 | I92: 4536.98 | T92: Epsom & Ewell | U92: 1315.07 | V92: 1534.24 | W92: 1753.42 | X92: 1972.6 | Y92: 2410.96 | Z92: 2849.31 | AA92: 3287.67 | AB92: 3945.2
A93: Erewash | B93: 1697.1815 | C93: 1980.047 | D93: 2262.9125 | E93: 2545.778 | F93: 3111.509 | G93: 3677.2285 | H93: 4242.9595 | I93: 5091.556 | T93: Erewash | U93: 1475.81 | V93: 1721.78 | W93: 1967.75 | X93: 2213.72 | Y93: 2705.66 | Z93: 3197.59 | AA93: 3689.53 | AB93: 4427.44
A94: Exeter | B94: 1703.6215 | C94: 1987.5565 | D94: 2271.503 | E94: 2555.438 | F94: 3123.308 | G94: 3691.1895 | H94: 4259.0595 | I94: 5110.876 | T94: Exeter | U94: 1481.41 | V94: 1728.31 | W94: 1975.22 | X94: 2222.12 | Y94: 2715.92 | Z94: 3209.73 | AA94: 3703.53 | AB94: 4444.24
A95: Fareham | B95: 1622.5925 | C95: 1893.0265 | D95: 2163.4605 | E95: 2433.8945 | F95: 2974.7625 | G95: 3515.619 | H95: 4056.487 | I95: 4867.789 | T95: Fareham | U95: 1410.95 | V95: 1646.11 | W95: 1881.27 | X95: 2116.43 | Y95: 2586.75 | Z95: 3057.06 | AA95: 3527.38 | AB95: 4232.86
A96: Fenland | B96: 1659.8065 | C96: 1936.439 | D96: 2213.083 | E96: 2489.7155 | F96: 3042.9805 | G96: 3596.257 | H96: 4149.522 | I96: 4979.431 | T96: Fenland | U96: 1443.31 | V96: 1683.86 | W96: 1924.42 | X96: 2164.97 | Y96: 2646.07 | Z96: 3127.18 | AA96: 3608.28 | AB96: 4329.94
A97: Folkestone & Hythe | B97: 1787.836 | C97: 2085.801 | D97: 2383.7775 | E97: 2681.754 | F97: 3277.6955 | G97: 3873.6485 | H97: 4469.59 | I97: 5363.508 | T97: Folkestone & Hythe | U97: 1554.64 | V97: 1813.74 | W97: 2072.85 | X97: 2331.96 | Y97: 2850.17 | Z97: 3368.39 | AA97: 3886.6 | AB97: 4663.92
A98: Forest of Dean | B98: 1754.095 | C98: 2046.4365 | D98: 2338.7895 | E98: 2631.1425 | F98: 3215.837 | G98: 3800.543 | H98: 4385.2375 | I98: 5262.285 | T98: Forest of Dean | U98: 1525.3 | V98: 1779.51 | W98: 2033.73 | X98: 2287.95 | Y98: 2796.38 | Z98: 3304.82 | AA98: 3813.25 | AB98: 4575.9
A99: Fylde | B99: 1571.107 | C99: 1832.962 | D99: 2094.8055 | E99: 2356.6605 | F99: 2880.359 | G99: 3404.069 | H99: 3927.7675 | I99: 4713.321 | T99: Fylde | U99: 1366.18 | V99: 1593.88 | W99: 1821.57 | X99: 2049.27 | Y99: 2504.66 | Z99: 2960.06 | AA99: 3415.45 | AB99: 4098.54
A100: Gateshead | B100: 1564.069 | C100: 1824.751 | D100: 2085.4215 | E100: 2346.1035 | F100: 2867.456 | G100: 3388.82 | H100: 3910.1725 | I100: 4692.207 | T100: Gateshead | U100: 1360.06 | V100: 1586.74 | W100: 1813.41 | X100: 2040.09 | Y100: 2493.44 | Z100: 2946.8 | AA100: 3400.15 | AB100: 4080.18
A101: Gedling | B101: 1612.8865 | C101: 1881.699 | D101: 2150.5115 | E101: 2419.324 | F101: 2956.949 | G101: 3494.574 | H101: 4032.2105 | I101: 4838.648 | T101: Gedling | U101: 1402.51 | V101: 1636.26 | W101: 1870.01 | X101: 2103.76 | Y101: 2571.26 | Z101: 3038.76 | AA101: 3506.27 | AB101: 4207.52
A102: Gloucester | B102: 1609.6665 | C102: 1877.9385 | D102: 2146.2105 | E102: 2414.494 | F102: 2951.0495 | G102: 3487.605 | H102: 4024.1605 | I102: 4828.988 | T102: Gloucester | U102: 1399.71 | V102: 1632.99 | W102: 1866.27 | X102: 2099.56 | Y102: 2566.13 | Z102: 3032.7 | AA102: 3499.27 | AB102: 4199.12
A103: Gosport | B103: 1391.04 | C103: 1622.88 | D103: 1854.72 | E103: 2086.56 | F103: 2550.24 | G103: 3013.92 | H103: 3477.6 | I103: 4173.12 | T103: Gosport | U103: 1209.6 | V103: 1411.2 | W103: 1612.8 | X103: 1814.4 | Y103: 2217.6 | Z103: 2620.8 | AA103: 3024 | AB103: 3628.8
A104: Gravesham | B104: 1697.9865 | C104: 1980.99 | D104: 2263.982 | E104: 2546.9855 | F104: 3112.981 | G104: 3678.9765 | H104: 4244.972 | I104: 5093.971 | T104: Gravesham | U104: 1476.51 | V104: 1722.6 | W104: 1968.68 | X104: 2214.77 | Y104: 2706.94 | Z104: 3199.11 | AA104: 3691.28 | AB104: 4429.54
A105: Great Yarmouth | B105: 1359.5185 | C105: 1586.103 | D105: 1812.699 | E105: 2039.2835 | F105: 2492.4525 | G105: 2945.633 | H105: 3398.802 | I105: 4078.567 | T105: Great Yarmouth | U105: 1182.19 | V105: 1379.22 | W105: 1576.26 | X105: 1773.29 | Y105: 2167.35 | Z105: 2561.42 | AA105: 2955.48 | AB105: 3546.58
A106: Greenwich | B106: 1561.5505 | C106: 1821.807 | D106: 2082.0635 | E106: 2342.32 | F106: 2862.833 | G106: 3383.346 | H106: 3903.8705 | I106: 4684.64 | T106: Greenwich | U106: 1357.87 | V106: 1584.18 | W106: 1810.49 | X106: 2036.8 | Y106: 2489.42 | Z106: 2942.04 | AA106: 3394.67 | AB106: 4073.6
A107: Guildford | B107: 1001.2705 | C107: 1168.147 | D107: 1335.0235 | E107: 1501.9 | F107: 1835.653 | G107: 2169.406 | H107: 2503.1705 | I107: 3003.8 | T107: Guildford | U107: 870.67 | V107: 1015.78 | W107: 1160.89 | X107: 1306 | Y107: 1596.22 | Z107: 1886.44 | AA107: 2176.67 | AB107: 2612
A108: Hackney | B108: 1623.041 | C108: 1893.544 | D108: 2164.047 | E108: 2434.5615 | F108: 2975.579 | G108: 3516.585 | H108: 4057.6025 | I108: 4869.123 | T108: Hackney | U108: 1411.34 | V108: 1646.56 | W108: 1881.78 | X108: 2117.01 | Y108: 2587.46 | Z108: 3057.9 | AA108: 3528.35 | AB108: 4234.02
A109: Halton | B109: 1527.4415 | C109: 1782.017 | D109: 2036.5925 | E109: 2291.168 | F109: 2800.319 | G109: 3309.4585 | H109: 3818.6095 | I109: 4582.336 | T109: Halton | U109: 1328.21 | V109: 1549.58 | W109: 1770.95 | X109: 1992.32 | Y109: 2435.06 | Z109: 2877.79 | AA109: 3320.53 | AB109: 3984.64
A110: Hambleton | B110: 1573.821 | C110: 1836.1245 | D110: 2098.428 | E110: 2360.7315 | F110: 2885.3385 | G110: 3409.9455 | H110: 3934.5525 | I110: 4721.463 | T110: Hambleton | U110: 1368.54 | V110: 1596.63 | W110: 1824.72 | X110: 2052.81 | Y110: 2508.99 | Z110: 2965.17 | AA110: 3421.35 | AB110: 4105.62
A111: Hammersmith & Fulham | B111: 1658.1505 | C111: 1934.507 | D111: 2210.8635 | E111: 2487.22 | F111: 3039.933 | G111: 3592.646 | H111: 4145.3705 | I111: 4974.44 | T111: Hammersmith & Fulham | U111: 1441.87 | V111: 1682.18 | W111: 1922.49 | X111: 2162.8 | Y111: 2643.42 | Z111: 3124.04 | AA111: 3604.67 | AB111: 4325.6
A112: Harborough | B112: 1593.5205 | C112: 1859.113 | D112: 2124.694 | E112: 2390.2865 | F112: 2921.46 | G112: 3452.6335 | H112: 3983.807 | I112: 4780.573 | T112: Harborough | U112: 1385.67 | V112: 1616.62 | W112: 1847.56 | X112: 2078.51 | Y112: 2540.4 | Z112: 3002.29 | AA112: 3464.18 | AB112: 4157.02
A113: Haringey | B113: 1768.7115 | C113: 2063.491 | D113: 2358.2705 | E113: 2653.0615 | F113: 3242.632 | G113: 3832.2025 | H113: 4421.773 | I113: 5306.123 | T113: Haringey | U113: 1538.01 | V113: 1794.34 | W113: 2050.67 | X113: 2307.01 | Y113: 2819.68 | Z113: 3332.35 | AA113: 3845.02 | AB113: 4614.02
A114: Harlow | B114: 1784.9265 | C114: 2082.42 | D114: 2379.902 | E114: 2677.3955 | F114: 3272.371 | G114: 3867.3465 | H114: 4462.322 | I114: 5354.791 | T114: Harlow | U114: 1552.11 | V114: 1810.8 | W114: 2069.48 | X114: 2328.17 | Y114: 2845.54 | Z114: 3362.91 | AA114: 3880.28 | AB114: 4656.34
A115: Harrogate | B115: 1547.2905 | C115: 1805.1665 | D115: 2063.0425 | E115: 2320.93 | F115: 2836.6935 | G115: 3352.457 | H115: 3868.2205 | I115: 4641.86 | T115: Harrogate | U115: 1345.47 | V115: 1569.71 | W115: 1793.95 | X115: 2018.2 | Y115: 2466.69 | Z115: 2915.18 | AA115: 3363.67 | AB115: 4036.4
A116: Harrow | B116: 1600.9035 | C116: 1867.715 | D116: 2134.5265 | E116: 2401.3495 | F116: 2934.984 | G116: 3468.6185 | H116: 4002.253 | I116: 4802.699 | T116: Harrow | U116: 1392.09 | V116: 1624.1 | W116: 1856.11 | X116: 2088.13 | Y116: 2552.16 | Z116: 3016.19 | AA116: 3480.22 | AB116: 4176.26
A117: Hart | B117: 1703.0695 | C117: 1986.9125 | D117: 2270.767 | E117: 2554.61 | F117: 3122.296 | G117: 3689.9935 | H117: 4257.6795 | I117: 5109.22 | T117: Hart | U117: 1480.93 | V117: 1727.75 | W117: 1974.58 | X117: 2221.4 | Y117: 2715.04 | Z117: 3208.69 | AA117: 3702.33 | AB117: 4442.8
A118: Hartlepool | B118: 1591.554 | C118: 1856.813 | D118: 2122.072 | E118: 2387.331 | F118: 2917.849 | G118: 3448.367 | H118: 3978.885 | I118: 4774.662 | T118: Hartlepool | U118: 1383.96 | V118: 1614.62 | W118: 1845.28 | X118: 2075.94 | Y118: 2537.26 | Z118: 2998.58 | AA118: 3459.9 | AB118: 4151.88
A119: Hastings | B119: 1584.7115 | C119: 1848.8205 | D119: 2112.941 | E119: 2377.0615 | F119: 2905.3025 | G119: 3433.532 | H119: 3961.773 | I119: 4754.123 | T119: Hastings | U119: 1378.01 | V119: 1607.67 | W119: 1837.34 | X119: 2067.01 | Y119: 2526.35 | Z119: 2985.68 | AA119: 3445.02 | AB119: 4134.02
A120: Havant | B120: 1349.686 | C120: 1574.6375 | D120: 1799.5775 | E120: 2024.529 | F120: 2474.4205 | G120: 2924.3235 | H120: 3374.215 | I120: 4049.058 | T120: Havant | U120: 1173.64 | V120: 1369.25 | W120: 1564.85 | X120: 1760.46 | Y120: 2151.67 | Z120: 2542.89 | AA120: 2934.1 | AB120: 3520.92
A121: Havering | B121: 1602.4905 | C121: 1869.578 | D121: 2136.654 | E121: 2403.7415 | F121: 2937.905 | G121: 3472.0685 | H121: 4006.232 | I121: 4807.483 | T121: Havering | U121: 1393.47 | V121: 1625.72 | W121: 1857.96 | X121: 2090.21 | Y121: 2554.7 | Z121: 3019.19 | AA121: 3483.68 | AB121: 4180.42
A122: Herefordshire | B122: 1616.785 | C122: 1886.253 | D122: 2155.7095 | E122: 2425.1775 | F122: 2964.102 | G122: 3503.038 | H122: 4041.9625 | I122: 4850.355 | T122: Herefordshire | U122: 1405.9 | V122: 1640.22 | W122: 1874.53 | X122: 2108.85 | Y122: 2577.48 | Z122: 3046.12 | AA122: 3514.75 | AB122: 4217.7
A123: Hertsmere | B123: 1442.5025 | C123: 1682.91 | D123: 1923.329 | E123: 2163.748 | F123: 2644.586 | G123: 3125.4125 | H123: 3606.2505 | I123: 4327.496 | T123: Hertsmere | U123: 1254.35 | V123: 1463.4 | W123: 1672.46 | X123: 1881.52 | Y123: 2299.64 | Z123: 2717.75 | AA123: 3135.87 | AB123: 3763.04
A124: High Peak | B124: 1680.4605 | C124: 1960.5315 | D124: 2240.6025 | E124: 2520.685 | F124: 3080.8385 | G124: 3640.992 | H124: 4201.1455 | I124: 5041.37 | T124: High Peak | U124: 1461.27 | V124: 1704.81 | W124: 1948.35 | X124: 2191.9 | Y124: 2678.99 | Z124: 3166.08 | AA124: 3653.17 | AB124: 4383.8
A125: Hillingdon | B125: 1663.4175 | C125: 1940.648 | D125: 2217.8785 | E125: 2495.1205 | F125: 3049.593 | G125: 3604.0655 | H125: 4158.538 | I125: 4990.241 | T125: Hillingdon | U125: 1446.45 | V125: 1687.52 | W125: 1928.59 | X125: 2169.67 | Y125: 2651.82 | Z125: 3133.97 | AA125: 3616.12 | AB125: 4339.34
A126: Hinckley & Bosworth | B126: 1651.9175 | C126: 1927.239 | D126: 2202.5605 | E126: 2477.882 | F126: 3028.525 | G126: 3579.1565 | H126: 4129.7995 | I126: 4955.764 | T126: Hinckley & Bosworth | U126: 1436.45 | V126: 1675.86 | W126: 1915.27 | X126: 2154.68 | Y126: 2633.5 | Z126: 3112.31 | AA126: 3591.13 | AB126: 4309.36
A127: Horsham | B127: 1731.44 | C127: 2020.0095 | D127: 2308.579 | E127: 2597.16 | F127: 3174.3105 | G127: 3751.4495 | H127: 4328.6 | I127: 5194.32 | T127: Horsham | U127: 1505.6 | V127: 1756.53 | W127: 2007.46 | X127: 2258.4 | Y127: 2760.27 | Z127: 3262.13 | AA127: 3764 | AB127: 4516.8
A128: Hounslow | B128: 1356.3675 | C128: 1582.4345 | D128: 1808.49 | E128: 2034.557 | F128: 2486.6795 | G128: 2938.802 | H128: 3390.9245 | I128: 4069.114 | T128: Hounslow | U128: 1179.45 | V128: 1376.03 | W128: 1572.6 | X128: 1769.18 | Y128: 2162.33 | Z128: 2555.48 | AA128: 2948.63 | AB128: 3538.36
A129: Huntingdonshire | B129: 1391.2355 | C129: 1623.11 | D129: 1854.9845 | E129: 2086.859 | F129: 2550.608 | G129: 3014.3455 | H129: 3478.0945 | I129: 4173.718 | T129: Huntingdonshire | U129: 1209.77 | V129: 1411.4 | W129: 1613.03 | X129: 1814.66 | Y129: 2217.92 | Z129: 2621.17 | AA129: 3024.43 | AB129: 3629.32
A130: Hyndburn | B130: 1105.7595 | C130: 1290.047 | D130: 1474.3345 | E130: 1658.6335 | F130: 2027.22 | G130: 2395.8065 | H130: 2764.393 | I130: 3317.267 | T130: Hyndburn | U130: 961.53 | V130: 1121.78 | W130: 1282.03 | X130: 1442.29 | Y130: 1762.8 | Z130: 2083.31 | AA130: 2403.82 | AB130: 2884.58
A131: Ipswich | B131: 1620.718 | C131: 1890.8415 | D131: 2160.9535 | E131: 2431.077 | F131: 2971.3125 | G131: 3511.5595 | H131: 4051.795 | I131: 4862.154 | T131: Ipswich | U131: 1409.32 | V131: 1644.21 | W131: 1879.09 | X131: 2113.98 | Y131: 2583.75 | Z131: 3053.53 | AA131: 3523.3 | AB131: 4227.96
A132: Isles of Scilly | B132: =U132*115% -> 1611.8745 | C132: =V132*115% -> 1880.526 | D132: =W132*115% -> 2149.166 | E132: =X132*115% -> 2417.8175 | F132: =Y132*115% -> 2955.109 | G132: =Z132*115% -> 3492.4005 | H132: =AA132*115% -> 4029.692 | I132: =AB132*115% -> 4835.635 | T132: Isles of Scilly | U132: 1401.63 | V132: 1635.24 | W132: 1868.84 | X132: 2102.45 | Y132: 2569.66 | Z132: 3036.87 | AA132: 3504.08 | AB132: 4204.9
A133: Islington | B133: 1648.6285 | C133: 1923.398 | D133: 2198.1675 | E133: 2472.937 | F133: 3022.476 | G133: 3572.015 | H133: 4121.5655 | I133: 4945.874 | T133: Islington | U133: 1433.59 | V133: 1672.52 | W133: 1911.45 | X133: 2150.38 | Y133: 2628.24 | Z133: 3106.1 | AA133: 3583.97 | AB133: 4300.76
A134: Kensington & Chelsea | B134: 1350.79 | C134: 1575.9255 | D134: 1801.0495 | E134: 2026.185 | F134: 2476.4445 | G134: 2926.7155 | H134: 3376.975 | I134: 4052.37 | T134: Kensington & Chelsea | U134: 1174.6 | V134: 1370.37 | W134: 1566.13 | X134: 1761.9 | Y134: 2153.43 | Z134: 2544.97 | AA134: 2936.5 | AB134: 3523.8
A135: King's Lynn & West Norfolk | B135: 1690.431 | C135: 1972.1695 | D135: 2253.908 | E135: 2535.6465 | F135: 3099.1235 | G135: 3662.6005 | H135: 4226.0775 | I135: 5071.293 | T135: King's Lynn & West Norfolk | U135: 1469.94 | V135: 1714.93 | W135: 1959.92 | X135: 2204.91 | Y135: 2694.89 | Z135: 3184.87 | AA135: 3674.85 | AB135: 4409.82
A136: Kirklees | B136: 1509.0875 | C136: 1760.604 | D136: 2012.1205 | E136: 2263.637 | F136: 2766.67 | G136: 3269.6915 | H136: 3772.7245 | I136: 4527.274 | T136: Kirklees | U136: 1312.25 | V136: 1530.96 | W136: 1749.67 | X136: 1968.38 | Y136: 2405.8 | Z136: 2843.21 | AA136: 3280.63 | AB136: 3936.76
A137: Knowsley | B137: 1675.5615 | C137: 1954.8275 | D137: 2234.082 | E137: 2513.348 | F137: 3071.8685 | G137: 3630.389 | H137: 4188.9095 | I137: 5026.696 | T137: Knowsley | U137: 1457.01 | V137: 1699.85 | W137: 1942.68 | X137: 2185.52 | Y137: 2671.19 | Z137: 3156.86 | AA137: 3642.53 | AB137: 4371.04
A138: Lambeth | B138: 1830.9265 | C138: 2136.079 | D138: 2441.243 | E138: 2746.3955 | F138: 3356.7005 | G138: 3967.017 | H138: 4577.322 | I138: 5492.791 | T138: Lambeth | U138: 1592.11 | V138: 1857.46 | W138: 2122.82 | X138: 2388.17 | Y138: 2918.87 | Z138: 3449.58 | AA138: 3980.28 | AB138: 4776.34
A139: Lancaster | B139: 1476.807 | C139: 1722.9415 | D139: 1969.076 | E139: 2215.2105 | F139: 2707.4795 | G139: 3199.7485 | H139: 3692.0175 | I139: 4430.421 | T139: Lancaster | U139: 1284.18 | V139: 1498.21 | W139: 1712.24 | X139: 1926.27 | Y139: 2354.33 | Z139: 2782.39 | AA139: 3210.45 | AB139: 3852.54
A140: Leeds | B140: 1577.616 | C140: 1840.552 | D140: 2103.488 | E140: 2366.424 | F140: 2892.296 | G140: 3418.168 | H140: 3944.04 | I140: 4732.848 | T140: Leeds | U140: 1371.84 | V140: 1600.48 | W140: 1829.12 | X140: 2057.76 | Y140: 2515.04 | Z140: 2972.32 | AA140: 3429.6 | AB140: 4115.52
A141: Lewes | B141: 1605.492 | C141: 1873.074 | D141: 2140.656 | E141: 2408.238 | F141: 2943.402 | G141: 3478.566 | H141: 4013.73 | I141: 4816.476 | T141: Lewes | U141: 1396.08 | V141: 1628.76 | W141: 1861.44 | X141: 2094.12 | Y141: 2559.48 | Z141: 3024.84 | AA141: 3490.2 | AB141: 4188.24
A142: Lewisham | B142: 1769.1255 | C142: 2063.974 | D142: 2358.8225 | E142: 2653.6825 | F142: 3243.391 | G142: 3833.0995 | H142: 4422.808 | I142: 5307.365 | T142: Lewisham | U142: 1538.37 | V142: 1794.76 | W142: 2051.15 | X142: 2307.55 | Y142: 2820.34 | Z142: 3333.13 | AA142: 3845.92 | AB142: 4615.1
A143: Lichfield | B143: 1615.0945 | C143: 1884.275 | D143: 2153.4555 | E143: 2422.636 | F143: 2960.997 | G143: 3499.358 | H143: 4037.7305 | I143: 4845.272 | T143: Lichfield | U143: 1404.43 | V143: 1638.5 | W143: 1872.57 | X143: 2106.64 | Y143: 2574.78 | Z143: 3042.92 | AA143: 3511.07 | AB143: 4213.28
A144: Lincoln | B144: 1678.7125 | C144: 1958.496 | D144: 2238.2795 | E144: 2518.063 | F144: 3077.63 | G144: 3637.197 | H144: 4196.7755 | I144: 5036.126 | T144: Lincoln | U144: 1459.75 | V144: 1703.04 | W144: 1946.33 | X144: 2189.62 | Y144: 2676.2 | Z144: 3162.78 | AA144: 3649.37 | AB144: 4379.24
A145: Liverpool | B145: 1568.991 | C145: 1830.4895 | D145: 2091.988 | E145: 2353.4865 | F145: 2876.4835 | G145: 3399.4805 | H145: 3922.4775 | I145: 4706.973 | T145: Liverpool | U145: 1364.34 | V145: 1591.73 | W145: 1819.12 | X145: 2046.51 | Y145: 2501.29 | Z145: 2956.07 | AA145: 3410.85 | AB145: 4093.02
A146: Luton | B146: 1596.0275 | C146: 1862.0225 | D146: 2128.029 | E146: 2394.0355 | F146: 2926.0485 | G146: 3458.05 | H146: 3990.063 | I146: 4788.071 | T146: Luton | U146: 1387.85 | V146: 1619.15 | W146: 1850.46 | X146: 2081.77 | Y146: 2544.39 | Z146: 3007 | AA146: 3469.62 | AB146: 4163.54
A147: Maidstone | B147: 1509.95 | C147: 1761.6045 | D147: 2013.259 | E147: 2264.925 | F147: 2768.2455 | G147: 3271.5545 | H147: 3774.875 | I147: 4529.85 | T147: Maidstone | U147: 1313 | V147: 1531.83 | W147: 1750.66 | X147: 1969.5 | Y147: 2407.17 | Z147: 2844.83 | AA147: 3282.5 | AB147: 3939
A148: Maldon | B148: 1748.4485 | C148: 2039.8585 | D148: 2331.2685 | E148: 2622.6785 | F148: 3205.4985 | G148: 3788.307 | H148: 4371.127 | I148: 5245.357 | T148: Maldon | U148: 1520.39 | V148: 1773.79 | W148: 2027.19 | X148: 2280.59 | Y148: 2787.39 | Z148: 3294.18 | AA148: 3800.98 | AB148: 4561.18
A149: Malvern Hills | B149: 1539.896 | C149: 1796.5415 | D149: 2053.187 | E149: 2309.844 | F149: 2823.1465 | G149: 3336.4375 | H149: 3849.74 | I149: 4619.688 | T149: Malvern Hills | U149: 1339.04 | V149: 1562.21 | W149: 1785.38 | X149: 2008.56 | Y149: 2454.91 | Z149: 2901.25 | AA149: 3347.6 | AB149: 4017.12
A150: Manchester | B150: 1640.9005 | C150: 1914.382 | D150: 2187.875 | E150: 2461.3565 | F150: 3008.3195 | G150: 3555.294 | H150: 4102.257 | I150: 4922.713 | T150: Manchester | U150: 1426.87 | V150: 1664.68 | W150: 1902.5 | X150: 2140.31 | Y150: 2615.93 | Z150: 3091.56 | AA150: 3567.18 | AB150: 4280.62
A151: Mansfield | B151: 1448.4365 | C151: 1689.8445 | D151: 1931.2525 | E151: 2172.6605 | F151: 2655.4765 | G151: 3138.281 | H151: 3621.097 | I151: 4345.321 | T151: Mansfield | U151: 1259.51 | V151: 1469.43 | W151: 1679.35 | X151: 1889.27 | Y151: 2309.11 | Z151: 2728.94 | AA151: 3148.78 | AB151: 3778.54
A152: Medway | B152: 1759.7415 | C152: 2053.0375 | D152: 2346.322 | E152: 2639.618 | F152: 3226.1985 | G152: 3812.779 | H152: 4399.3595 | I152: 5279.236 | T152: Medway | U152: 1530.21 | V152: 1785.25 | W152: 2040.28 | X152: 2295.32 | Y152: 2805.39 | Z152: 3315.46 | AA152: 3825.53 | AB152: 4590.64
A153: Melton | B153: 1546.1175 | C153: 1803.8095 | D153: 2061.49 | E153: 2319.182 | F153: 2834.5545 | G153: 3349.927 | H153: 3865.2995 | I153: 4638.364 | T153: Melton | U153: 1344.45 | V153: 1568.53 | W153: 1792.6 | X153: 2016.68 | Y153: 2464.83 | Z153: 2912.98 | AA153: 3361.13 | AB153: 4033.36
A154: Mendip | B154: 1639.7505 | C154: 1913.0365 | D154: 2186.3225 | E154: 2459.62 | F154: 3006.2035 | G154: 3552.787 | H154: 4099.3705 | I154: 4919.24 | T154: Mendip | U154: 1425.87 | V154: 1663.51 | W154: 1901.15 | X154: 2138.8 | Y154: 2614.09 | Z154: 3089.38 | AA154: 3564.67 | AB154: 4277.6
A155: Merton | B155: 1732.981 | C155: 2021.8035 | D155: 2310.6375 | E155: 2599.4715 | F155: 3177.128 | G155: 3754.796 | H155: 4332.4525 | I155: 5198.943 | T155: Merton | U155: 1506.94 | V155: 1758.09 | W155: 2009.25 | X155: 2260.41 | Y155: 2762.72 | Z155: 3265.04 | AA155: 3767.35 | AB155: 4520.82
A156: Mid Devon | B156: 1568.692 | C156: 1830.1445 | D156: 2091.5855 | E156: 2353.038 | F156: 2875.9315 | G156: 3398.8365 | H156: 3921.73 | I156: 4706.076 | T156: Mid Devon | U156: 1364.08 | V156: 1591.43 | W156: 1818.77 | X156: 2046.12 | Y156: 2500.81 | Z156: 2955.51 | AA156: 3410.2 | AB156: 4092.24
A157: Mid Suffolk | B157: 1682.3465 | C157: 1962.7395 | D157: 2243.1325 | E157: 2523.5255 | F157: 3084.3115 | G157: 3645.086 | H157: 4205.872 | I157: 5047.051 | T157: Mid Suffolk | U157: 1462.91 | V157: 1706.73 | W157: 1950.55 | X157: 2194.37 | Y157: 2682.01 | Z157: 3169.64 | AA157: 3657.28 | AB157: 4388.74
A158: Mid Sussex | B158: 1602.7665 | C158: 1869.8885 | D158: 2137.0105 | E158: 2404.144 | F158: 2938.3995 | G158: 3472.655 | H158: 4006.9105 | I158: 4808.288 | T158: Mid Sussex | U158: 1393.71 | V158: 1625.99 | W158: 1858.27 | X158: 2090.56 | Y158: 2555.13 | Z158: 3019.7 | AA158: 3484.27 | AB158: 4181.12
A159: Middlesbrough | B159: 1807.087 | C159: 2108.2605 | D159: 2409.4455 | E159: 2710.6305 | F159: 3312.989 | G159: 3915.359 | H159: 4517.7175 | I159: 5421.261 | T159: Middlesbrough | U159: 1571.38 | V159: 1833.27 | W159: 2095.17 | X159: 2357.07 | Y159: 2880.86 | Z159: 3404.66 | AA159: 3928.45 | AB159: 4714.14
A160: Milton Keynes | B160: 1247.773 | C160: 1455.739 | D160: 1663.6935 | E160: 1871.6595 | F160: 2287.58 | G160: 2703.512 | H160: 3119.4325 | I160: 3743.319 | T160: Milton Keynes | U160: 1085.02 | V160: 1265.86 | W160: 1446.69 | X160: 1627.53 | Y160: 1989.2 | Z160: 2350.88 | AA160: 2712.55 | AB160: 3255.06
A161: Mole Valley | B161: 1747.1375 | C161: 2038.329 | D161: 2329.5205 | E161: 2620.712 | F161: 3203.095 | G161: 3785.4665 | H161: 4367.8495 | I161: 5241.424 | T161: Mole Valley | U161: 1519.25 | V161: 1772.46 | W161: 2025.67 | X161: 2278.88 | Y161: 2785.3 | Z161: 3291.71 | AA161: 3798.13 | AB161: 4557.76
A162: New Forest | B162: 1643.557 | C162: 1917.4755 | D162: 2191.4055 | E162: 2465.3355 | F162: 3013.184 | G162: 3561.044 | H162: 4108.8925 | I162: 4930.671 | T162: New Forest | U162: 1429.18 | V162: 1667.37 | W162: 1905.57 | X162: 2143.77 | Y162: 2620.16 | Z162: 3096.56 | AA162: 3572.95 | AB162: 4287.54
A163: Newark & Sherwood | B163: 1663.9695 | C163: 1941.292 | D163: 2218.6145 | E163: 2495.9485 | F163: 3050.605 | G163: 3605.2615 | H163: 4159.918 | I163: 4991.897 | T163: Newark & Sherwood | U163: 1446.93 | V163: 1688.08 | W163: 1929.23 | X163: 2170.39 | Y163: 2652.7 | Z163: 3135.01 | AA163: 3617.32 | AB163: 4340.78
A164: Newcastle-under-Lyme | B164: 1628.009 | C164: 1899.34 | D164: 2170.671 | E164: 2442.0135 | F164: 2984.687 | G164: 3527.349 | H164: 4070.0225 | I164: 4884.027 | T164: Newcastle-under-Lyme | U164: 1415.66 | V164: 1651.6 | W164: 1887.54 | X164: 2123.49 | Y164: 2595.38 | Z164: 3067.26 | AA164: 3539.15 | AB164: 4246.98
A165: Newcastle-upon-Tyne | B165: 1600.8345 | C165: 1867.6345 | D165: 2134.4345 | E165: 2401.246 | F165: 2934.8575 | G165: 3468.469 | H165: 4002.0805 | I165: 4802.492 | T165: Newcastle-upon-Tyne | U165: 1392.03 | V165: 1624.03 | W165: 1856.03 | X165: 2088.04 | Y165: 2552.05 | Z165: 3016.06 | AA165: 3480.07 | AB165: 4176.08
A166: Newham | B166: 1573.3955 | C166: 1835.6185 | D166: 2097.853 | E166: 2360.0875 | F166: 2884.5565 | G166: 3409.014 | H166: 3933.483 | I166: 4720.175 | T166: Newham | U166: 1368.17 | V166: 1596.19 | W166: 1824.22 | X166: 2052.25 | Y166: 2508.31 | Z166: 2964.36 | AA166: 3420.42 | AB166: 4104.5
A167: North Devon | B167: 1632.3675 | C167: 1904.4345 | D167: 2176.49 | E167: 2448.557 | F167: 2992.6795 | G167: 3536.802 | H167: 4080.9245 | I167: 4897.114 | T167: North Devon | U167: 1419.45 | V167: 1656.03 | W167: 1892.6 | X167: 2129.18 | Y167: 2602.33 | Z167: 3075.48 | AA167: 3548.63 | AB167: 4258.36
A168: North East Derbyshire | B168: 1601.6165 | C168: 1868.543 | D168: 2135.481 | E168: 2402.419 | F168: 2936.295 | G168: 3470.1595 | H168: 4004.0355 | I168: 4804.838 | T168: North East Derbyshire | U168: 1392.71 | V168: 1624.82 | W168: 1856.94 | X168: 2089.06 | Y168: 2553.3 | Z168: 3017.53 | AA168: 3481.77 | AB168: 4178.12
A169: North East Lincolnshire | B169: 1580.951 | C169: 1844.439 | D169: 2107.927 | E169: 2371.4265 | F169: 2898.414 | G169: 3425.39 | H169: 3952.3775 | I169: 4742.853 | T169: North East Lincolnshire | U169: 1374.74 | V169: 1603.86 | W169: 1832.98 | X169: 2062.11 | Y169: 2520.36 | Z169: 2978.6 | AA169: 3436.85 | AB169: 4124.22
A170: North Hertfordshire | B170: 1619.4645 | C170: 1889.3695 | D170: 2159.2745 | E170: 2429.191 | F170: 2969.0125 | G170: 3508.834 | H170: 4048.6555 | I170: 4858.382 | T170: North Hertfordshire | U170: 1408.23 | V170: 1642.93 | W170: 1877.63 | X170: 2112.34 | Y170: 2581.75 | Z170: 3051.16 | AA170: 3520.57 | AB170: 4224.68
A171: North Kesteven | B171: 1697.1585 | C171: 1980.024 | D171: 2262.878 | E171: 2545.7435 | F171: 3111.463 | G171: 3677.1825 | H171: 4242.902 | I171: 5091.487 | T171: North Kesteven | U171: 1475.79 | V171: 1721.76 | W171: 1967.72 | X171: 2213.69 | Y171: 2705.62 | Z171: 3197.55 | AA171: 3689.48 | AB171: 4427.38
A172: North Lincolnshire | B172: 1633.6785 | C172: 1905.964 | D172: 2178.238 | E172: 2450.5235 | F172: 2995.083 | G172: 3539.6425 | H172: 4084.202 | I172: 4901.047 | T172: North Lincolnshire | U172: 1420.59 | V172: 1657.36 | W172: 1894.12 | X172: 2130.89 | Y172: 2604.42 | Z172: 3077.95 | AA172: 3551.48 | AB172: 4261.78
A173: North Norfolk | B173: 1723.183 | C173: 2010.3725 | D173: 2297.5735 | E173: 2584.7745 | F173: 3159.165 | G173: 3733.567 | H173: 4307.9575 | I173: 5169.549 | T173: North Norfolk | U173: 1498.42 | V173: 1748.15 | W173: 1997.89 | X173: 2247.63 | Y173: 2747.1 | Z173: 3246.58 | AA173: 3746.05 | AB173: 4495.26
A174: North Somerset | B174: 1674.5265 | C174: 1953.62 | D174: 2232.702 | E174: 2511.7955 | F174: 3069.971 | G174: 3628.1465 | H174: 4186.322 | I174: 5023.591 | T174: North Somerset | U174: 1456.11 | V174: 1698.8 | W174: 1941.48 | X174: 2184.17 | Y174: 2669.54 | Z174: 3154.91 | AA174: 3640.28 | AB174: 4368.34
A175: North Tyneside | B175: 1848.9355 | C175: 2157.0895 | D175: 2465.2435 | E175: 2773.3975 | F175: 3389.7055 | G175: 4006.0135 | H175: 4622.333 | I175: 5546.795 | T175: North Tyneside | U175: 1607.77 | V175: 1875.73 | W175: 2143.69 | X175: 2411.65 | Y175: 2947.57 | Z175: 3483.49 | AA175: 4019.42 | AB175: 4823.3
A176: North Warwickshire | B176: 1676.102 | C176: 1955.4485 | D176: 2234.795 | E176: 2514.153 | F176: 3072.8575 | G176: 3631.5505 | H176: 4190.255 | I176: 5028.306 | T176: North Warwickshire | U176: 1457.48 | V176: 1700.39 | W176: 1943.3 | X176: 2186.22 | Y176: 2672.05 | Z176: 3157.87 | AA176: 3643.7 | AB176: 4372.44
A177: North West Leicestershire | B177: 1628.8945 | C177: 1900.375 | D177: 2171.8555 | E177: 2443.336 | F177: 2986.297 | G177: 3529.258 | H177: 4072.2305 | I177: 4886.672 | T177: North West Leicestershire | U177: 1416.43 | V177: 1652.5 | W177: 1888.57 | X177: 2124.64 | Y177: 2596.78 | Z177: 3068.92 | AA177: 3541.07 | AB177: 4249.28
A178: Northumberland | B178: 1702.023 | C178: 1985.6935 | D178: 2269.364 | E178: 2553.0345 | F178: 3120.3755 | G178: 3687.7165 | H178: 4255.0575 | I178: 5106.069 | T178: Northumberland | U178: 1480.02 | V178: 1726.69 | W178: 1973.36 | X178: 2220.03 | Y178: 2713.37 | Z178: 3206.71 | AA178: 3700.05 | AB178: 4440.06
A179: Norwich | B179: 1788.204 | C179: 2086.238 | D179: 2384.272 | E179: 2682.306 | F179: 3278.374 | G179: 3874.442 | H179: 4470.51 | I179: 5364.612 | T179: Norwich | U179: 1554.96 | V179: 1814.12 | W179: 2073.28 | X179: 2332.44 | Y179: 2850.76 | Z179: 3369.08 | AA179: 3887.4 | AB179: 4664.88
A180: Nuneaton & Bedworth | B180: 1764.514 | C180: 2058.592 | D180: 2352.6815 | E180: 2646.771 | F180: 3234.9385 | G180: 3823.1175 | H180: 4411.285 | I180: 5293.542 | T180: Nuneaton & Bedworth | U180: 1534.36 | V180: 1790.08 | W180: 2045.81 | X180: 2301.54 | Y180: 2812.99 | Z180: 3324.45 | AA180: 3835.9 | AB180: 4603.08
A181: Oadby & Wigston | B181: 1505.281 | C181: 1756.165 | D181: 2007.0375 | E181: 2257.9215 | F181: 2759.678 | G181: 3261.446 | H181: 3763.2025 | I181: 4515.843 | T181: Oadby & Wigston | U181: 1308.94 | V181: 1527.1 | W181: 1745.25 | X181: 1963.41 | Y181: 2399.72 | Z181: 2836.04 | AA181: 3272.35 | AB181: 3926.82
A182: Oldham | B182: 1618.8665 | C182: 1888.668 | D182: 2158.481 | E182: 2428.294 | F182: 2967.92 | G182: 3507.5345 | H182: 4047.1605 | I182: 4856.588 | T182: Oldham | U182: 1407.71 | V182: 1642.32 | W182: 1876.94 | X182: 2111.56 | Y182: 2580.8 | Z182: 3050.03 | AA182: 3519.27 | AB182: 4223.12
A183: Oxford | B183: 1518.5865 | C183: 1771.6785 | D183: 2024.7705 | E183: 2277.874 | F183: 2784.0695 | G183: 3290.265 | H183: 3796.4605 | I183: 4555.748 | T183: Oxford | U183: 1320.51 | V183: 1540.59 | W183: 1760.67 | X183: 1980.76 | Y183: 2420.93 | Z183: 2861.1 | AA183: 3301.27 | AB183: 3961.52
A184: Pendle | B184: 1734.2805 | C184: 2023.333 | D184: 2312.374 | E184: 2601.4265 | F184: 3179.52 | G184: 3757.6135 | H184: 4335.707 | I184: 5202.853 | T184: Pendle | U184: 1508.07 | V184: 1759.42 | W184: 2010.76 | X184: 2262.11 | Y184: 2764.8 | Z184: 3267.49 | AA184: 3770.18 | AB184: 4524.22
A185: Peterborough | B185: 1729.7955 | C185: 2018.089 | D185: 2306.3825 | E185: 2594.6875 | F185: 3171.286 | G185: 3747.8845 | H185: 4324.483 | I185: 5189.375 | T185: Peterborough | U185: 1504.17 | V185: 1754.86 | W185: 2005.55 | X185: 2256.25 | Y185: 2757.64 | Z185: 3259.03 | AA185: 3760.42 | AB185: 4512.5
A186: Plymouth | B186: 1514.7455 | C186: 1767.1935 | D186: 2019.653 | E186: 2272.1125 | F186: 2777.0315 | G186: 3281.939 | H186: 3786.858 | I186: 4544.225 | T186: Plymouth | U186: 1317.17 | V186: 1536.69 | W186: 1756.22 | X186: 1975.75 | Y186: 2414.81 | Z186: 2853.86 | AA186: 3292.92 | AB186: 3951.5
A187: Portsmouth | B187: 1687.7975 | C187: 1969.099 | D187: 2250.4005 | E187: 2531.702 | F187: 3094.305 | G187: 3656.8965 | H187: 4219.4995 | I187: 5063.404 | T187: Portsmouth | U187: 1467.65 | V187: 1712.26 | W187: 1956.87 | X187: 2201.48 | Y187: 2690.7 | Z187: 3179.91 | AA187: 3669.13 | AB187: 4402.96
A188: Preston | B188: 1600.179 | C188: 1866.8755 | D188: 2133.572 | E188: 2400.2685 | F188: 2933.6615 | G188: 3467.0545 | H188: 4000.4475 | I188: 4800.537 | T188: Preston | U188: 1391.46 | V188: 1623.37 | W188: 1855.28 | X188: 2087.19 | Y188: 2551.01 | Z188: 3014.83 | AA188: 3478.65 | AB188: 4174.38
A189: Reading | B189: 1720.63 | C189: 2007.394 | D189: 2294.1695 | E189: 2580.945 | F189: 3154.4845 | G189: 3728.0355 | H189: 4301.575 | I189: 5161.89 | T189: Reading | U189: 1496.2 | V189: 1745.56 | W189: 1994.93 | X189: 2244.3 | Y189: 2743.03 | Z189: 3241.77 | AA189: 3740.5 | AB189: 4488.6
A190: Redbridge | B190: 1607.8725 | C190: 1875.8455 | D190: 2143.8185 | E190: 2411.803 | F190: 2947.7605 | G190: 3483.718 | H190: 4019.6755 | I190: 4823.606 | T190: Redbridge | U190: 1398.15 | V190: 1631.17 | W190: 1864.19 | X190: 2097.22 | Y190: 2563.27 | Z190: 3029.32 | AA190: 3495.37 | AB190: 4194.44
A191: Redcar & Cleveland | B191: 1701.2525 | C191: 1984.7965 | D191: 2268.3405 | E191: 2551.8845 | F191: 3118.9725 | G191: 3686.049 | H191: 4253.137 | I191: 5103.769 | T191: Redcar & Cleveland | U191: 1479.35 | V191: 1725.91 | W191: 1972.47 | X191: 2219.03 | Y191: 2712.15 | Z191: 3205.26 | AA191: 3698.38 | AB191: 4438.06
A192: Redditch | B192: 1591.692 | C192: 1856.974 | D192: 2122.256 | E192: 2387.538 | F192: 2918.102 | G192: 3448.666 | H192: 3979.23 | I192: 4775.076 | T192: Redditch | U192: 1384.08 | V192: 1614.76 | W192: 1845.44 | X192: 2076.12 | Y192: 2537.48 | Z192: 2998.84 | AA192: 3460.2 | AB192: 4152.24
A193: Reigate & Banstead | B193: 1694.962 | C193: 1977.448 | D193: 2259.9455 | E193: 2542.443 | F193: 3107.4265 | G193: 3672.4215 | H193: 4237.405 | I193: 5084.886 | T193: Reigate & Banstead | U193: 1473.88 | V193: 1719.52 | W193: 1965.17 | X193: 2210.82 | Y193: 2702.11 | Z193: 3193.41 | AA193: 3684.7 | AB193: 4421.64
A194: Ribble Valley | B194: 1783.811 | C194: 2081.109 | D194: 2378.407 | E194: 2675.7165 | F194: 3270.324 | G194: 3864.92 | H194: 4459.5275 | I194: 5351.433 | T194: Ribble Valley | U194: 1551.14 | V194: 1809.66 | W194: 2068.18 | X194: 2326.71 | Y194: 2843.76 | Z194: 3360.8 | AA194: 3877.85 | AB194: 4653.42
A195: Richmondshire | B195: 1629.9985 | C195: 1901.663 | D195: 2173.339 | E195: 2445.0035 | F195: 2988.3325 | G195: 3531.673 | H195: 4075.002 | I195: 4890.007 | T195: Richmondshire | U195: 1417.39 | V195: 1653.62 | W195: 1889.86 | X195: 2126.09 | Y195: 2598.55 | Z195: 3071.02 | AA195: 3543.48 | AB195: 4252.18
A196: Rochdale | B196: =U196*115% -> 1660.577 | C196: =V196*115% -> 1937.336 | D196: =W196*115% -> 2214.095 | E196: =X196*115% -> 2490.8655 | F196: =Y196*115% -> 3044.395 | G196: =Z196*115% -> 3597.913 | H196: =AA196*115% -> 4151.4425 | I196: =AB196*115% -> 4981.731 | T196: Rochdale | U196: 1443.98 | V196: 1684.64 | W196: 1925.3 | X196: 2165.97 | Y196: 2647.3 | Z196: 3128.62 | AA196: 3609.95 | AB196: 4331.94
A197: Rochford | B197: 1664.1075 | C197: 1941.453 | D197: 2218.7985 | E197: 2496.1555 | F197: 3050.858 | G197: 3605.5605 | H197: 4160.263 | I197: 4992.311 | T197: Rochford | U197: 1447.05 | V197: 1688.22 | W197: 1929.39 | X197: 2170.57 | Y197: 2652.92 | Z197: 3135.27 | AA197: 3617.62 | AB197: 4341.14
A198: Rossendale | B198: 1771.4025 | C198: 2066.642 | D198: 2361.87 | E198: 2657.1095 | F198: 3247.577 | G198: 3838.0445 | H198: 4428.512 | I198: 5314.219 | T198: Rossendale | U198: 1540.35 | V198: 1797.08 | W198: 2053.8 | X198: 2310.53 | Y198: 2823.98 | Z198: 3337.43 | AA198: 3850.88 | AB198: 4621.06
A199: Rother | B199: 1547.2215 | C199: 1805.0975 | D199: 2062.962 | E199: 2320.838 | F199: 2836.5785 | G199: 3352.319 | H199: 3868.0595 | I199: 4641.676 | T199: Rother | U199: 1345.41 | V199: 1569.65 | W199: 1793.88 | X199: 2018.12 | Y199: 2466.59 | Z199: 2915.06 | AA199: 3363.53 | AB199: 4036.24
A200: Rotherham | B200: 1856.5485 | C200: 2165.9675 | D200: 2475.3865 | E200: 2784.817 | F200: 3403.6665 | G200: 4022.516 | H200: 4641.3655 | I200: 5569.634 | T200: Rotherham | U200: 1614.39 | V200: 1883.45 | W200: 2152.51 | X200: 2421.58 | Y200: 2959.71 | Z200: 3497.84 | AA200: 4035.97 | AB200: 4843.16
... 98 more rows

Sheet 2 - Income (hidden)
S1: 1 | T1: 1 | V1: 1
B2: Income | S2: 0.8 | T2: 0.75 | V2: 2
S3: 0.5 | T3: 0.5 | V3: 3
B4: Applicant 1 | J4: Applicant 2
B5: Employed (Monthly) | D5: 1 | E5: 2 | F5: 3 (latest) | G5: Weighting | H5: Amount Used | J5: Employed (Monthly) | L5: =D5 -> 1 | M5: =E5 -> 2 | N5: =F5 -> 3 (latest) | O5: Weighting | P5: Amount Used
B6: Basic Pay | C6: Gross Monthly Basic | G6: 1 | H6: =IFERROR((SUM(D6:F6)/COUNTA(D6:F6))*G6,0) -> 0 | J6: Basic Pay | K6: Gross Monthly Basic | O6: 1 | P6: =IFERROR((SUM(L6:N6)/COUNTA(L6:N6))*O6,0) -> 0
C7: Net Monthly Basic | G7: 1 | H7: =IFERROR((SUM(D7:F7)/COUNTA(D7:F7))*G7,0) -> 0 | K7: Net Monthly Basic | O7: 1 | P7: =IFERROR((SUM(L7:N7)/COUNTA(L7:N7))*O7,0) -> 0
B8: Overtime | C8: Gross Overtime | G8: 0.5 | H8: =IFERROR((SUM(D8:F8)/COUNTA(D8:F8))*G8,0) -> 0 | J8: Overtime | K8: Gross Overtime | O8: 0.5 | P8: =IFERROR((SUM(L8:N8)/COUNTA(L8:N8))*O8,0) -> 0
C9: Net Monthly O/T | G9: 0.5 | H9: 0 | K9: Net Monthly O/T | O9: 0.5 | P9: 0
B10: Self-Employed (Annual) | D10: 1 | E10: 2 | F10: 3 (latest) | G10: AVG | H10: Amount Used | J10: Self-Employed (Annual) | L10: 1 | M10: 2 | N10: =F10 -> 3 (latest) | O10: AVG | P10: Amount Used
B11: Net Profit | C11: Gross Net Profit | G11: 2 | H11: =IF(F11="",0,IF(G11=1,F11,IF(G11=2,AVERAGE(E11:F11),IF(G11=3,AVERAGE(D11:F11),"")))) -> 0 | J11: Net Profit | K11: Gross Net Profit | O11: 2 | P11: =IF(N11="",0,IF(O11=1,N11,IF(O11=2,AVERAGE(M11:N11),IF(O11=3,AVERAGE(L11:N11),"")))) -> 0
C12: Net Profit After Tax | G12: 2 | H12: =IF(F12="",0,IF(G12=1,F12,IF(G12=2,AVERAGE(E12:F12),IF(G12=3,AVERAGE(D12:F12),"0")))) -> 0 | K12: Net Profit After Tax | O12: 2 | P12: =IF(N12="",0,IF(O12=1,N12,IF(O12=2,AVERAGE(M12:N12),IF(O12=3,AVERAGE(L12:N12),"0")))) -> 0
B13: Salary | C13: Gross Salary | G13: 2 | H13: =IF(F13="",0,IF(G13=1,F13,IF(G13=2,AVERAGE(E13:F13),IF(G13=3,AVERAGE(D13:F13),"")))) -> 0 | J13: Salary | K13: Gross Salary | O13: 2 | P13: =IF(N13="",0,IF(O13=1,N13,IF(O13=2,AVERAGE(M13:N13),IF(O13=3,AVERAGE(L13:N13),"")))) -> 0
C14: Net Salary | G14: 2 | H14: =IF(F14="",0,IF(G14=1,F14,IF(G14=2,AVERAGE(E14:F14),IF(G14=3,AVERAGE(D14:F14),"")))) -> 0 | K14: Net Salary | O14: 2 | P14: =IF(N14="",0,IF(O14=1,N14,IF(O14=2,AVERAGE(M14:N14),IF(O14=3,AVERAGE(L14:N14),"")))) -> 0
B15: Dividends | C15: Gross Dividends | G15: 2 | H15: =IF(F15="",0,IF(G15=1,F15,IF(G15=2,AVERAGE(E15:F15),IF(G15=3,AVERAGE(D15:F15),"")))) -> 0 | J15: Dividends | K15: Gross Dividends | O15: 2 | P15: =IF(N15="",0,IF(O15=1,N15,IF(O15=2,AVERAGE(M15:N15),IF(O15=3,AVERAGE(L15:N15),"")))) -> 0
C16: Net Dividends | G16: 2 | H16: =IF(F16="",0,IF(G16=1,F16,IF(G16=2,AVERAGE(E16:F16),IF(G16=3,AVERAGE(D16:F16),"")))) -> 0 | K16: Net Dividends | O16: 2 | P16: =IF(N16="",0,IF(O16=1,N16,IF(O16=2,AVERAGE(M16:N16),IF(O16=3,AVERAGE(L16:N16),"")))) -> 0
B17: Rental Income | C17: Gross Land and Property | G17: 0.5 | H17: =IF(ISERROR(SUM(D17:F17)/COUNTA(D17:F17)),0,SUM(D17:F17)/COUNTA(D17:F17)*G17) -> 0 | J17: Rental Income | K17: Gross Land and Property | O17: 0.5 | P17: =IF(ISERROR(SUM(L17:N17)/COUNTA(L17:N17)),0,SUM(L17:N17)/COUNTA(L17:N17)*O17) -> 0
C18: Net Land and Property | G18: 0.5 | H18: =IF(ISERROR(SUM(D18:F18)/COUNTA(D18:F18)),0,SUM((D18:F18)/COUNTA(D18:F18))*G18) -> 0 | K18: Net Land and Property | O18: 0.5 | P18: =IF(ISERROR(SUM(L18:N18)/COUNTA(L18:N18)),0,SUM((L18:N18)/COUNTA(L18:N18))*O18) -> 0
B19: Retired (Monthly) | D19: 1 | E19: 2 | F19: 3 (latest) | G19: Weighting | H19: Amount Used | J19: Retired (Monthly) | L19: =D19 -> 1 | M19: =E19 -> 2 | N19: =F19 -> 3 (latest) | O19: Weighting | P19: Amount Used
B20: State | C20: State Pension | G20: 1 | H20: =IF(ISERROR(SUM(D20:F20)/COUNTA(D20:F20)),0,SUM(D20:F20)/COUNTA(D20:F20)*G20) -> 0 | J20: State | K20: State Pension | O20: 1 | P20: =IF(ISERROR(SUM(L20:N20)/COUNTA(L20:N20)),0,SUM(L20:N20)/COUNTA(L20:N20)*O20) -> 0
B21: Private Pension 1 | C21: PP1 Gross | G21: 1 | H21: =IF(ISERROR(SUM(D21:F21)/COUNTA(D21:F21)),0,SUM(D21:F21)/COUNTA(D21:F21)*G21) -> 0 | J21: Private Pension 1 | K21: PP1 Gross | O21: 1 | P21: 0
C22: PP 1 Net | G22: 1 | H22: =IF(ISERROR(SUM(D22:F22)/COUNTA(D22:F22)),0,SUM(D22:F22)/COUNTA(D22:F22)*G22) -> 0 | K22: PP 1 Net | O22: 1 | P22: 0
B23: Private Pension 2 | C23: PP 2 Gross | G23: 1 | H23: =IF(ISERROR(SUM(D23:F23)/COUNTA(D23:F23)),0,SUM(D23:F23)/COUNTA(D23:F23)*G23) -> 0 | J23: Private Pension 2 | K23: PP 2 Gross | O23: 1 | P23: 0
C24: PP 2 Net | G24: 1 | H24: =IF(ISERROR(SUM(D24:F24)/COUNTA(D24:F24)),0,SUM(D24:F24)/COUNTA(D24:F24)*G24) -> 0 | K24: PP 2 Net | O24: 1 | P24: 0
B25: Private Pension 3 | C25: PP 3 Gross | G25: 1 | H25: 0 | J25: Private Pension 3 | K25: PP 3 Gross | O25: 1 | P25: 0
C26: PP 4 Net | G26: 1 | H26: 0 | K26: PP 4 Net | O26: 1 | P26: 0
B27: Benefits/Maintenance (Monthly) | D27: 1 | E27: 2 | F27: =F5 -> 3 (latest) | G27: Weighting | H27: Amount Used | J27: Benefits/Maintenance (Monthly) | L27: =D27 -> 1 | M27: =E27 -> 2 | N27: =F27 -> 3 (latest) | O27: Weighting | P27: Amount Used
B28: Item 1 | G28: 1 | H28: =IF(ISERROR(SUM(D28:F28)/COUNTA(D28:F28)),0,SUM(D28:F28)/COUNTA(D28:F28)*G28) -> 0 | J28: Item 1 | O28: 1 | P28: =IF(ISERROR(SUM(L28:N28)/COUNTA(L28:N28)),0,SUM(L28:N28)/COUNTA(L28:N28)*O28) -> 0
B29: Item 2 | G29: 1 | H29: =IF(ISERROR(SUM(D29:F29)/COUNTA(D29:F29)),0,SUM(D29:F29)/COUNTA(D29:F29)*G29) -> 0 | J29: Item 2 | O29: 1 | P29: =IF(ISERROR(SUM(L29:N29)/COUNTA(L29:N29)),0,SUM(L29:N29)/COUNTA(L29:N29)*O29) -> 0
B30: Total Annual Gross Pay - Applicant 1 | H30: =SUM((H6*12),(H8*12),H11,H13,H15,H17,(H20*12),(H21*12),(H23*12),(H25*12),(H28*12),(H29*12)) -> 0 | J30: Total Annual Gross Pay - Applicant 2 | P30: =SUM((P6*12),(P8*12),P11,P13,P15,P17,(P20*12),(P21*12),(P23*12),(P25*12),(P28*12),(P29*12)) -> 0
B31: Total Annual Net Pay - Applicant 1 | H31: =SUM((H7*12),(H9*12),H12,H14,H16,H18,(H20*12),(H22*12),(H24*12),(H26*12),(H28*12),(H29*12)) -> 0 | J31: Total Annual Net Pay - Applicant 2 | P31: =SUM((P7*12),(P9*12),P12,P14,P16,P18,(P20*12),(P22*12),(P24*12),(P26*12),(P28*12),(P29*12)) -> 0
B33: Year to data pay calculation | D33: Year to Date Pay | F33: Period | G33: Average Pay | J33: Year to data pay calculation | L33: Year to Date Pay | N33: Period | O33: Average Pay
G34: =IF(D34="","",D34/F34) ->  | O34: =IF(L34="","",L34/N34) -> 
B36: Applicant 3 | J36: Applicant 4
B37: Employed (Monthly) | D37: 1 | E37: 2 | F37: 3 (latest) | G37: Weighting | H37: Amount Used | J37: Employed (Monthly) | L37: 1 | M37: 2 | N37: 3 (latest) | O37: Weighting | P37: Amount Used
B38: Basic Pay | C38: Gross Monthly Basic | G38: 1 | H38: =IF(ISERROR(AVERAGE(D38:F38)),0,AVERAGE(D38:F38)) -> 0 | J38: Basic Pay | K38: Gross Monthly Basic | O38: 1 | P38: =IF(ISERROR(AVERAGE(L38:N38)),0,AVERAGE(L38:N38)) -> 0
C39: Net Monthly Basic | G39: 1 | H39: =IF(ISERROR(AVERAGE(D39:F39)),0,AVERAGE(D39:F39)) -> 0 | K39: Net Monthly Basic | O39: 1 | P39: =IF(ISERROR(AVERAGE(L39:N39)),0,AVERAGE(L39:N39)) -> 0
B40: Overtime | C40: Gross Overtime | G40: 0.5 | H40: =IF(ISERROR(AVERAGE(D40:F40)),0,AVERAGE(D40:F40))*G40 -> 0 | J40: Overtime | K40: Gross Overtime | O40: 0.5 | P40: =IF(ISERROR(AVERAGE(L40:N40)),0,AVERAGE(L40:N40))*O40 -> 0
C41: Net Monthly O/T | G41: 0.5 | H41: =IF(ISERROR(AVERAGE(D41:F41)),0,AVERAGE(D41:F41))*G41 -> 0 | K41: Net Monthly O/T | O41: 0.5 | P41: =IF(ISERROR(AVERAGE(L41:N41)),0,AVERAGE(L41:N41))*O41 -> 0
B42: Self-Employed (Annual) | D42: 1 | E42: 2 | F42: 3 (latest) | G42: AVG | H42: Amount Used | J42: Self-Employed (Annual) | L42: 1 | M42: 2 | N42: 3 (latest) | O42: AVG | P42: Amount Used
B43: Net Profit | C43: Gross Net Profit | G43: 2 | H43: =IF(F43="",0,IF(G43=1,F43,IF(G43=2,AVERAGE(E43:F43),IF(G43=3,AVERAGE(D43:F43),"")))) -> 0 | J43: Net Profit | K43: Gross Net Profit | O43: 2 | P43: =IF(N43="",0,IF(O43=1,N43,IF(O43=2,AVERAGE(M43:N43),IF(O43=3,AVERAGE(L43:N43),"")))) -> 0
C44: Net Profit After Tax | G44: 2 | H44: =IF(F44="",0,IF(G44=1,F44,IF(G44=2,AVERAGE(E44:F44),IF(G44=3,AVERAGE(D44:F44),"0")))) -> 0 | K44: Net Profit After Tax | O44: 2 | P44: =IF(N44="",0,IF(O44=1,N44,IF(O44=2,AVERAGE(M44:N44),IF(O44=3,AVERAGE(L44:N44),"0")))) -> 0
B45: Salary | C45: Gross Salary | G45: 2 | H45: =IF(F45="",0,IF(G45=1,F45,IF(G45=2,AVERAGE(E45:F45),IF(G45=3,AVERAGE(D45:F45),"")))) -> 0 | J45: Salary | K45: Gross Salary | O45: 2 | P45: =IF(N45="",0,IF(O45=1,N45,IF(O45=2,AVERAGE(M45:N45),IF(O45=3,AVERAGE(L45:N45),"")))) -> 0
C46: Net Salary | G46: 2 | H46: =IF(F46="",0,IF(G46=1,F46,IF(G46=2,AVERAGE(E46:F46),IF(G46=3,AVERAGE(D46:F46),"")))) -> 0 | K46: Net Salary | O46: 2 | P46: =IF(N46="",0,IF(O46=1,N46,IF(O46=2,AVERAGE(M46:N46),IF(O46=3,AVERAGE(L46:N46),"")))) -> 0
B47: Dividends | C47: Gross Dividends | G47: 2 | H47: =IF(F47="",0,IF(G47=1,F47,IF(G47=2,AVERAGE(E47:F47),IF(G47=3,AVERAGE(D47:F47),"")))) -> 0 | J47: Dividends | K47: Gross Dividends | O47: 2 | P47: =IF(N47="",0,IF(O47=1,N47,IF(O47=2,AVERAGE(M47:N47),IF(O47=3,AVERAGE(L47:N47),"")))) -> 0
C48: Net Dividends | G48: 2 | H48: =IF(F48="",0,IF(G48=1,F48,IF(G48=2,AVERAGE(E48:F48),IF(G48=3,AVERAGE(D48:F48),"")))) -> 0 | K48: Net Dividends | O48: 2 | P48: =IF(N48="",0,IF(O48=1,N48,IF(O48=2,AVERAGE(M48:N48),IF(O48=3,AVERAGE(L48:N48),"")))) -> 0
B49: Rental Income | C49: Gross Land and Property | G49: 0.5 | H49: =IF(ISERROR(SUM(D49:F49)/COUNTA(D49:F49)),0,SUM(D49:F49)/COUNTA(D49:F49)*G49) -> 0 | J49: Rental Income | K49: Gross Land and Property | O49: 0.5 | P49: =IF(ISERROR(SUM(L49:N49)/COUNTA(L49:N49)),0,SUM(L49:N49)/COUNTA(L49:N49)*O49) -> 0
C50: Net Land and Property | G50: 0.5 | H50: =IF(ISERROR(SUM(D50:F50)/COUNTA(D50:F50)),0,SUM((D50:F50)/COUNTA(D50:F50))*G50) -> 0 | K50: Net Land and Property | O50: 0.5 | P50: =IF(ISERROR(SUM(L50:N50)/COUNTA(L50:N50)),0,SUM((L50:N50)/COUNTA(L50:N50))*O50) -> 0
B51: Retired (Monthly) | D51: =D19 -> 1 | E51: =E19 -> 2 | F51: =F19 -> 3 (latest) | G51: Weighting | H51: Amount Used | J51: Retired (Monthly) | L51: 1 | M51: 2 | N51: 3 (latest) | O51: Weighting | P51: Amount Used
B52: State | C52: State Pension | G52: 1 | H52: =IF(ISERROR(SUM(D52:F52)/COUNTA(D52:F52)),0,SUM(D52:F52)/COUNTA(D52:F52)*G52) -> 0 | J52: State | K52: State Pension | O52: 1 | P52: =IF(ISERROR(SUM(L52:N52)/COUNTA(L52:N52)),0,SUM(L52:N52)/COUNTA(L52:N52)*O52) -> 0
B53: Private Pension 1 | C53: PP1 Gross | G53: 1 | H53: 0 | J53: Private Pension 1 | K53: PP1 Gross | O53: 1 | P53: 0
C54: PP 1 Net | G54: 1 | H54: 0 | K54: PP 1 Net | O54: 1 | P54: 0
B55: Private Pension 2 | C55: PP 2 Gross | G55: 1 | H55: 0 | J55: Private Pension 2 | K55: PP 2 Gross | O55: 1 | P55: 0
C56: PP 2 Net | G56: 1 | H56: 0 | K56: PP 2 Net | O56: 1 | P56: 0
B57: Private Pension 3 | C57: PP 3 Gross | G57: 1 | H57: 0 | J57: Private Pension 3 | K57: PP 3 Gross | O57: 1 | P57: 0
C58: PP 4 Net | G58: 1 | H58: 0 | K58: PP 4 Net | O58: 1 | P58: 0
B59: Benefits/Maintenance (Monthly) | D59: =D27 -> 1 | E59: =E27 -> 2 | F59: =F27 -> 3 (latest) | G59: Weighting | H59: Amount Used | J59: Benefits/Maintenance (Monthly) | L59: 1 | M59: 2 | N59: 3 (latest) | O59: Weighting | P59: Amount Used
B60: Item 1 | G60: 1 | H60: =IF(ISERROR(SUM(D60:F60)/COUNTA(D60:F60)),0,SUM(D60:F60)/COUNTA(D60:F60)*G60) -> 0 | J60: Item 1 | O60: 1 | P60: =IF(ISERROR(SUM(L60:N60)/COUNTA(L60:N60)),0,SUM(L60:N60)/COUNTA(L60:N60)*O60) -> 0
B61: Item 2 | G61: 1 | H61: =IF(ISERROR(SUM(D61:F61)/COUNTA(D61:F61)),0,SUM(D61:F61)/COUNTA(D61:F61)*G61) -> 0 | J61: Item 2 | O61: 1 | P61: =IF(ISERROR(SUM(L61:N61)/COUNTA(L61:N61)),0,SUM(L61:N61)/COUNTA(L61:N61)*O61) -> 0
B62: Total Annual Gross Pay - Applicant 3 | H62: =SUM((H38*12),(H40*12),H43,H45,H47,H49,(H52*12),(H53*12),(H55*12),(H57*12),(H60*12),(H61*12)) -> 0 | J62: Total Annual Gross Pay - Applicant 4 | P62: =SUM((P38*12),(P40*12),P43,P45,P47,P49,(P52*12),(P53*12),(P55*12),(P57*12),(P60*12),(P61*12)) -> 0
B63: Total Annual Net Pay - Applicant 3 | H63: =SUM((H39*12),(H41*12),H44,H46,H48,H50,(H52*12),(H54*12),(H56*12),(H58*12),(H60*12),(H61*12)) -> 0 | J63: Total Annual Net Pay - Applicant 4 | P63: =SUM((P39*12),(P41*12),P44,P46,P48,P50,(P52*12),(P54*12),(P56*12),(P58*12),(P60*12),(P61*12)) -> 0
B65: Year to data pay calculation | D65: Year to Date Pay | F65: Period | G65: Average Pay | J65: Year to data pay calculation | L65: Year to Date Pay | N65: Period | O65: Average Pay
G66: =IF(D66="","",D66/F66) ->  | O66: =IF(L66="","",L66/N66) -> 

Sheet 3 - Debt (hidden)
C1: Credit Commitments
A3: 1 | C3: App No | D3: Company | E3: Credit Type | F3: Balance | G3: Payment | H3: To Be Used | I3: Include | J3: Justification | L3: Total to be included
A4: 2 | H4: =IF(E4="Credit Card",F4*3%,G4) -> 0 | L4: App 1 | M4: =SUMIFS(H:H,C:C,A3,I:I,"Yes") -> 0
A5: 3 | H5: =IF(E5="Credit Card",F5*3%,G5) -> 0 | L5: App 2 | M5: =SUMIFS(H:H,C:C,A4,I:I,"Yes") -> 0
A6: 4 | H6: 0 | L6: App 3 | M6: =SUMIFS(H:H,C:C,A5,I:I,"Yes") -> 0
H7: 0 | L7: App 4 | M7: =SUMIFS(H:H,C:C,A6,I:I,"Yes") -> 0
H8: 0
A9: Unsecured Loan | H9: 0 | L9: Total | M9: =SUM(M4:M7) -> 0
A10: Hire Purchase | H10: 0
A11: Credit Card | H11: 0
A12: Catalogue | H12: 0
A13: Short Term Credit | H13: 0
A14: ICR Contingency | H14: 0
H15: 0
H16: 0
A17: Yes | H17: 0
A18: No | H18: 0
H19: 0
H20: 0
H21: 0
H22: 0
H23: 0
H24: 0
C26: Stressed Mortgage Payment Calculator
C28: Mortgage Amount £
C29: Repayment Type
C30: Remaining Term (years)
C31: Stressed Rate
C32: Monthly Repayment Factor | F32: =-PMT(F31/100,F30,1000)/12 -> 
C33: Stressed Payment | F33: =IFERROR(IF(F29="Interest Only",(F28*F31/1200),(F28/1000*F32)),"") -> 

Sheet 4 - Expenditure (hidden)
B1: Expenditure Figures input into 'Underwriter confirmed' column used against ONS | P1: Adviser Input (Level 1 - 2)
P2: Bank Statement Verified (Level 3 - 4)
B3: Items | C3: Application input | D3: Month 1 | E3: Month 2 | F3: Month 3 | G3: Underwriter Confirmed | H3: Source | I3: ONS | J3: Final Value | K3: Value Used | L3: Justification | P3: Other - Stated in rationale
B4: Council Tax | I4: 0 | J4: =G4*110% -> 0 | K4: =IF(H4="","",IFERROR(IF(J4=0,"",IF(J4=I4,"ONS",H4)),"")) -> 
B5: Ground Rent/Service Charge | J5: =G5 -> 0 | K5: =IF(H5="","",IFERROR(IF(J5=0,"",IF(J5=I5,"ONS",H5)),"")) -> 
B6: Utility Total | I6: ='1 - Main'!P38 ->  | J6: =MAX(G6:I6) -> 0
B7: Food/Groceries | I7: ='1 - Main'!P39 ->  | J7: 0
B8: Essential Travel | I8: ='1 - Main'!P40 ->  | J8: 0
B9: Essential Insurance | I9: ='1 - Main'!P41 ->  | J9: 0
B10: Telephone/ TV/ Satellite | I10: ='1 - Main'!P42 ->  | J10: 0
B11: Childcare | I11: ='1 - Main'!P43 -> 0 | J11: =G11 -> 0
B12: Clothing/Footwear | I12: ='1 - Main'!P44 ->  | J12: 0
B13: Other | I13: ='1 - Main'!P46 ->  | J13: ='1 - Main'!Q46 ->  | K13: =IF(H13="","",IFERROR(IF(J13=0,"",IF(J13=I13,"ONS",H13)),"")) -> 
B15: Other Items (non-specific) | C15: Application input | D15: =D3 -> Month 1 | E15: =E3 -> Month 2 | F15: =F3 -> Month 3 | G15: Underwriter Confirmed | H15: Source | I15: ONS | J15: Final Value | L15: Justification
J16: =G16 -> 0 | K16: =IF(J16=0,"",IF(J16=I16,"ONS",H16)) -> 
J17: 0
J18: 0
J19: 0
J20: 0
J21: 0
J22: 0
J23: 0
B24: Total Other | I24: 0 | J24: =SUM(J16:J23) -> 0
B26: Total Expenditure | J26: =SUM(J4:J13)+J24 -> 0

Sheet 5 - Notes (hidden)
A1: BTL in Background
B3: Total Mortgage Debt £ | C3: Stressed interest rate | D3: Total Annual Rental Income | E3: Stressed Mortgage payment (D) | F3: Surplus (shortfall) C-D | G3: ICR
A4: 1. Single Residential Units (personal basic rate tax payer or Ltd Co) | E4: =ROUND(+B4*C4,0) -> 0 | F4: =D4-E4 -> 0 | G4: =IFERROR(D4/E4,"") ->  | I4: 1. Stressed payment total | J4: =E4 -> 0 | K4: 2. Stressed payment total | L4: =E5 -> 0 | M4: 3. Stressed payment total | N4: =E6 -> 0
A5: 2. Single Residential Units (personal higher rate tax payer) | E5: 0 | F5: 0 | I5: 125% of stressed payment | J5: =J4*1.25 -> 0 | K5: 140% of stressed payment | L5: =L4*1.4 -> 0 | M5: 145% of stressed payment | N5: =N4*1.45 -> 0
A6: 3. Holiday Let | E6: =ROUND(+B6*C6,0) -> 0 | F6: =D6-E6 -> 0 | G6: =IFERROR(D6/E6,"") ->  | I6: Rent | J6: =D4 -> 0 | K6: Rent | L6: =D5 -> 0 | M6: Rent | N6: =D6 -> 0
A7: 4. HMOs (personal basic rate tax payer or Ltd Co) | E7: 0 | F7: 0 | I7: Surplus/Shortfall PA | J7: =J6-J5 -> 0 | K7: Surplus/Shortfall PA | L7: =L6-L5 -> 0 | M7: Surplus/Shortfall PA | N7: =N6-N5 -> 0
A8: 5. HMOs (higher rate tax payer) | E8: 0 | F8: 0 | I8: Surplus/Shortfall PCM | J8: =J7/12 -> 0 | K8: Surplus/Shortfall PCM | L8: =L7/12 -> 0 | M8: Surplus/Shortfall PCM | N8: =N7/12 -> 0
E9: 0 | F9: 0
E10: 0 | F10: 0 | I10: 4. Stressed payment total | J10: =E7 -> 0 | K10: 5. Stressed payment total | L10: =E8 -> 0
E11: 0 | F11: 0 | I11: 150% of stressed payment | J11: =J10*1.5 -> 0 | K11: 165% of stressed payment | L11: =L10*1.65 -> 0
E12: 0 | F12: 0 | I12: Rent | J12: =D7 -> 0 | K12: Rent | L12: =D8 -> 0
E13: 0 | F13: 0 | I13: Surplus/Shortfall PA | J13: =J12-J11 -> 0 | K13: Surplus/Shortfall PA | L13: =L12-L11 -> 0
E14: 0 | F14: 0 | I14: Surplus/Shortfall PCM | J14: =J13/12 -> 0 | K14: Surplus/Shortfall PCM | L14: =L13/12 -> 0
A16: Total | B16: =SUM(B4:B14) -> 0 | C16: =IFERROR(AVERAGEIF(B4:B14,">0",C4:C14),0) -> 0 | D16: =SUM(D4:D14) -> 0 | E16: =SUM(E4:E14) -> 0 | F16: =SUM(F4:F14) -> 0 | G16: =IFERROR(D16/E16,"") ->  | K16: Total Suplus/Shortfall PCM | L16: =SUM(J8+L8+N8+J14+L14) -> 0
A18: Notes

Sheet VBS Criteria (hidden)
A1: VBS criteria set in model | E1: list | F1: Broker
F2: Direct
A4: Minimum excess income required | B4: 0.05
A5: Rate payable based on SVR | B5: 7.7 | C5: %
A6: Amount stressed (additional margin applied) | B6: 1 | C6: %
A7: Non Standard income % used | B7: 0.5
A8: Income Multiple cap for max loan amount - standard | B8: 4.5
A9: Income Multiple cap for max loan amount - upper limit | B9: 5 | F9: Affordability Breakdown (1 - Main) | I9: Max Loan Calculation | L9: Broker Affordability (Broker) | O9: ONS Figures Used
A10: Minimum loan amount | B10: 25000
A11: Passwords | F11: Loan Amount | G11: =IF(G15='Drop down'!C4,SUM('1 - Main'!F14,'1 - Main'!K14:L14),'1 - Main'!F12) -> 0 | I11: Max Capital & Interest loan -Highest of Own and ONS | J11: =ROUNDUP(IF(G28>0,G28/G35*1000,0),0) -> 0 | L11: Loan Amount | M11: =IF(Broker!F17="Part & Part",Broker!F21+Broker!J21,Broker!F19) -> 0 | O11: Home Fuel & Utility Bills | P11: =IFERROR(HLOOKUP(M19,'ONS Update'!$C$5:$J$17,5,FALSE),"") -> 
A12: Tabs 1 - 5 | B12: Vern0n | F12: Property Value | G12: ='1 - Main'!F16 -> 0 | I12: 90% of Max Capital & Interest loan / 85% Five Year Product | J12: =IF(B32<>"Standard",J11*85%,J11*90%) -> 0 | L12: Property Value | M12: =Broker!F23 -> 0 | O12: Food, groceries, toiletries and cleaning products | P12: =IFERROR(HLOOKUP(M19,'ONS Update'!$C$5:$J$17,2,FALSE)+(HLOOKUP(M19,'ONS Update'!$C$5:$J$17,6,FALSE)*50%)+(HLOOKUP(M19,'ONS Update'!$C$5:$J$17,13,FALSE)*31%),"") -> 
A13: Mort repay | B13: repay | F13: Term | G13: ='1 - Main'!F18 -> 0 | I13: 95% of Max Capital & Interest loan - higher of own and ONS | J13: =J11*0.95 -> 0 | L13: Term | M13: =Broker!F25 -> 0 | O13: Essential Travel Costs (exclude car insurance) | P13: =IFERROR(HLOOKUP(M19,'ONS Update'!$C$5:$J$17,8,FALSE),"") -> 
A14: dropdown | B14: DD | F14: LTV | G14: ='1 - Main'!H16 ->  | I14: Max 'capped' loan standard 4.5x | J14: =G20*B8 -> 0 | L14: LTV | M14: =IFERROR((M11/M12)*100,0) -> 0 | O14: Essential Insurances (include car insurance if applicable) | P14: =IFERROR(HLOOKUP(M19,'ONS Update'!$C$5:$J$17,13,FALSE)*69%,"") -> 
A15: version control | B15: control | F15: Repayment Method | G15: ='1 - Main'!F10 -> 0 | I15: Max 'capped' loan upper limit | J15: =G20*B9 -> 0 | L15: Repayment Method | M15: =Broker!F17 -> 0 | O15: Telephones / Internet / TV and Satellite costs | P15: =IFERROR(HLOOKUP(M19,'ONS Update'!$C$5:$J$17,9,FALSE)+(HLOOKUP(M19,'ONS Update'!$C$5:$J$17,10,FALSE)*35%),"") -> 
A16: UW Detail input (calc) | B16: uwinput | F16: Applicants | G16: ='1 - Main'!F20 -> 0 | I16: Monthly Repayment Capital Repayment | J16: =(' VBS Criteria'!G11/1000)*' VBS Criteria'!G35 ->  | L16: Applicants | M16: =Broker!D13 -> 0 | O16: Clothing and Footwear | P16: =IFERROR(HLOOKUP(M19,'ONS Update'!$C$5:$J$17,4,FALSE),"") -> 
A17: input calculation assist | B17: assist | F17: Number of Adults | G17: =VLOOKUP('1 - Main'!F22,'Drop down'!$G$2:$H$3,2,FALSE) ->  | I17: C&I Lower of max affordable loan or standard LTI | J17: =IF(J11<=J14,J11,J14) -> 0 | L17: Number of Adults | M17: =VLOOKUP(Broker!$H$13,'Drop down'!$G$2:$H$3,2,FALSE) ->  | O17: Higher of ONS Miscellaneous Expenditure or 5% of Income | P17: =MAX(M22*5%,IFERROR(HLOOKUP(M19,'ONS Update'!$C$5:$J$17,3,FALSE)+(HLOOKUP(M19,'ONS Update'!$C$5:$J$17,6,FALSE)*50%)+HLOOKUP(M19,'ONS Update'!$C$5:$J$17,7,FALSE)+(HLOOKUP(M19,'ONS Update'!$C$5:$J$17,10,FALSE)*65%)+HLOOKUP(M19,'ONS Update'!$C$5:$J$17,11,FALSE),"")) -> 
A18: VBS Criteria | B18: criteria | F18: Number of Dependent Children | G18: =VLOOKUP('1 - Main'!F24,'Drop down'!E2:F5,2,FALSE) -> 0 | I18: C&I Lower of 90% of affordable loan or upper LTI | J18: =IF(J12<J15,J12,J15) -> 0 | L18: Number of Dependent Children | M18: =VLOOKUP(Broker!$L$13,'Drop down'!$E$2:$F$5,2,FALSE) -> 0
A19: ONS | B19: ONS | F19: Adult + Children Score | G19: =SUM(G17:G18) ->  | I19: C&I Max loan offered | J19: =IF(J17>=J18,J17,J18) -> 0 | L19: Adult + Children Score | M19: =SUM(M17:M18) ->  | O19: Max Loan Calculation
A20: ONS table A23 | B20: A23 | F20: Gross Income | G20: =SUM('1 - Main'!F29:L29) -> 0
A21: ONS breakdown A1 | B21: A1 | F21: Total Net Monthly Income | G21: =SUM('1 - Main'!F31:L31) -> 0 | I21: Interest-Only Max Calculation | L21: Gross Income | M21: =SUM(Broker!F29,Broker!L29,Broker!F36,Broker!L36) -> 0 | O21: Max Capital & Interest loan -Highest of Own and ONS | P21: =ROUNDUP(IF(M29>0,M29/M34*1000,0),0) -> 
A22: Broker | B22: Vern0n | F22: Interest-Only | G22: =IF(ISNUMBER(SEARCH("Only",G15)),"Yes","No") -> No | I22: Max interest only loan -Highest of own and ONS | J22: =ROUNDUP(IF(G28>0,+(G28*12)/(G33/100),0),0) -> 0 | L22: Usable Net Income | M22: =SUM(Broker!F35,Broker!L35,Broker!F42,Broker!L42) -> 0 | O22: 90% of Max Capital & Interest loan - higher of own and ONS | P22: =IF(C32<>"Standard",P21*85%,P21*90%) -> 
F23: Part & Part | G23: =IF(ISNUMBER(SEARCH("Part",G15)),"Yes","No") -> No | I23: 90% of Max int only loan / 85% | J23: =IF(B32<>"Standard",J22*85%,J22*90%) -> 0 | O23: Max 'capped' loan standard 4.5x | P23: =M21*4.5 -> 0
F24: Unsecured Credit Commitments | G24: =SUM('1 - Main'!F33:L33) -> 0 | I24: 95% of Max int only loan - higher of own and ONS | J24: =J22*0.95 -> 0 | L24: ONS Total | M24: =SUM(P11:P17) ->  | O24: Max 'capped' loan upper limit | P24: =M21*B9 -> 0
F25: Essential Expenditure | G25: =SUM('1 - Main'!Q36:Q46) -> 0 | I25: Max 'capped' loan standard 4.5x | J25: =J14 -> 0 | L25: Council tax | M25: =IF(M17=1,VLOOKUP(Broker!F23,'Council Tax Bands UK'!N:Q,4)*0.75,VLOOKUP(Broker!F23,'Council Tax Bands UK'!N:Q,4)) ->  | O25: Monthly Repayment Capital Repayment | P25: =(M11/1000)*M34 -> 
A26: Stressed Rate | F26: Income Multiple | G26: =G11/G20 ->  | I26: Monthly Interest-only payment | J26: =G11/12*G33/100 -> 0 | L26: Declared Expenditure | M26: =SUM(Broker!F50,Broker!L50,Broker!F56,Broker!L56) -> 0 | O26: C&I Lower of max affordable loan or standard LTI | P26: =IF(P21<=P23,P21,P23) -> 
B27: 1 - Main | C27: Broker | F27: Total Expenditure | G27: =G24+G25 -> 0 | I27: I/O Lower of max affordable loan or standard LTI | J27: =IF(J14<=J22,J14,J22) -> 0 | L27: Total Expenditure | M27: =SUM(M24:M26) ->  | O27: C&I Lower of 90% of affordable loan or upper LTI | P27: =IF(P22<P24,P22,P24) -> 
A28: Standard | B28: 8.7 | C28: =B28 -> 8.7 | F28: Amount Available for Mortgage Payment | G28: =G21-G27 -> 0 | I28: I/O Max loan offered | J28: =J27 -> 0 | O28: C&I Max loan offered | P28: =IF(P26>=P27,P26,P27) -> 
A29: Product Rate | B29: ='1 - Main'!F8*100 -> 0 | C29: =Broker!H11*100 -> 0 | L29: Amount Available for Mortgage Payment | M29: =M22-M27 -> 
A30: Rounded Product Rate | B30: =CEILING(B29,0.05) -> 0 | C30: =CEILING(C29,0.05) -> 0 | F30: Affordability Basis | I30: Part & Part Max Loan Calculation | O30: Interest-Only Max Calculation
A31: Five Year Fixed? | B31: =IF(ISNUMBER(SEARCH(5,'1 - Main'!F6)),"Yes","No") -> No | C31: =M31 -> No | F31: 5 Year Product? | G31: =IF(ISNUMBER(SEARCH(5,'1 - Main'!F6)),"Yes","No") -> No | I31: Capital Repayment Amount | J31: ='1 - Main'!F14 -> 0 | L31: 5 Year Product? | M31: =IF(ISNUMBER(SEARCH(5,Broker!D11)),"Yes","No") -> No | O31: Max interest only loan -Highest of own and ONS | P31: =ROUNDUP(IF(M29>0,+(M29*12)/(M33/100),0),0) -> 
A32: Product Type | B32: =IF(ISNUMBER(SEARCH("Discount",'1 - Main'!F6)),"Discount",IF(ISNUMBER(SEARCH("Fixed",'1 - Main'!F6)),"Fixed","Standard")) -> Standard | C32: =M32 -> Standard | F32: Product Type | G32: =IF(ISNUMBER(SEARCH("Discount",'1 - Main'!F6)),"Discount",IF(ISNUMBER(SEARCH("Fixed",'1 - Main'!F6)),"Fixed","Standard")) -> Standard | I32: Interest-Only Amount | J32: ='1 - Main'!K14 -> 0 | L32: Product Type | M32: =IF(ISNUMBER(SEARCH("Discount",Broker!D11)),"Discount",IF(ISNUMBER(SEARCH("Fixed",Broker!D11)),"Fixed","Standard")) -> Standard | O32: 90% of Max int only loan - higher of own and ONS | P32: =IF(C32<>"Standard",P31*85%,P31*90%) -> 
F33: Stressed Int rate | G33: =' VBS Criteria'!B43 -> 8.7 | I33: Total Loan Amount | J33: =SUM(J31:J32) -> 0 | L33: Stressed Int rate | M33: =C43 -> 8.7 | O33: Max 'capped' loan standard 4.5x | P33: =P23 -> 0
A34: Discounted Rate | F34: Rounded Product Rate | G34: =B30 -> 0 | I34: Interest-only Element Payment | J34: =J32/12*G33/100 -> 0 | L34: Monthly repay factor (stress) | M34: =-PMT(M33/100,M13,1000)/12 ->  | O34: Monthly Interest-only payment | P34: =M11/12*M33/100 -> 0
A35: Cap - 5 Year Discount | B35: 4.7 | C35: =B35 -> 4.7 | F35: Monthly repay factor (stress) | G35: =-PMT(G33/100,G13,1000)/12 ->  | I35: Capital * Interest Repayment | J35: =(J31/1000)*' VBS Criteria'!G35 ->  | O35: I/O Lower of max affordable loan or standard LTI | P35: =IF(P23<=P31,P23,P31) -> 
A36: Product Rate + 1% | B36: =B29+1 -> 1 | C36: =C29+1 -> 1 | F36: Product repay factor | G36: =-PMT(G34/100,G13,1000)/12 ->  | I36: Total Part & Part Payment | J36: =J34+J35 ->  | L36: Documentary Evidence Calculation | O36: I/O Max loan offered | P36: =P35 -> 
A37: Discount Stressed Rate | B37: =IF(MAX(B35:B36)>B28,B28,MAX(B35:B36)) -> 4.7 | C37: =IF(MAX(C35:C36)>C28,C28,MAX(C35:C36)) -> 4.7 | I37: Amount Available for P&P Element | J37: =G28-J34 -> 0 | L37: LTV | M37: =VLOOKUP(M14,'Drop down'!O17:P21,2,TRUE) -> 1
F38: Documentary Evidence Calculation | I38: Max Part & Part loan -Highest of Own and ONS | J38: =ROUNDUP(IF(J37>0,J37/G35*1000,0),0)+J32 -> 0 | L38: Affordability | M38: =IFERROR(IF(M50="Capital Repayment",(VLOOKUP(M46,'Drop down'!Q17:R21,2,TRUE)),IF(M50="Interest-only",(VLOOKUP(M47,'Drop down'!Q17:R21,2,TRUE)),IF(M50="Part & part",VLOOKUP(M48,'Drop down'!Q17:R21,2,TRUE)))),1000) -> 1000 | O38: Part & Part Max Loan Calculation
A39: Floor - 5 Year Fixed | B39: 2.75 | C39: =B39 -> 2.75 | F39: LTV | G39: =VLOOKUP(G14,'Drop down'!O17:P21,2,TRUE) ->  | I39: 90% of Max P&P loan - higher of own and ONS | J39: =IF(B32<>"Standard",J38*85%,J38*90%) -> 0 | L39: LTV & affordability score | M39: =M37*M38 -> 1000 | O39: Capital Repayment Amount | P39: =Broker!F21 -> 0
A40: Fixed Rate | B40: =IF(B32="Fixed",B29,"N/A") -> N/A | C40: =IF(C32="Fixed",C29,"N/A") -> N/A | F40: Affordability | G40: =IFERROR(IF(G15="Capital & Interest",(VLOOKUP('1 - Main'!J78,'Drop down'!Q17:R21,2,TRUE)),IF(G15="Interest only",(VLOOKUP('1 - Main'!J82,'Drop down'!Q17:R21,2,TRUE)),IF(' VBS Criteria'!G15="Part & part",VLOOKUP('1 - Main'!J86,'Drop down'!Q17:R21,2,TRUE)))),1000) -> FALSE | I40: Max 'capped' loan standard 4.5x | J40: =J14 -> 0 | L40: Level | M40: =VLOOKUP(M39,'Drop down'!P25:Q28,2,TRUE) -> Level 4 | O40: Interest-Only Amount | P40: =Broker!J21 -> 0
A41: Fixed Stressed Rate | B41: =MAX(B39:B40) -> 2.75 | C41: =MAX(C39:C40) -> 2.75 | F41: LTV & affordability score | G41: =G39*G40 ->  | I41: Max 'capped' loan upper limit | J41: =J15 -> 0 | O41: Total Loan Amount | P41: =SUM(P39:P40) -> 0
F42: Level | G42: =VLOOKUP(G41,'Drop down'!P25:Q28,2,TRUE) ->  | I42: P&P Lower of max affordable loan or standard LTI | J42: =IF(J38<=J40,J38,J40) -> 0 | L42: Surplus Income on C&I | M42: =M29-P25 ->  | O42: Interest-only Element Payment | P42: =P40/12*M33/100 -> 0
A43: Stressed Rate to be used | B43: =IF(B29=0,B28,CEILING(IF(B31<>"Yes",B28,IF(B32="Fixed",B41,IF(B32="Discount",B37,0))),0.05)) -> 8.7 | C43: =IF(C29=0,C28,CEILING(IF(C31<>"Yes",C28,IF(C32="Fixed",C41,IF(C32="Discount",C37,0))),0.05)) -> 8.7 | I43: P&P Lower of 90% of affordable loan or upper LTI | J43: =IF(J39<J41,J39,J41) -> 0 | L43: Surplus Income on I/O | M43: =M29-P34 ->  | O43: Capital * Interest Repayment | P43: =(P39/1000)*M34 -> 
F44: PEL Calculation | I44: P&P Max loan offered | J44: =IF(J42>J43,J42,J43) -> 0 | L44: Surplus Income on P&P | M44: =M29-P44 ->  | O44: Total Part & Part Payment | P44: =P42+P43 -> 
F45: Credit Score 1 | G45: ='1 - Main'!F27 -> 0 | O45: Amount Available for P&P Element | P45: =M29-P43 -> 
F46: Credit Score 2 | G46: ='1 - Main'!H27 -> 0 | I46: Product Rate Payments | L46: Requested Loan as % of Max Loan (C&I) | M46: =(M29-P25)/M22 ->  | O46: Max Part & Part loan -Highest of Own and ONS | P46: =ROUNDUP(IF(M29>0,M29/M34*1000,0),0)+P40 -> 
F47: Credit Score 3 | G47: ='1 - Main'!J27 -> 0 | I47: Capital & Interest | J47: =(' VBS Criteria'!G11/1000)*G36 ->  | L47: Requested Loan as % of Max Loan (I/O) | M47: =(M29-P34)/M22 ->  | O47: 90% of Max P&P loan - higher of own and ONS | P47: =IF(C32<>"Standard",P46*85%,P46*90%) -> 
F48: Credit Score 4 | G48: ='1 - Main'!L27 -> 0 | I48: Interest-Only | J48: =G11/12*G34/100 -> 0 | L48: Requested Loan as % of Max Loan (P&P) | M48: =(M29-P44)/M22 ->  | O48: Max 'capped' loan standard 4.5x | P48: =P23 -> 0
F49: Average Credit Score | G49: =IF(SUM(G45:G48)=0,0,AVERAGEIF(G45:G48,">0",G45:G48)) -> 0 | I49: Part & Part | J49: =(J32/12*G34/100)+((J31/1000)*G36) ->  | O49: Max 'capped' loan upper limit | P49: =P24 -> 0
F50: Score PD | G50: =2^((500-G49)/20)/(1+2^((500-G49)/20)) -> 0.9999999702 | L50: Repayment Type | M50: =IF(ISNUMBER(SEARCH("Only",M15)),"Interest-Only",IF(ISNUMBER(SEARCH("Part",M15)),"Part & Part","Capital Repayment")) -> Capital Repayment | O50: P&P Lower of max affordable loan or standard LTI | P50: =IF(P46<=P48,P46,P48) -> 
F51: Scalar PD | G51: =G50*PEL!$B$24 -> 2.499999925 | I51: 5% Buffer Cap | J51: 160 | O51: P&P Lower of 90% of affordable loan or upper LTI | P51: =IF(P47<P49,P47,P49) -> 
F52: Floored PD | G52: =IF(G51<PEL!B27,PEL!B27,' VBS Criteria'!G51) -> 2.499999925 | O52: P&P Max loan offered | P52: =IF(P50>P51,P50,P51) -> 
F53: Valuation | G53: =G12 -> 0
F54: Forced Sale Valuation | G54: =G53*(1-PEL!B30) -> 0
F55: Sales Costs | G55: =IF(G54*PEL!$B$31>PEL!$B$32,PEL!$B$32,G54*PEL!$B$31) -> 0
F56: Advance plus costs | G56: =G11+G55 -> 0
F57: LGD | G57: =IF((G14>100)>50%,-MIN(PEL!$B$29*(G54-G56),-G56*PEL!B28),IF((PEL!$B$29*(G54-G56))>0,0,(PEL!$B$29*(G54-G56)))) -> 0
F58: Expected Loss (£) | G58: =G57*G52 -> 0
F59: Downturn Expected Loss (%) | G59: =G58/G11 -> 
F60: WA EL(%) | G60: =G59*G11 -> 
F61: LTV Band | G61: =VLOOKUP(G14/100,PEL!A14:C19,3) -> 
F62: PEL Trigger | G62: =IF(G14/100<80%,PEL!C10,IF(AND(G14/100>=80%,G14/100<=90%),PEL!$C$8,IF(G14/100>90%,PEL!$C$9))) -> 
F63: PEL>Trigger | G63: =IF(G59>G62,"YES","NO") -> 

Sheet Guidance Notes (hidden)
B3: Once completed save a copy of the Affordability calculator in the following folder Hotel/UserData/Mortgage Affordability Calculators with the name being the application number followed by the 1st applicants surname and the second applicants surname e.g. 1234 Surname1Surname 2 - save down 1 version in excel along with the output in PDF
B5: Type of mortgage required | D5: Select the repayment type (initial Assessment for Standard mortgages should be on Captial & Interest irrespective of repayment type) Where this fails I/O can be used where requested as a repayment type. Note Capital & interest max LTV 95%, Interest Only 60% | F5: =IF(AND(D5="Interest only",#REF!>60%),"WARNING LOAN EXCEEDS 60% LTV","") -> 
B6: Gross Basic Income | D6: For each applicant: Employed / Retired - Input the annual Gross basic income/ prior to any deductions e.g. Tax, NI, Loans, Pension contributions. Self Employed (ST/ P'Ship)- lower of: • Most recent years share of net profit; • Average share of net profit of the last 2 years. Self Employed (Ltd. Co.) - the lower of: • Most recent years director’s remuneration plus gross dividends; • Average of the last 2 years director’s remuneration plus gross dividends. Note – Self Employed Income will not be deemed usable whereby the latest year has seen a drop of more than 25% net profit.
B7: Gross Additional Income | D7: Input the total annual Amount of additional income such as regular bonus, overtime, allowances etc. prior to any deductions . Where using the average of the last 3 months pay slips note this must be in line with YTD / P60. (The calculator will default to include 50%).
B8: Gross Other Income | D8: Input the annual Amount of other income on top of earned / pension income such as allowable benefits/ savings / investment /unencumbered property rental income. (The calculator will default to include 50%).
B9: Net monthly income (monthly take home pay/pension): | D9: Employed - Retired - Insert the Net monthly income, where additional income fluctuates insert the average monthly net income. Self Employed - The net income consistent with the tax returns should be used subject to Accounts confirming that drawings are < profit. Underwriter discretion may be applied where profits are not drawn in full this can be estimated by using the evidenced profit in the following calculator www.employedandselfemployed.co.uk/setaxcalculator Refer cases to Underwriter.
B10: Other income (e.g. Savings / Investments income) | D10: Any other form of secondary income - Include any allowable benefits in here.
B11: Override | D11: Reg O/T Bous / Other Income - Should you agree to use a higher than the standard % of Additional income then the £value of the amount agreed to be used is inserted in the override - Must be agreed with U/W prior to use
B12: Monthly committed expenditure:
B13: HP / Loan repayments | D13: Input the total amount of loan repayments that a borrower has, note where the borrower is due to repay the loan within 3 months from completion this does not need to be included here but must be referenced in the notes and where this relates to a car for instance details of any final payments and or the borrower intensions re renewing ,must be captured in the notes also. Note - the exclusion of these payments from the calculation will be subject to underwriter assessment
B14: Credit card Balances (total of all held) | D14: Input the total balances of credit cards held - including the average balance of a card where borrower pays in full.
B15: Credit card repayments (total) | D15: Input the amounts of the repayments borrower makes but exclude the full balance payment from this amount, although reference must be made in the notes including the average balance that the borrower repays.
B16: Family maintenance | D16: Input any maintenance payments commitments - where this is due to finish in the next 3 months this can be excluded from the figures but must be referenced in the notes .
B17: Other unsecured commitments | D17: Input the monthly cost of any other lending not captured above e.g. regular Overdraft charges / fees, Pay Day loans. Basic Pension contributions may be included here where not paid through a salary Note - Where the borrower has an Interest Only facility which is being assessed on Interest only rather than repayment repayment vehicle costs must be included here.
B18: *Other non self financing mortgages/rent | D18: Mortgage Payments - I.e. Mortgage on second property or holiday home, where joint applicants but sole owner and the joint borrower is party to another mortgage (i.e. their own property) this must be included in here etc. note if the borrower holds a BTL held pays for itself (i.e. rent covers mortgage commitment) then this does not need to be included in the calculations - Proof of this not required for levels 1 -3. This repayment amount must be stressed at the same rate as the prescribed Stress rate- refer to Input Calculation assist tab for the calculation of this. Rent - Where the borrower pays rent for a property as well as also (for example in Self build cases whilst the build is being completed) this must be included here.
B19: Essential expenditure & basic standard of living costs :
B20: Note - When assessing a case where there is a joint borrower added on where they will not reside in the property then Applicant1 should be the main person who will reside in the property to be mortgaged, it is important to include full income / expenditure details, inclusing household expenditure for the joint borrower who will not reside in the property- including stressed mortgage payment where they have one. Refer cases of this nature to Underwriter for guidance. Utilise the notes field to explain the borrower circumstances and discussions that you have had with regards to Expenditure. If affordability is tight but a borrower has given an explanation of how they intend to adjust their expenditure and what they can reduce further then capture this in the notes field in order to provide the underwriter with a full picture of the borrower expectations.
B21: Council tax | C21: n/a | D21: If the figure seems to be within expected ranges (and affordability and LTV <90%) no need to challenge - can be validated using online facility to check property using postcode, once confirmed the annual council tax can be divided by the number of months over which the tax is to be paid. Note - Some areas charge council tax over a 10 month rather than 12 month period - apply the calculation that is applicable to the borrower - where this is unknown then a proxy can be calculated by dividing 12.
B22: Ground rent / service charge | C22: 4 | D22: ONS data not used for this category as it does not apply to all cases. for leasehold properties there is an expectation that this will apply - If the property is an apartment / flat then the expectation is that there will be a ground rent / service charge, for houses where this applies there is a tendency for this to be lower and service charges may not apply.
B23: * Home Fuel & Utility Bills | C23: 4 | D23: This is to include, Gas, electricity, Water, any other Fuel Bills that the borrower pays -e.g. Oil, Wood, Coal
B24: *Food, groceries, toiletries and cleaning products | C24: 1, 5 and 12 | D24: borrower to calculate their average monthly spend - this is then assessed against ONS and the higher of the borrower stated/ ONS value is used (ONS uses 100% of category 1 - Food, 15% of category 5 - Cleaning Products and 31% of the 40% in category 12 which is for toiletries)
B25: *Essential Travel Costs | C25: 7 | D25: This is to include any Essential transport - i.e. Commute costs incl season tickets and dependants school college commute costs, car running and maintenance costs to include petrol, servicing, MOT, Tax etc. but excludes Vehicle insurance (this is to be included in the insurance section)
B26: *Essential Insurances | C26: 12 | D26: As a minimum this must include Buildings and contents - plus any other insurances that a borrower would consider to be essential - i.e. vehicle insurance where borrower owns a vehicle. ONS includes vehicle insurance!!! Other insurances such as life insurance / pet insurance would only be included if a borrower deems these to be essential.
B27: *Telephones / Internet / TV and Satellite costs | C27: 8 & 9 | D27: To include landlines, mobiles, internet packages along with TV / Satellite packages - this figure has been combined as these are often combined packages that are not easy to separate out (To calculate from ONS this uses 95% of category 8 plus 10% of category 9)
B28: Childcare (include School Fees if applicable) | D28: As these are unique to individual circumstances - Insert comment/ rationale if borrower has primary school age children, or younger and no childcare costs in here
B29: *Clothing and Footwear | C29: 3 | D29: Self Explanatory
B30: Minimum surplus income required (5%) | D30: This does not require any inputs and cannot be overridden it covers the basic recreational costs, plus costs that don’t fit into other categories such as health, education, house hold goods, plus a small % of Alcohol/ narcotics, its simply to ensure that everything is considered - even the costs that you don't immediately think about.
B31: Overrides | D31: Refer the use of any override to an Underwriter - Overrides can be entered on permitted categories subject to core criteria being met and proofs obtained where applicable
B33: Level | C33: Income evidence requirements | I33: Additional evidence requirements
C34: Employed | H34: Self-employed
B35: Level 1 | C35: 1 month* (or 1 months worth where pay frequency is less than monthly) If payslip is less than period 4 or bonus/overtime is being used then please provide latest P60 | H35: Latest 2 years Tax calculation summaries supported by the Latest 2 years HMRC Tax year overviews Latest years accounts | I35: None
B36: Level 2 | C36: 2 months* (or 2months worth where pay frequency is less than monthly) If payslip is less than period 4 or bonus/overtime is being used then please provide latest P60 | H36: Latest 2 years Tax calculation summaries supported by the Latest 2 years HMRC Tax year overviews Latest years accounts | I36: None
B37: Level 3 | C37: 3 months* (or 3 months worth where pay frequency is less than monthly) If payslip is less than period 4 or bonus/overtime is being used then please provide latest P60 | H37: Latest 2 years Tax calculation summaries supported by the Latest 2 years HMRC Tax year overviews Latest years accounts | I37: 1 months personal main bank statements for all applicants including joint accounts
B38: Level 4 | C38: 4 months* (or 3 months worth where pay frequency is less than monthly) If payslip is less than period 4 or bonus/overtime is being used then please provide latest P60 | H38: Latest 2 years Tax calculation summaries HMRC Tax year overviews and Latest years accounts 3 months business bank statements | I38: 3 months personal main bank statements for all applicants including joint accounts
B39: *Note - Where Basic Salary fluctuates each month or additional income (e.g. Bonuses / Overtime/ Allowances) is used additional evidence may be requested e.g. P60.

Sheet ONS Update (hidden)
C1: Single: | G1: Joint:
B2: Dependants | C2: 0 | D2: 1 | E2: 2 | F2: 3 | G2: 0 | H2: 1 | I2: 2 | J2: 3
B3: Monthly | C3: =ROUND(+C49,0) -> 1171 | D3: =ROUND(+E49,0) -> 1166 | E3: =ROUND(+F49,0) -> 1290 | F3: =(J3/I3)*E3 -> 1381.400966 | G3: =ROUND(+D49,0) -> 1609 | H3: =ROUND(+G49,0) -> 1645 | I3: =ROUND(+H49,0) -> 1863 | J3: =ROUND(+I49,0) -> 1995 | L3: Instructions for updating ONS - Note the fields requiring update on this tab are in yellow 1 - Create new tab for A23 data table (label this Extract-ONS A23 xxxxye) and copy over latest data from website www.ons.gov.uk 2 - Copy the monthly totals in line 46 down into line 66 as these are about to become the previous totals ( and the differenceds between the 2 are calculated once populated with the latest figures which allow you to sense check the data) 3 - Copy and paste the data from A23 table into the yellow table (A23-I46) taking care to ensure that the data is always in thesame fields - note it may be easier to remove the values from A29-I46 of the table and copy a blank table over to the newly created Extract tab to fill it in before copying back over to this tab. 4 - Check the movements / differences - you would expect these to be reasonably minimal - double check any large differences. 5 - The assumptions made in the table below should be checked against the latest version of the A1 breakdown
B5: Code for Lookup where adult =1 and child =10 | C5: 1 | D5: 11 | E5: 21 | F5: 31 | G5: 2 | H5: 12 | I5: 22 | J5: 32
A6: 1 | B6: Food & non-alcoholic drinks | C6: =+C53*(VLOOKUP($A6,$K$29:$M$41,3,FALSE)) -> 152.9666667 | D6: =+E53*(VLOOKUP($A6,$K$29:$M$41,3,FALSE)) -> 205.7055 | E6: =+F53*(VLOOKUP($A6,$K$29:$M$41,3,FALSE)) -> 235.7333333 | F6: =+G53*(VLOOKUP($A6,$K$29:$M$41,3,FALSE)) -> 333.6666667 | G6: =+D53*(VLOOKUP($A6,$K$29:$M$41,3,FALSE)) -> 279.0666667 | H6: =+G53*(VLOOKUP($A6,$K$29:$M$41,3,FALSE)) -> 333.6666667 | I6: =+H53*(VLOOKUP($A6,$K$29:$M$41,3,FALSE)) -> 402.1333333 | J6: =+I53*(VLOOKUP($A6,$K$29:$M$41,3,FALSE)) -> 427.2666667
A7: 2 | B7: Alcoholic drinks, tobacco & narcotics | C7: =+C54*(VLOOKUP($A7,$K$29:$M$41,3,FALSE)) -> 14.38666667 | D7: =+E54*(VLOOKUP($A7,$K$29:$M$41,3,FALSE)) -> 9.013333333 | E7: 5.893333333 | F7: =(J7/I7)*E7 -> 3.546430678 | G7: =+D54*(VLOOKUP($A7,$K$29:$M$41,3,FALSE)) -> 25.13333333 | H7: =+G54*(VLOOKUP($A7,$K$29:$M$41,3,FALSE)) -> 14.04 | I7: 19.58666667 | J7: 11.78666667
A8: 3 | B8: Clothing & footwear | C8: 18.41666667 | D8: 39.43333333 | E8: 38.13333333 | F8: 40.28169014 | G8: 39.86666667 | H8: 48.1 | I8: 61.53333333 | J8: 65
A9: 4 | B9: Housing(net)2, fuel & power | C9: 308.1 | D9: 368.225 | E9: 462.475 | F9: 523.628719 | G9: 415.35 | H9: 367.25 | I9: 393.25 | J9: 445.25
A10: 5 | B10: Household goods & services | C10: 51.48 | D10: 44.07 | E10: 47.58 | F10: 41.28578475 | G10: 78 | H10: 82.875 | I10: 86.97 | J10: 75.465
A11: 6 | B11: Health | C11: 0 | D11: 0 | E11: 0 | F11: 0 | G11: 0 | H11: 0 | I11: 0 | J11: 0 | Q11: Council tax
A12: 7 | B12: Transport | C12: 125.905 | D12: 138.8616667 | E12: 117.1733333 | F12: 127.7002407 | G12: 278.2866667 | H12: 287.8633333 | I12: 335.465 | J12: 365.6033333 | Q12: Ground rent / service charge
A13: 8 | B13: Communication | C13: 62.57333333 | D13: 75.335 | E13: 72.04166667 | F13: 78.61808437 | G13: 89.74333333 | H13: 93.86 | I13: 99.21166667 | J13: 108.2683333 | Q13: * Home Fuel & Utility Bills
A14: 9 | B14: Recreation & culture | C14: 56.11666667 | D14: 66.040975 | E14: 52.62833333 | F14: 37.62703042 | G14: 113.1433333 | H14: 112.5366667 | I14: 161.2216667 | J14: 115.2666667 | Q14: *Food, groceries, toiletries and cleaning products
A15: 10 | B15: Education | C15: 0 | D15: 0 | E15: 0 | G15: 0 | H15: 0 | I15: 0 | J15: 0 | Q15: *Travel Costs
A16: 11 | B16: Restaurants & hotels | C16: 22.1 | D16: 19.84666667 | E16: 16.98666667 | F16: 15.62652432 | G16: 49.74666667 | H16: 37.00666667 | I16: 48.70666667 | J16: 44.80666667 | Q16: *Essential Insurances
A17: 12 | B17: Miscellaneous goods & services | C17: 102.7 | D17: 128.7 | E17: 102.7 | F17: 115.3932584 | G17: 196.3 | H17: 224.0333333 | I17: 231.4 | J17: 260 | Q17: *Telephones / Internet / TV and Satellite costs
Q18: Childcare (should we include School Fees in here also)
C19: =SUM(C6:C18) -> 914.745 | D19: =SUM(D6:D18) -> 1095.231475 | E19: 1151.345 | F19: 1317.374429 | G19: 1564.636667 | H19: 1601.231667 | I19: 1839.478333 | J19: 1918.713333 | Q19: *Clothing and Footwear
C20: Updates from A23 table input into yellow cells | Q20: Other
L22: ONS DATA | Q22: Total expenditure
C23: One | D23: Two | E23: One adult | G23: Two adults | L23: https://www.ons.gov.uk/peoplepopulationandcommunity/personalandhouseholdfinances/expenditure/datasets/familyspendingworkbook2expenditurebyincome
C24: person | D24: adults | E24: with | F24: with | G24: with | H24: with | I24: with | Q24: Net income
E25: one | F25: two | G25: one | H25: two | I25: three | L25: Table A23
E26: child | F26: or more | G26: child | H26: children | I26: or more | Q26: Minimum surplus income required (5%)
F27: children | I27: children | K27: This table is populated from the assumptions made on the ONS expenditure breakdown tab
K28: ONS Category | M28: Proposed % to use as minimum | N28: Essential, Basic Standard of Living or Excluded | O28: Examples of whats included in the % being used | P28: Examples of whats excluded | Q28: Associated Category on the Affordability calculator | R28: notes
A29: 1 | B29: Food & non-alcoholic drinks | C29: 35.3 | D29: 64.4 | E29: 47.4705 | F29: 54.4 | G29: 77 | H29: 92.8 | I29: 98.6 | K29: 1 | L29: Food and non-alcoholic drinks | M29: 1 | N29: =VLOOKUP($K29,'ONS expenditure breakdown A1'!$K$17:$Q$757,7,FALSE) -> Essential | O29: Full amount for Food & non-alcoholic drinks included | P29: n/a | Q29: Home Fuel & Utility Bills
A30: 2 | B30: Alcoholic drinks, tobacco & narcotics | C30: 8.3 | D30: 14.5 | E30: 5.2 | F30: 3.4 | G30: 8.1 | H30: 11.3 | I30: 6.8 | K30: 2 | L30: Alcoholic drink, tobacco and narcotics | M30: 0.4 | N30: =VLOOKUP($K30,'ONS expenditure breakdown A1'!$K$17:$Q$757,7,FALSE) -> Basic | O30: Alcoholic drinks, tobacco & narcotics | P30: 60% proportion - in case of financial hardship expectation to reduce spend. Aprox 40% of this cost is cigarettes/tobacco which for smokers could potentially be more difficult to reduce | Q30: Food, groceries, toiletries and cleaning products
A31: 3 | B31: Clothing & footwear | C31: 8.5 | D31: 18.4 | E31: 18.2 | F31: 17.6 | G31: 22.2 | H31: 28.4 | I31: 30 | K31: 3 | L31: Clothing and footwear | M31: =VLOOKUP($K31,'ONS expenditure breakdown A1'!$K$17:$P$757,6,FALSE) -> 0.5 | N31: =VLOOKUP($K31,'ONS expenditure breakdown A1'!$K$17:$Q$757,7,FALSE) -> Basic | O31: Clothing & footwear | P31: 50% in case of financial hardship expectation to reduce spend | Q31: Clothing and Footwear
A32: 4 | B32: Housing(net)2, fuel & power | C32: 94.8 | D32: 127.8 | E32: 113.3 | F32: 142.3 | G32: 113 | H32: 121 | I32: 137 | K32: 4 | L32: Housing(net), fuel and power | M32: 0.75 | N32: =VLOOKUP($K32,'ONS expenditure breakdown A1'!$K$17:$Q$757,7,FALSE) -> Essential | O32: Fuel / Power and utilities | P32: rent payment - if purchasing property unlikely to be paying rent also some non essential maintenance and alternative fuels which are considered to be an alternative to gas and electricity not in addition to | Q32: Home Fuel & Utility Bills
A33: 5 | B33: Household goods & services | C33: 26.4 | D33: 40 | E33: 22.6 | F33: 24.4 | G33: 42.5 | H33: 44.6 | I33: 38.7 | K33: 5 | L33: Household goods and services | M33: 0.45 | N33: =VLOOKUP($K33,'ONS expenditure breakdown A1'!$K$17:$Q$757,7,FALSE) -> Basic | O33: Cleaning materials / Detergents etc. plus Household appliances/Furniture | P33: Electrical/ Garden tools, Tablewear, Utensils, 50% of furniture costs, decorative goods, Floor Coverings, Textiles | Q33: 35% for cleaning / detergents included in Food, groceries, toiletries and cleaning products, remaining 65% in minimum surplus income required
A34: 6 | B34: Health | C34: 0 | D34: 0 | E34: 0 | F34: 0 | G34: 0 | H34: 0 | I34: 0 | K34: 6 | L34: Health | M34: 0.75 | N34: =VLOOKUP($K34,'ONS expenditure breakdown A1'!$K$17:$Q$757,7,FALSE) -> Essential | O34: Medicines, prescriptions, opticians etc | P34: Private Dental / Medical costs | Q34: Minimum surplus income required
A35: 7 | B35: Transport | C35: 44.7 | D35: 98.8 | E35: 49.3 | F35: 41.6 | G35: 102.2 | H35: 119.1 | I35: 129.8 | K35: 7 | L35: Transport | M35: 0.65 | N35: =VLOOKUP($K35,'ONS expenditure breakdown A1'!$K$17:$Q$757,7,FALSE) -> Essential & Basic | O35: Vehicle running costs & other travel costs (incl. season tickets etc) | P35: 35% for non essential travel and some duplication ie car running costs plus public transport costs and both may not apply. | Q35: Travel Costs | R35: could potentially reduce further if not car owner to 365% dependant upon distance of commute etc
A36: 8 | B36: Communication | C36: 15.2 | D36: 21.8 | E36: 18.3 | F36: 17.5 | G36: 22.8 | H36: 24.1 | I36: 26.3 | K36: 8 | L36: Communication | M36: 0.95 | N36: =VLOOKUP($K36,'ONS expenditure breakdown A1'!$K$17:$Q$757,7,FALSE) -> Essential | O36: landlines, mobiles and internet | P36: Purchasing of New Phones / Mobiles / Faxes | Q36: Telephones / Internet / TV and Satellite costs
A37: 9 | B37: Recreation & culture | C37: 37 | D37: 74.6 | E37: 43.5435 | F37: 34.7 | G37: 74.2 | H37: 106.3 | I37: 76 | K37: 9 | L37: Recreation and culture | M37: 0.35 | N37: =VLOOKUP($K37,'ONS expenditure breakdown A1'!$K$17:$Q$757,7,FALSE) -> Basic | O37: TV, Satelite | P37: 65% of the costs in this category is excluded - in cases of Financial Hardship it would be expected that recreational experiances could be reduced considerably eg Holidays abroad | Q37: Telephones / Internet / TV and Satellite costs
A38: 10 | B38: Education | K38: 10 | L38: Education | M38: 0 | N38: =VLOOKUP($K38,'ONS expenditure breakdown A1'!$K$17:$Q$757,7,FALSE) -> Basic | O38: school costs, trips etc | P38: Private school fees, nursery etc picked up by Underwriters. School trips classed as discretionary spending. | Q38: Minimum surplus income required
A39: 11 | B39: Restaurants & hotels | C39: 25.5 | D39: 57.4 | E39: 22.9 | F39: 19.6 | G39: 42.7 | H39: 56.2 | I39: 51.7 | K39: 11 | L39: Restaurants and hotels | M39: 0.2 | N39: =VLOOKUP($K39,'ONS expenditure breakdown A1'!$K$17:$Q$757,7,FALSE) -> Basic | O39: Snacks and confectionery, school meals or meals bought and eaten at the office and 50% of takeaway spend | P39: Holidays, Restaurant / Café meals and 50% of takeaway spend | Q39: Minimum surplus income required
A40: 12 | B40: Miscellaneous goods & services | C40: 23.7 | D40: 45.3 | E40: 29.7 | F40: 23.7 | G40: 51.7 | H40: 53.4 | I40: 60 | K40: 12 | L40: Miscellaneous goods and services | M40: 1 | N40: =VLOOKUP($K40,'ONS expenditure breakdown A1'!$K$17:$Q$757,7,FALSE) -> Buildings Ins- Essential, Toilerires and Soap Essential, remainder - Basic | O40: Insurances (B&C), (Vehicle), Personal Care -Toiletries | P40: Costs associated with moving house- furniture storage and removal as these would be one offs, bank charges and annual credit card fees , personal effects - watches/ Jewelry etc | Q40: 70% for insurances (B&C)c25%, (Vehicle )c45% included in Essential Insurances and 30% for Personal Care -Toiletries included in Food, groceries, toiletries and cleaning products
K41: 13 | L41: Other expenditure items | M41: =VLOOKUP($K41,'ONS expenditure breakdown A1'!$K$17:$P$757,6,FALSE) -> 0 | N41: =VLOOKUP($K41,'ONS expenditure breakdown A1'!$K$17:$Q$757,7,FALSE) -> Excluded | O41: none - All considered non-essential | P41: Mortgage payments as no need to include, fines, holiday spends, gifts and donations are considered to be non essential | Q41: n/a
A42: 1-12 | B42: All expenditure groups | C42: 326.5 | D42: 573.9 | E42: 389.9 | F42: 386.9 | G42: 581.6 | H42: 678.9 | I42: 692.5 | K42: 14 | L42: Other items recorded | M42: Excluded | N42: Excluded | O42: none | P42: Items of expenditure covered by using monthly income - i.e Tax, Ni and pension costs | Q42: n/a
A44: 13 | B44: Other expenditure items | C44: 57.6 | D44: 91.3 | E44: 46.8 | F44: 40.3 | G44: 102.6 | H44: 114.7 | I44: 113.7
A46: Total expenditure | C46: 384.1 | D46: 665.2 | E46: 436.7 | F46: 427.1 | G46: 684.1 | H46: 793.6 | I46: 805.9
B48: Essential expenditure used | C48: =SUM(C29:C37)-A1048559-A1048563 -> 270.2 | D48: =SUM(D29:D36)-D30-D34 -> 371.2 | E48: 269.1705 | F48: 297.8 | G48: 379.7 | H48: 430 | I48: 460.4
B49: Monthly | C49: =+C48*52/12 -> 1170.866667 | D49: 1608.533333 | E49: 1166.4055 | F49: 1290.466667 | G49: 1645.366667 | H49: 1863.333333 | I49: 1995.066667
B52: Monthly
B53: Food & non-alcoholic drinks | C53: =+C29*52/12 -> 152.9666667 | D53: =+D29*52/12 -> 279.0666667 | E53: 205.7055 | F53: 235.7333333 | G53: 333.6666667 | H53: 402.1333333 | I53: 427.2666667
B54: Alcoholic drinks, tobacco & narcotics | C54: =+C30*52/12 -> 35.96666667 | D54: 62.83333333 | E54: 22.53333333 | F54: 14.73333333 | G54: 35.1 | H54: 48.96666667 | I54: 29.46666667
B55: Clothing & footwear | C55: 36.83333333 | D55: 79.73333333 | E55: 78.86666667 | F55: 76.26666667 | G55: 96.2 | H55: 123.0666667 | I55: 130
B56: Housing(net)2, fuel & power | C56: 410.8 | D56: 553.8 | E56: 490.9666667 | F56: 616.6333333 | G56: 489.6666667 | H56: 524.3333333 | I56: 593.6666667
B57: Household goods & services | C57: 114.4 | D57: 173.3333333 | E57: 97.93333333 | F57: 105.7333333 | G57: 184.1666667 | H57: 193.2666667 | I57: 167.7
B58: Health | C58: 0 | D58: 0 | E58: 0 | F58: 0 | G58: 0 | H58: 0 | I58: 0
B59: Transport | C59: 193.7 | D59: 428.1333333 | E59: 213.6333333 | F59: 180.2666667 | G59: 442.8666667 | H59: 516.1 | I59: 562.4666667
B60: Communication | C60: 65.86666667 | D60: 94.46666667 | E60: 79.3 | F60: 75.83333333 | G60: 98.8 | H60: 104.4333333 | I60: 113.9666667
B61: Recreation & culture | C61: 160.3333333 | D61: 323.2666667 | E61: 188.6885 | F61: 150.3666667 | G61: 321.5333333 | H61: 460.6333333 | I61: 329.3333333
B62: Education | C62: 0 | D62: 0 | E62: 0 | F62: 0 | G62: 0 | H62: 0 | I62: 0
B63: Restaurants & hotels | C63: 110.5 | D63: 248.7333333 | E63: 99.23333333 | F63: 84.93333333 | G63: 185.0333333 | H63: 243.5333333 | I63: 224.0333333
B64: Miscellaneous goods & services | C64: 102.7 | D64: 196.3 | E64: 128.7 | F64: 102.7 | G64: 224.0333333 | H64: 231.4 | I64: 260
B66: Previous ONS Monthly | C66: 835.0333333 | D66: 1453.833333 | E66: 887.4666667 | F66: 1060.8 | G66: 1529.666667 | H66: 1627.6 | I66: 1606.8
B68: Increase / decrease | C68: =(C49-C66)/C66 -> 0.4021795537 | D68: =(D49-D66)/D66 -> 0.1064083458 | E68: 0.314309082 | F68: 0.216503268 | G68: 0.07563739377 | H68: 0.1448349308 | I68: 0.241639698
C72: 433.6815 | D72: 793.4535 | E72: 461.202 | F72: 496.2405 | G72: 843.4335 | H72: 940.4325 | I72: 904.68
C73: 384.1 | D73: 665.2 | E73: 436.7 | F73: 427.1 | G73: 684.1 | H73: 793.6 | I73: 805.9
C74: =C73/C72 -> 0.8856730112 | D74: =D73/D72 -> 0.838360408 | E74: 0.9468736042 | F74: 0.8606713882 | G74: 0.8110894338 | H74: 0.8438670505 | I74: 0.8908122209

Sheet ONS 2024 (hidden)
A1: Table A23 | N1: Back to Contents
A2: High level expenditure by household composition
A3: UK, financial year ending 2023
E6: Retired households | K6: Non-retired | N6: Retired and non-retired households
E7: State pension1 | H7: Other retired | K7: One | L7: Two | N7: One adult | Q7: Two adults | U7: Three or more adults
E8: One | F8: Two | H8: One | I8: Two | K8: person | L8: adults | N8: with | O8: with | Q8: with | R8: with | S8: with | U8: without | V8: with
E9: person | F9: adults | H9: person | I9: adults | N9: one | O9: two | Q9: one | R9: two | S9: three | U9: children | V9: children
N10: child | O10: or more | Q10: child | R10: children | S10: or more
O11: children | S11: children
A14: Weighted number of households (thousands) | E14: 860 | F14: 420 | H14: 2640 | I14: 2940 | K14: 5330 | L14: 6940 | N14: 800 | O14: 710 | Q14: 2280 | R14: 2540 | S14: 860 | U14: 1960 | V14: 1010
A15: Total number of households in sample | E15: 130 | F15: 70 | H15: 420 | I15: 570 | K15: 740 | L15: 1070 | N15: 110 | O15: 100 | Q15: 330 | R15: 370 | S15: 140 | U15: 290 | V15: 140
A16: Total number of persons in sample | E16: 130 | F16: 150 | H16: 420 | I16: 1130 | K16: 740 | L16: 2130 | N16: 220 | O16: 330 | Q16: 980 | R16: 1500 | S16: 730 | U16: 950 | V16: 670
A17: Total number of adults in sample | E17: 130 | F17: 150 | H17: 420 | I17: 1130 | K17: 740 | L17: 2130 | N17: 110 | O17: 100 | Q17: 650 | R17: 750 | S17: 270 | U17: 950 | V17: 460
A19: Weighted average number of persons per household | E19: 1 | F19: 2 | H19: 1 | I19: 2 | K19: 1 | L19: 2 | N19: 2 | O19: 3.3 | Q19: 3 | R19: 4 | S19: 5.4 | U19: 3.4 | V19: 5
A22: Commodity or service | F22: Average weekly household expenditure (£)
A25: 1 | B25: Food & non-alcoholic drinks | E25: 36.7 | F25: 61 | H25: 38.9 | I25: 69.3 | K25: 35.3 | L25: 64.4 | N25: 47.5 | O25: 54.4 | Q25: 77 | R25: 92.8 | S25: 98.6 | U25: 94.1 | V25: 102.3
A27: 2 | B27: Alcoholic drinks, tobacco & narcotics | E27: 5.5 | F27: 10.5 | H27: 6.1 | I27: 15.6 | K27: 8.3 | L27: 14.5 | N27: 5.2 | O27: 3.4 | Q27: 8.1 | R27: 11.3 | S27: 6.8 | U27: 13.7 | V27: 13
A29: 3 | B29: Clothing & footwear | E29: 3.6 | F29: 10 | H29: 7 | I29: 13.1 | K29: 8.5 | L29: 18.4 | N29: 18.2 | O29: 17.6 | Q29: 22.2 | R29: 28.4 | S29: 30 | U29: 24.2 | V29: 30.6
A31: 4 | B31: Housing (net)², fuel & power | E31: 53.9 | F31: 69.9 | H31: 58.7 | I31: 74.5 | K31: 94.8 | L31: 127.8 | N31: 113.3 | O31: 142.3 | Q31: 113 | R31: 121 | S31: 137 | U31: 124.6 | V31: 133.5
A33: 5 | B33: Household goods & services | E33: 20.2 | F33: 14.9 | H33: 28.3 | I33: 43.3 | K33: 26.4 | L33: 40 | N33: 22.6 | O33: 24.4 | Q33: 42.5 | R33: 44.6 | S33: 38.7 | U33: 41.6 | V33: 34.5
A35: 6 | B35: Health | E35: .. | F35: .. | H35: .. | I35: .. | K35: .. | L35: .. | N35: .. | O35: .. | Q35: .. | R35: .. | S35: .. | U35: .. | V35: ..
A37: 7 | B37: Transport | E37: 13.5 | F37: 34.6 | H37: 32 | I37: 75.9 | K37: 44.7 | L37: 98.8 | N37: 49.3 | O37: 41.6 | Q37: 102.2 | R37: 119.1 | S37: 129.8 | U37: 122.5 | V37: 105.8
A39: 8 | B39: Communication | E39: 10.3 | F39: 16.4 | H39: 13.6 | I39: 19.9 | K39: 15.2 | L39: 21.8 | N39: 18.3 | O39: 17.5 | Q39: 22.8 | R39: 24.1 | S39: 26.3 | U39: 30.4 | V39: 30.7
A41: 9 | B41: Recreation & culture | E41: 22.1 | F41: 41.9 | H41: 47.2 | I41: 76.4 | K41: 37 | L41: 74.6 | N41: 43.5 | O41: 34.7 | Q41: 74.2 | R41: 106.3 | S41: 76 | U41: 90.1 | V41: 71.9
A43: 10 | B43: Education | E43: .. | F43: .. | H43: .. | I43: .. | K43: .. | L43: .. | N43: .. | O43: .. | Q43: .. | R43: .. | S43: .. | U43: .. | V43: ..
A45: 11 | B45: Restaurants & hotels | E45: 7.9 | F45: 18 | H45: 16.1 | I45: 42.5 | K45: 25.5 | L45: 57.3 | N45: 22.9 | O45: 19.6 | Q45: 42.7 | R45: 56.2 | S45: 51.7 | U45: 53.6 | V45: 48.3
A47: 12 | B47: Miscellaneous goods & services | E47: 17 | F47: 25.2 | H47: 27.7 | I47: 42.9 | K47: 23.7 | L47: 45.3 | N47: 29.7 | O47: 23.7 | Q47: 51.7 | R47: 53.4 | S47: 60 | U47: 54.3 | V47: 62.6
A50: 1-12 | B50: All expenditure groups | E50: 194.1 | F50: 313.9 | H50: 282.4 | I50: 492.7 | K50: 326.5 | L50: 573.9 | N50: 389.9 | O50: 386.9 | Q50: 581.6 | R50: 678.9 | S50: 692.5 | U50: 663.2 | V50: 655.7
A53: 13 | B53: Other expenditure items | E53: 26.2 | F53: 44.9 | H53: 41.9 | I53: 60.6 | K53: 57.6 | L53: 91.3 | N53: 46.8 | O53: 40.3 | Q53: 102.6 | R53: 114.7 | S53: 113.4 | U53: 84.9 | V53: 91.7
A56: Total expenditure | E56: 220.3 | F56: 358.8 | H56: 324.2 | I56: 553.3 | K56: 384.1 | L56: 665.2 | N56: 436.7 | O56: 427.1 | Q56: 684.1 | R56: 793.6 | S56: 805.9 | U56: 748.1 | V56: 747.4
A59: Average weekly expenditure per person (£)
A60: Total expenditure | E60: 220.3 | F60: 179.4 | H60: 324.2 | I60: 276.7 | K60: 384.1 | L60: 332.6 | N60: 218.4 | O60: 128.4 | Q60: 228 | R60: 198.4 | S60: 148.3 | U60: 221.1 | V60: 150.6
A63: Note: The commodity and service categories are not comparable to those in publications before 2001-02.
A64: Please see background notes for symbols and conventions used in this report.
A65: 1 Mainly dependent on state pensions and not economically active - see Methodology - Economically Inactive.
A66: 2 Excluding mortgage interest payments, council tax and Northern Ireland rates Mortgage interest payments can be found in category 13.
A68: Source: Office for National Statistics

Sheet ONS 2022 (hidden)
A1: Table A23 | V1: Back to Contents
A2: Expenditure by household composition
A3: UK, financial year ending 2020
E6: Retired households | K6: Non-retired | N6: Retired and non-retired households | AA6: Non-retired | AC6: Retired and non-retired households | AJ6: 2022 | AK6: Non-retired | AM6: Retired and non-retired households | AV6: Non-retired | AX6: Retired and non-retired households | BD6: Non-retired | BF6: Retired and non-retired households
E7: State pension1 | H7: Other retired | K7: One | L7: Two | N7: One adult | Q7: Two adults | U7: Three or more adults | AA7: One | AB7: Two | AC7: One adult | AE7: Two adults | AK7: One | AL7: Two | AM7: One adult | AO7: Two adults | AV7: One | AW7: Two | AX7: One adult | AZ7: Two adults | BD7: One | BE7: Two | BF7: One adult | BH7: Two adults
E8: One | F8: Two | H8: One | I8: Two | K8: person | L8: adults | N8: with | O8: with | Q8: with | R8: with | S8: with | U8: without | V8: with | AA8: person | AB8: adults | AC8: with | AD8: with | AE8: with | AF8: with | AG8: with | AK8: person | AL8: adults | AM8: with | AN8: with | AO8: with | AP8: with | AQ8: with | AV8: person | AW8: adults | AX8: with | AY8: with | AZ8: with | BA8: with | BB8: with | BD8: person | BE8: adults | BF8: with | BG8: with | BH8: with | BI8: with | BJ8: with
E9: person | F9: adults | H9: person | I9: adults | N9: one | O9: two | Q9: one | R9: two | S9: three | U9: children | V9: children | AC9: one | AD9: two | AE9: one | AF9: two | AG9: three | AM9: one | AN9: two | AO9: one | AP9: two | AQ9: three | AX9: one | AY9: two | AZ9: one | BA9: two | BB9: three | BF9: one | BG9: two | BH9: one | BI9: two | BJ9: three
N10: child | O10: or more | Q10: child | R10: children | S10: or more | AC10: child | AD10: or more | AE10: child | AF10: children | AG10: or more | AM10: child | AN10: or more | AO10: child | AP10: children | AQ10: or more | AX10: child | AY10: or more | AZ10: child | BA10: children | BB10: or more | BF10: child | BG10: or more | BH10: child | BI10: children | BJ10: or more
O11: children | S11: children | AD11: children | AG11: children | AN11: children | AQ11: children | AY11: children | BB11: children | BG11: children | BJ11: children
Z12: 2020 (A23 ONS Data) | AI12: Derived Data
A14: Weighted number of households (thousands) | E14: 770 | F14: 470 | H14: 2780 | I14: 2770 | K14: 4370 | L14: 6220 | N14: 620 | O14: 540 | Q14: 2190 | R14: 2540 | S14: 960 | U14: 2520 | V14: 1080 | Y14: 1 | Z14: Food & non-alcoholic drinks | AA14: 32.5 | AB14: 63.5 | AC14: 41.1 | AD14: 55 | AE14: 71.7 | AF14: 88.2 | AG14: 103.9 | AI14: 1 | AJ14: Food and non-alcoholic drinks | AK14: 37.5375 | AL14: 73.3425 | AM14: 47.4705 | AN14: 63.525 | AO14: 82.8135 | AP14: 101.871 | AQ14: 120.0045 | AT14: 1 | AU14: Food and non-alcoholic drinks | AV14: =AK14-AA14 -> 5.0375 | AW14: =AL14-AB14 -> 9.8425 | AX14: 6.3705 | AY14: 8.525 | AZ14: 11.1135 | BA14: 13.671 | BB14: 16.1045 | BD14: =AV14/AA14 -> 0.155 | BE14: =AW14/AB14 -> 0.155 | BF14: 0.155 | BG14: 0.155 | BH14: 0.155 | BI14: 0.155 | BJ14: 0.155
A15: Total number of households in sample | E15: 140 | F15: 120 | H15: 530 | I15: 640 | K15: 840 | L15: 1190 | N15: 140 | O15: 130 | Q15: 420 | R15: 510 | S15: 190 | U15: 410 | V15: 170 | Y15: 2 | Z15: Alcoholic drinks, tobacco & narcotics | AA15: 9.2 | AB15: 15.9 | AC15: 7.5 | AD15: 6.6 | AE15: 12.4 | AF15: 11.6 | AG15: 10.7 | AI15: 2 | AJ15: Alcoholic drinks, tobacco and narcotics | AK15: 10.626 | AL15: 18.3645 | AM15: 8.6625 | AN15: 7.623 | AO15: 14.322 | AP15: 13.398 | AQ15: 12.3585 | AT15: 2 | AU15: Alcoholic drinks, tobacco and narcotics | AV15: =AK15-AA15 -> 1.426 | AW15: =AL15-AB15 -> 2.4645 | AX15: =AM15-AC15 -> 1.1625 | AY15: =AN15-AD15 -> 1.023 | AZ15: =AO15-AE15 -> 1.922 | BA15: =AP15-AF15 -> 1.798 | BB15: =AQ15-AG15 -> 1.6585 | BD15: =AV15/AA15 -> 0.155 | BE15: =AW15/AB15 -> 0.155 | BF15: =AX15/AC15 -> 0.155 | BG15: =AY15/AD15 -> 0.155 | BH15: =AZ15/AE15 -> 0.155 | BI15: =BA15/AF15 -> 0.155 | BJ15: =BB15/AG15 -> 0.155
A16: Total number of persons in sample | E16: 140 | F16: 240 | H16: 530 | I16: 1290 | K16: 840 | L16: 2390 | N16: 290 | O16: 440 | Q16: 1270 | R16: 2040 | S16: 990 | U16: 1370 | V16: 850 | Y16: 3 | Z16: Clothing & footwear | AA16: 11 | AB16: 24 | AC16: 16.9 | AD16: 23.8 | AE16: 31.4 | AF16: 33.5 | AG16: 31.1 | AI16: 3 | AJ16: Clothing and footwear | AK16: 12.705 | AL16: 27.72 | AM16: 19.5195 | AN16: 27.489 | AO16: 36.267 | AP16: 38.6925 | AQ16: 35.9205 | AT16: 3 | AU16: Clothing and footwear | AV16: 1.705 | AW16: 3.72 | AX16: 2.6195 | AY16: 3.689 | AZ16: 4.867 | BA16: 5.1925 | BB16: 4.8205 | BD16: 0.155 | BE16: 0.155 | BF16: 0.155 | BG16: 0.155 | BH16: 0.155 | BI16: 0.155 | BJ16: 0.155
A17: Total number of adults in sample | E17: 140 | F17: 240 | H17: 530 | I17: 1290 | K17: 840 | L17: 2390 | N17: 140 | O17: 130 | Q17: 850 | R17: 1020 | S17: 370 | U17: 1370 | V17: 570 | Y17: 4 | Z17: Housing(net)2, fuel & power | AA17: 74 | AB17: 92.3 | AC17: 99.4 | AD17: 94.4 | AE17: 99.9 | AF17: 98 | AG17: 102.2 | AI17: 4 | AJ17: Housing(net)2, fuel and power | AK17: 108.78 | AL17: 135.681 | AM17: 146.118 | AN17: 138.768 | AO17: 146.853 | AP17: 144.06 | AQ17: 150.234 | AT17: 4 | AU17: Housing(net)2, fuel and power | AV17: 34.78 | AW17: 43.381 | AX17: 46.718 | AY17: 44.368 | AZ17: 46.953 | BA17: 46.06 | BB17: 48.034 | BD17: 0.47 | BE17: 0.47 | BF17: 0.47 | BG17: 0.47 | BH17: 0.47 | BI17: 0.47 | BJ17: 0.47
Y18: 5 | Z18: Household goods & services | AA18: 19.1 | AB18: 42.5 | AC18: 21.9 | AD18: 21.2 | AE18: 50.7 | AF18: 46.7 | AG18: 49.7 | AI18: 5 | AJ18: Household goods and services | AK18: 22.0605 | AL18: 49.0875 | AM18: 25.2945 | AN18: 24.486 | AO18: 58.5585 | AP18: 53.9385 | AQ18: 57.4035 | AT18: 5 | AU18: Household goods and services | AV18: 2.9605 | AW18: 6.5875 | AX18: 3.3945 | AY18: 3.286 | AZ18: 7.8585 | BA18: 7.2385 | BB18: 7.7035 | BD18: 0.155 | BE18: 0.155 | BF18: 0.155 | BG18: 0.155 | BH18: 0.155 | BI18: 0.155 | BJ18: 0.155
A19: Weighted average number of persons per household | E19: 1 | F19: 2 | H19: 1 | I19: 2 | K19: 1 | L19: 2 | N19: 2 | O19: 3.4 | Q19: 3 | R19: 4 | S19: 5.2 | U19: 3.4 | V19: 5 | Y19: 6 | Z19: Health | AA19: 5.3 | AB19: 10.5 | AC19: 2.5 | AD19: 3.1 | AE19: 5.3 | AF19: 7.1 | AG19: 7.2 | AI19: 6 | AJ19: Health | AK19: 6.1215 | AL19: 12.1275 | AM19: 2.8875 | AN19: 3.5805 | AO19: 6.1215 | AP19: 8.2005 | AQ19: 8.316 | AT19: 6 | AU19: Health | AV19: 0.8215 | AW19: 1.6275 | AX19: 0.3875 | AY19: 0.4805 | AZ19: 0.8215 | BA19: 1.1005 | BB19: 1.116 | BD19: 0.155 | BE19: 0.155 | BF19: 0.155 | BG19: 0.155 | BH19: 0.155 | BI19: 0.155 | BJ19: 0.155
Y20: 7 | Z20: Transport | AA20: 45.2 | AB20: 101 | AC20: 38.6 | AD20: 43.1 | AE20: 100.6 | AF20: 115.8 | AG20: 106.6 | AI20: 7 | AJ20: Transport | AK20: 52.206 | AL20: 116.655 | AM20: 44.583 | AN20: 49.7805 | AO20: 116.193 | AP20: 133.749 | AQ20: 123.123 | AT20: 7 | AU20: Transport | AV20: 7.006 | AW20: 15.655 | AX20: 5.983 | AY20: 6.6805 | AZ20: 15.593 | BA20: 17.949 | BB20: 16.523 | BD20: 0.155 | BE20: 0.155 | BF20: 0.155 | BG20: 0.155 | BH20: 0.155 | BI20: 0.155 | BJ20: 0.155
Y21: 8 | Z21: Communication | AA21: 13.6 | AB21: 23.8 | AC21: 15.5 | AD21: 17.8 | AE21: 25.6 | AF21: 25.7 | AG21: 27 | AI21: 8 | AJ21: Communication | AK21: 15.708 | AL21: 27.489 | AM21: 17.9025 | AN21: 20.559 | AO21: 29.568 | AP21: 29.6835 | AQ21: 31.185 | AT21: 8 | AU21: Communication | AV21: 2.108 | AW21: 3.689 | AX21: 2.4025 | AY21: 2.759 | AZ21: 3.968 | BA21: 3.9835 | BB21: 4.185 | BD21: 0.155 | BE21: 0.155 | BF21: 0.155 | BG21: 0.155 | BH21: 0.155 | BI21: 0.155 | BJ21: 0.155
A22: Commodity or service | F22: Average weekly household expenditure (£) | Y22: 9 | Z22: Recreation & culture | AA22: 33.7 | AB22: 87.4 | AC22: 37.7 | AD22: 42.1 | AE22: 80.4 | AF22: 103.2 | AG22: 83.2 | AI22: 9 | AJ22: Recreation and culture | AK22: 38.9235 | AL22: 100.947 | AM22: 43.5435 | AN22: 48.6255 | AO22: 92.862 | AP22: 119.196 | AQ22: 96.096 | AT22: 9 | AU22: Recreation and culture | AV22: 5.2235 | AW22: 13.547 | AX22: 5.8435 | AY22: 6.5255 | AZ22: 12.462 | BA22: 15.996 | BB22: 12.896 | BD22: 0.155 | BE22: 0.155 | BF22: 0.155 | BG22: 0.155 | BH22: 0.155 | BI22: 0.155 | BJ22: 0.155
Y23: 10 | Z23: Education | AI23: 10 | AJ23: Education | AT23: 10 | AU23: Education
Y24: 11 | Z24: Restaurants & hotels | AA24: 27.1 | AB24: 63.3 | AC24: 21.7 | AD24: 31.7 | AE24: 61.6 | AF24: 74.3 | AG24: 61 | AI24: 11 | AJ24: Restaurants and hotels | AK24: 31.3005 | AL24: 73.1115 | AM24: 25.0635 | AN24: 36.6135 | AO24: 71.148 | AP24: 85.8165 | AQ24: 70.455 | AT24: 11 | AU24: Restaurants and hotels | AV24: =AK24-AA24 -> 4.2005 | AW24: =AL24-AB24 -> 9.8115 | AX24: =AM24-AC24 -> 3.3635 | AY24: =AN24-AD24 -> 4.9135 | AZ24: =AO24-AE24 -> 9.548 | BA24: =AP24-AF24 -> 11.5165 | BB24: =AQ24-AG24 -> 9.455 | BD24: 0.155 | BE24: 0.155 | BF24: 0.155 | BG24: 0.155 | BH24: 0.155 | BI24: 0.155 | BJ24: 0.155
A25: 1 | B25: Food & non-alcoholic drinks | E25: 34 | F25: 64.4 | H25: 34.4 | I25: 67.5 | K25: 32.5 | L25: 63.5 | N25: 41.1 | O25: 55 | Q25: 71.7 | R25: 88.2 | S25: 103.9 | U25: 97.9 | V25: 105.4 | Y25: 12 | Z25: Miscellaneous goods & services | AA25: 27.4 | AB25: 47.5 | AC25: 29.6 | AD25: 28 | AE25: 60.8 | AF25: 64.9 | AG25: 58.9 | AI25: 12 | AJ25: Miscellaneous goods and services | AK25: 31.647 | AL25: 54.8625 | AM25: 34.188 | AN25: 32.34 | AO25: 70.224 | AP25: 74.9595 | AQ25: 68.0295 | AT25: 12 | AU25: Miscellaneous goods and services | AV25: 4.247 | AW25: 7.3625 | AX25: 4.588 | AY25: 4.34 | AZ25: 9.424 | BA25: 10.0595 | BB25: 9.1295 | BD25: 0.155 | BE25: 0.155 | BF25: 0.155 | BG25: 0.155 | BH25: 0.155 | BI25: 0.155 | BJ25: 0.155
A27: 2 | B27: Alcoholic drinks, tobacco & narcotics | E27: 6.3 | F27: 11.8 | H27: 6.3 | I27: 13.4 | K27: 9.2 | L27: 15.9 | N27: 7.5 | O27: 6.6 | Q27: 12.4 | R27: 11.6 | S27: 10.7 | U27: 24.6 | V27: 17.3 | Y27: 1-12 | Z27: All expenditure groups | AA27: 299.4 | AB27: 574.4 | AC27: 342.9 | AD27: 371 | AE27: 605.7 | AF27: 682.7 | AG27: 658.8 | AI27: 1-12 | AJ27: All expenditure groups | AK27: 367.6155 | AL27: 689.388 | AM27: 415.233 | AN27: 453.39 | AO27: 724.9305 | AP27: 803.565 | AQ27: 773.1255 | AT27: 1-12 | AU27: All expenditure groups | AV27: 68.2155 | AW27: 114.988 | AX27: 72.333 | AY27: 82.39 | AZ27: 119.2305 | BA27: 120.865 | BB27: 114.3255 | BD27: 0.2278406814 | BE27: 0.2001880223 | BF27: 0.2109448819 | BG27: 0.2220754717 | BH27: 0.1968474492 | BI27: 0.1770396953 | BJ27: 0.1735359745
A29: 3 | B29: Clothing & footwear | E29: 7.9 | F29: 9.5 | H29: 8 | I29: 19.1 | K29: 11 | L29: 24 | N29: 16.9 | O29: 23.8 | Q29: 31.4 | R29: 33.5 | S29: 31.1 | U29: 40.1 | V29: 55.3 | Y29: 13 | Z29: Other expenditure items | AA29: 57.2 | AB29: 90.1 | AC29: 39.8 | AD29: 37.1 | AE29: 102.6 | AF29: 118.5 | AG29: 113.9 | AI29: 13 | AJ29: Other expenditure items | AK29: 66.066 | AL29: 104.0655 | AM29: 45.969 | AN29: 42.8505 | AO29: 118.503 | AP29: 136.8675 | AQ29: 131.5545 | AT29: 13 | AU29: Other expenditure items | AV29: 8.866 | AW29: 13.9655 | AX29: 6.169 | AY29: 5.7505 | AZ29: 15.903 | BA29: 18.3675 | BB29: 17.6545 | BD29: 0.155 | BE29: 0.155 | BF29: 0.155 | BG29: 0.155 | BH29: 0.155 | BI29: 0.155 | BJ29: 0.155
A31: 4 | B31: Housing(net)2, fuel & power | E31: 46.3 | F31: 46.9 | H31: 46.4 | I31: 53 | K31: 74 | L31: 92.3 | N31: 99.4 | O31: 94.4 | Q31: 99.9 | R31: 98 | S31: 102.2 | U31: 119 | V31: 92.3 | Y31: Total expenditure | AA31: 356.6 | AB31: 664.5 | AC31: 382.8 | AD31: 408.1 | AE31: 708.3 | AF31: 801.2 | AG31: 772.7 | AI31: Total expenditure | AK31: 433.6815 | AL31: 793.4535 | AM31: 461.202 | AN31: 496.2405 | AO31: 843.4335 | AP31: 940.4325 | AQ31: 904.68 | AT31: Total expenditure | AV31: 77.0815 | AW31: 128.9535 | AX31: 78.402 | AY31: 88.1405 | AZ31: 135.1335 | BA31: 139.2325 | BB31: 131.98 | BD31: 0.2161567583 | BE31: 0.1940609481 | BF31: 0.2048119122 | BG31: 0.2159777015 | BH31: 0.190785684 | BI31: 0.1737799551 | BJ31: 0.1708036754
A33: 5 | B33: Household goods & services | E33: 13.7 | F33: 33.2 | H33: 16.9 | I33: 39.7 | K33: 19.1 | L33: 42.5 | N33: 21.9 | O33: 21.2 | Q33: 50.7 | R33: 46.7 | S33: 49.7 | U33: 51.7 | V33: 48.7
A35: 6 | B35: Health | E35: 3.1 | F35: 7.5 | H35: 9.3 | I35: 12.2 | K35: 5.3 | L35: 10.5 | N35: 2.5 | O35: 3.1 | Q35: 5.3 | R35: 7.1 | S35: 7.2 | U35: 11 | V35: 6.2
A37: 7 | B37: Transport | E37: 17.7 | F37: 41.7 | H37: 25 | I37: 63.2 | K37: 45.2 | L37: 101 | N37: 38.6 | O37: 43.1 | Q37: 100.6 | R37: 115.8 | S37: 106.6 | U37: 137.2 | V37: 146.4
A39: 8 | B39: Communication | E39: 10.9 | F39: 16.8 | H39: 12.5 | I39: 18.7 | K39: 13.6 | L39: 23.8 | N39: 15.5 | O39: 17.8 | Q39: 25.6 | R39: 25.7 | S39: 27 | U39: 31.1 | V39: 36.4
A41: 9 | B41: Recreation & culture | E41: 31.3 | F41: 58.3 | H41: 42.5 | I41: 99.7 | K41: 33.7 | L41: 87.4 | N41: 37.7 | O41: 42.1 | Q41: 80.4 | R41: 103.2 | S41: 83.2 | U41: 108.9 | V41: 97.5
A43: 10 | B43: Education | E43: .. | F43: : | H43: .. | I43: .. | K43: [1.40] | L43: 2.7 | N43: [10.70] | O43: [4.20] | Q43: 5.3 | R43: 13.6 | S43: 17.3 | U43: 6.7 | V43: 11.1
A45: 11 | B45: Restaurants & hotels | E45: 11.7 | F45: 29.1 | H45: 18.1 | I45: 50.4 | K45: 27.1 | L45: 63.3 | N45: 21.7 | O45: 31.7 | Q45: 61.6 | R45: 74.3 | S45: 61 | U45: 93.9 | V45: 90.2
A47: 12 | B47: Miscellaneous goods & services | E47: 42.8 | F47: 25.9 | H47: 22.3 | I47: 45.5 | K47: 27.4 | L47: 47.5 | N47: 29.6 | O47: 28 | Q47: 60.8 | R47: 64.9 | S47: 58.9 | U47: 62.4 | V47: 71.2
A50: 1-12 | B50: All expenditure groups | E50: 225.7 | F50: 345.1 | H50: 241.7 | I50: 483.4 | K50: 299.4 | L50: 574.4 | N50: 342.9 | O50: 371 | Q50: 605.7 | R50: 682.7 | S50: 658.8 | U50: 784.4 | V50: 778
A53: 13 | B53: Other expenditure items | E53: 31.3 | F53: 40.1 | H53: 33 | I53: 67.8 | K53: 57.2 | L53: 90.1 | N53: 39.8 | O53: 37.1 | Q53: 102.6 | R53: 118.5 | S53: 113.9 | U53: 110.4 | V53: 107.8
A56: Total expenditure | E56: 257 | F56: 385.2 | H56: 274.7 | I56: 551.1 | K56: 356.6 | L56: 664.5 | N56: 382.8 | O56: 408.1 | Q56: 708.3 | R56: 801.2 | S56: 772.7 | U56: 894.8 | V56: 885.8
A59: Average weekly expenditure per person (£)
A60: Total expenditure | E60: 257 | F60: 192.6 | H60: 274.7 | I60: 275.6 | K60: 356.6 | L60: 332.3 | N60: 191.4 | O60: 118.6 | Q60: 236.1 | R60: 200.3 | S60: 147.9 | U60: 259.8 | V60: 177.3
A63: Note: The commodity and service categories are not comparable to those in publications before 2001-02.
A64: Please see background notes for symbols and conventions used in this report.
A65: 1 Mainly dependent on state pensions and not economically active.
A66: 2 Excluding mortgage interest payments, council tax and Northern Ireland rates.
A69: Source: Office for National Statistics

Sheet ONS 2021 (hidden)
A1: Table A23 | V1: Back to Contents
A2: Expenditure by household composition
A3: UK, financial year ending 2020
E6: Retired households | K6: Non-retired | N6: Retired and non-retired households | AA6: Non-retired | AC6: Retired and non-retired households | AJ6: 2018 | AK6: Non-retired | AM6: Retired and non-retired households | AV6: Non-retired | AX6: Retired and non-retired households
E7: State pension1 | H7: Other retired | K7: One | L7: Two | N7: One adult | Q7: Two adults | U7: Three or more adults | AA7: One | AB7: Two | AC7: One adult | AE7: Two adults | AK7: One | AL7: Two | AM7: One adult | AO7: Two adults | AV7: One | AW7: Two | AX7: One adult | AZ7: Two adults
E8: One | F8: Two | H8: One | I8: Two | K8: person | L8: adults | N8: with | O8: with | Q8: with | R8: with | S8: with | U8: without | V8: with | AA8: person | AB8: adults | AC8: with | AD8: with | AE8: with | AF8: with | AG8: with | AK8: person | AL8: adults | AM8: with | AN8: with | AO8: with | AP8: with | AQ8: with | AV8: person | AW8: adults | AX8: with | AY8: with | AZ8: with | BA8: with | BB8: with
E9: person | F9: adults | H9: person | I9: adults | N9: one | O9: two | Q9: one | R9: two | S9: three | U9: children | V9: children | AC9: one | AD9: two | AE9: one | AF9: two | AG9: three | AM9: one | AN9: two | AO9: one | AP9: two | AQ9: three | AX9: one | AY9: two | AZ9: one | BA9: two | BB9: three
N10: child | O10: or more | Q10: child | R10: children | S10: or more | AC10: child | AD10: or more | AE10: child | AF10: children | AG10: or more | AM10: child | AN10: or more | AO10: child | AP10: children | AQ10: or more | AX10: child | AY10: or more | AZ10: child | BA10: children | BB10: or more
O11: children | S11: children | AD11: children | AG11: children | AN11: children | AQ11: children | AY11: children | BB11: children
A14: Weighted number of households (thousands) | E14: 770 | F14: 470 | H14: 2780 | I14: 2770 | K14: 4370 | L14: 6220 | N14: 620 | O14: 540 | Q14: 2190 | R14: 2540 | S14: 960 | U14: 2520 | V14: 1080 | Y14: 1 | Z14: Food & non-alcoholic drinks | AA14: 32.5 | AB14: 63.5 | AC14: 41.1 | AD14: 55 | AE14: 71.7 | AF14: 88.2 | AG14: 103.9 | AI14: 1 | AJ14: Food and non-alcoholic drinks | AK14: 31.4 | AL14: 60.8 | AM14: 40.5 | AN14: 57.1 | AO14: 69.3 | AP14: 83.4 | AQ14: 88.6 | AT14: 1 | AU14: Food and non-alcoholic drinks | AV14: =AA14-AK14 -> 1.1 | AW14: =AB14-AL14 -> 2.7 | AX14: =AC14-AM14 -> 0.6 | AY14: =AD14-AN14 -> -2.1 | AZ14: =AE14-AO14 -> 2.4 | BA14: =AF14-AP14 -> 4.8 | BB14: =AG14-AQ14 -> 15.3
A15: Total number of households in sample | E15: 140 | F15: 120 | H15: 530 | I15: 640 | K15: 840 | L15: 1190 | N15: 140 | O15: 130 | Q15: 420 | R15: 510 | S15: 190 | U15: 410 | V15: 170 | Y15: 2 | Z15: Alcoholic drinks, tobacco & narcotics | AA15: 9.2 | AB15: 15.9 | AC15: 7.5 | AD15: 6.6 | AE15: 12.4 | AF15: 11.6 | AG15: 10.7 | AI15: 2 | AJ15: Alcoholic drinks, tobacco and narcotics | AK15: 9.3 | AL15: 15.1 | AM15: 4.7 | AN15: 7.1 | AO15: 11.2 | AP15: 12.3 | AQ15: 13.3 | AT15: 2 | AU15: Alcoholic drinks, tobacco and narcotics | AV15: -0.1 | AW15: 0.8 | AX15: 2.8 | AY15: -0.5 | AZ15: 1.2 | BA15: -0.7 | BB15: -2.6
A16: Total number of persons in sample | E16: 140 | F16: 240 | H16: 530 | I16: 1290 | K16: 840 | L16: 2390 | N16: 290 | O16: 440 | Q16: 1270 | R16: 2040 | S16: 990 | U16: 1370 | V16: 850 | Y16: 3 | Z16: Clothing & footwear | AA16: 11 | AB16: 24 | AC16: 16.9 | AD16: 23.8 | AE16: 31.4 | AF16: 33.5 | AG16: 31.1 | AI16: 3 | AJ16: Clothing and footwear | AK16: 9.8 | AL16: 25.1 | AM16: 17.9 | AN16: 24.8 | AO16: 26.2 | AP16: 43.8 | AQ16: 34.4 | AT16: 3 | AU16: Clothing and footwear | AV16: 1.2 | AW16: -1.1 | AX16: -1 | AY16: -1 | AZ16: 5.2 | BA16: -10.3 | BB16: -3.3
A17: Total number of adults in sample | E17: 140 | F17: 240 | H17: 530 | I17: 1290 | K17: 840 | L17: 2390 | N17: 140 | O17: 130 | Q17: 850 | R17: 1020 | S17: 370 | U17: 1370 | V17: 570 | Y17: 4 | Z17: Housing(net)2, fuel & power | AA17: 74 | AB17: 92.3 | AC17: 99.4 | AD17: 94.4 | AE17: 99.9 | AF17: 98 | AG17: 102.2 | AI17: 4 | AJ17: Housing(net)2, fuel and power | AK17: 70.3 | AL17: 84.1 | AM17: 85.2 | AN17: 63.3 | AO17: 86 | AP17: 89.1 | AQ17: 100.6 | AT17: 4 | AU17: Housing(net)2, fuel and power | AV17: 3.7 | AW17: 8.2 | AX17: 14.2 | AY17: 31.1 | AZ17: 13.9 | BA17: 8.9 | BB17: 1.6
Y18: 5 | Z18: Household goods & services | AA18: 19.1 | AB18: 42.5 | AC18: 21.9 | AD18: 21.2 | AE18: 50.7 | AF18: 46.7 | AG18: 49.7 | AI18: 5 | AJ18: Household goods and services | AK18: 26.9 | AL18: 49.5 | AM18: 35.6 | AN18: 23.5 | AO18: 53.3 | AP18: 46.7 | AQ18: 51.2 | AT18: 5 | AU18: Household goods and services | AV18: -7.8 | AW18: -7 | AX18: -13.7 | AY18: -2.3 | AZ18: -2.6 | BA18: 0 | BB18: -1.5
A19: Weighted average number of persons per household | E19: 1 | F19: 2 | H19: 1 | I19: 2 | K19: 1 | L19: 2 | N19: 2 | O19: 3.4 | Q19: 3 | R19: 4 | S19: 5.2 | U19: 3.4 | V19: 5 | Y19: 6 | Z19: Health | AA19: 5.3 | AB19: 10.5 | AC19: 2.5 | AD19: 3.1 | AE19: 5.3 | AF19: 7.1 | AG19: 7.2 | AI19: 6 | AJ19: Health | AK19: 5.5 | AL19: 7.1 | AM19: 1.3 | AN19: 4.2 | AO19: 5.4 | AP19: 5.9 | AQ19: 6.6 | AT19: 6 | AU19: Health | AV19: -0.2 | AW19: 3.4 | AX19: 1.2 | AY19: -1.1 | AZ19: -0.1 | BA19: 1.2 | BB19: 0.6
Y20: 7 | Z20: Transport | AA20: 45.2 | AB20: 101 | AC20: 38.6 | AD20: 43.1 | AE20: 100.6 | AF20: 115.8 | AG20: 106.6 | AI20: 7 | AJ20: Transport | AK20: 45.3 | AL20: 97.7 | AM20: 44.7 | AN20: 40.4 | AO20: 93.8 | AP20: 118.4 | AQ20: 93.6 | AT20: 7 | AU20: Transport | AV20: -0.1 | AW20: 3.3 | AX20: -6.1 | AY20: 2.7 | AZ20: 6.8 | BA20: -2.6 | BB20: 13
Y21: 8 | Z21: Communication | AA21: 13.6 | AB21: 23.8 | AC21: 15.5 | AD21: 17.8 | AE21: 25.6 | AF21: 25.7 | AG21: 27 | AI21: 8 | AJ21: Communication | AK21: 11.6 | AL21: 19.6 | AM21: 14.8 | AN21: 15.5 | AO21: 21.3 | AP21: 22.6 | AQ21: 23.8 | AT21: 8 | AU21: Communication | AV21: 2 | AW21: 4.2 | AX21: 0.7 | AY21: 2.3 | AZ21: 4.3 | BA21: 3.1 | BB21: 3.2
A22: Commodity or service | F22: Average weekly household expenditure (£) | Y22: 9 | Z22: Recreation & culture | AA22: 33.7 | AB22: 87.4 | AC22: 37.7 | AD22: 42.1 | AE22: 80.4 | AF22: 103.2 | AG22: 83.2 | AI22: 9 | AJ22: Recreation and culture | AK22: 41.5 | AL22: 86.8 | AM22: 38.4 | AN22: 48.6 | AO22: 67.8 | AP22: 104.7 | AQ22: 91.6 | AT22: 9 | AU22: Recreation and culture | AV22: -7.8 | AW22: 0.6 | AX22: -0.7 | AY22: -6.5 | AZ22: 12.6 | BA22: -1.5 | BB22: -8.4
Y23: 10 | Z23: Education | AA23: [1.40] | AB23: 2.7 | AC23: [10.70] | AD23: [4.20] | AE23: 5.3 | AF23: 13.6 | AG23: 17.3 | AI23: 10 | AJ23: Education | AK23: 6.1 | AL23: 5.5 | AM23: 8.8 | AN23: 8.2 | AO23: 14.2 | AP23: 15.9 | AQ23: 23.6 | AT23: 10 | AU23: Education | AW23: =AB23-AL23 -> -2.8 | AZ23: =AE23-AO23 -> -8.9 | BA23: -2.3 | BB23: -6.3
Y24: 11 | Z24: Restaurants & hotels | AA24: 27.1 | AB24: 63.3 | AC24: 21.7 | AD24: 31.7 | AE24: 61.6 | AF24: 74.3 | AG24: 61 | AI24: 11 | AJ24: Restaurants and hotels | AK24: 27.7 | AL24: 63.6 | AM24: 25.6 | AN24: 27.7 | AO24: 52.4 | AP24: 65.7 | AQ24: 62.7 | AT24: 11 | AU24: Restaurants and hotels | AV24: =AA24-AK24 -> -0.6 | AW24: =AB24-AL24 -> -0.3 | AX24: =AC24-AM24 -> -3.9 | AY24: =AD24-AN24 -> 4 | AZ24: 9.2 | BA24: 8.6 | BB24: -1.7
A25: 1 | B25: Food & non-alcoholic drinks | E25: 34 | F25: 64.4 | H25: 34.4 | I25: 67.5 | K25: 32.5 | L25: 63.5 | N25: 41.1 | O25: 55 | Q25: 71.7 | R25: 88.2 | S25: 103.9 | U25: 97.9 | V25: 105.4 | Y25: 12 | Z25: Miscellaneous goods & services | AA25: 27.4 | AB25: 47.5 | AC25: 29.6 | AD25: 28 | AE25: 60.8 | AF25: 64.9 | AG25: 58.9 | AI25: 12 | AJ25: Miscellaneous goods and services | AK25: 21.1 | AL25: 46.5 | AM25: 29.6 | AN25: 26 | AO25: 55.6 | AP25: 63.9 | AQ25: 48.5 | AT25: 12 | AU25: Miscellaneous goods and services | AV25: =AA25-AK25 -> 6.3 | AW25: =AB25-AL25 -> 1 | AX25: =AC25-AM25 -> 0 | AY25: =AD25-AN25 -> 2 | AZ25: 5.2 | BA25: 1 | BB25: 10.4
A27: 2 | B27: Alcoholic drinks, tobacco & narcotics | E27: 6.3 | F27: 11.8 | H27: 6.3 | I27: 13.4 | K27: 9.2 | L27: 15.9 | N27: 7.5 | O27: 6.6 | Q27: 12.4 | R27: 11.6 | S27: 10.7 | U27: 24.6 | V27: 17.3 | Y27: 1-12 | Z27: All expenditure groups | AA27: 299.4 | AB27: 574.4 | AC27: 342.9 | AD27: 371 | AE27: 605.7 | AF27: 682.7 | AG27: 658.8 | AI27: 1-12 | AJ27: All expenditure groups | AK27: 306.4 | AL27: 561.3 | AM27: 347.1 | AN27: 346.5 | AO27: 556.4 | AP27: 672.5 | AQ27: 638.6 | AT27: 1-12 | AU27: All expenditure groups | AV27: =AA27-AK27 -> -7 | AW27: 13.1 | AX27: -4.2 | AY27: 24.5 | AZ27: 49.3 | BA27: 10.2 | BB27: 20.2
A29: 3 | B29: Clothing & footwear | E29: 7.9 | F29: 9.5 | H29: 8 | I29: 19.1 | K29: 11 | L29: 24 | N29: 16.9 | O29: 23.8 | Q29: 31.4 | R29: 33.5 | S29: 31.1 | U29: 40.1 | V29: 55.3 | Y29: 13 | Z29: Other expenditure items | AA29: 57.2 | AB29: 90.1 | AC29: 39.8 | AD29: 37.1 | AE29: 102.6 | AF29: 118.5 | AG29: 113.9 | AI29: 13 | AJ29: Other expenditure items | AK29: 47.1 | AL29: 99.8 | AM29: 42.6 | AN29: 40.6 | AO29: 97.8 | AP29: 110.6 | AQ29: 103.3 | AT29: 13 | AU29: Other expenditure items | AV29: =AA29-AK29 -> 10.1 | AW29: -9.7 | AX29: -2.8 | AY29: -3.5 | AZ29: 4.8 | BA29: 7.9 | BB29: 10.6
A31: 4 | B31: Housing(net)2, fuel & power | E31: 46.3 | F31: 46.9 | H31: 46.4 | I31: 53 | K31: 74 | L31: 92.3 | N31: 99.4 | O31: 94.4 | Q31: 99.9 | R31: 98 | S31: 102.2 | U31: 119 | V31: 92.3 | Y31: Total expenditure | AA31: 356.6 | AB31: 664.5 | AC31: 382.8 | AD31: 408.1 | AE31: 708.3 | AF31: 801.2 | AG31: 772.7 | AI31: Total expenditure | AK31: 353.5 | AL31: 661.1 | AM31: 389.7 | AN31: 387 | AO31: 654.2 | AP31: 783.1 | AQ31: 741.9 | AT31: Total expenditure | AV31: =AA31-AK31 -> 3.1 | AW31: 3.4 | AX31: -6.9 | AY31: 21.1 | AZ31: 54.1 | BA31: 18.1 | BB31: 30.8
A33: 5 | B33: Household goods & services | E33: 13.7 | F33: 33.2 | H33: 16.9 | I33: 39.7 | K33: 19.1 | L33: 42.5 | N33: 21.9 | O33: 21.2 | Q33: 50.7 | R33: 46.7 | S33: 49.7 | U33: 51.7 | V33: 48.7
A35: 6 | B35: Health | E35: 3.1 | F35: 7.5 | H35: 9.3 | I35: 12.2 | K35: 5.3 | L35: 10.5 | N35: 2.5 | O35: 3.1 | Q35: 5.3 | R35: 7.1 | S35: 7.2 | U35: 11 | V35: 6.2
A37: 7 | B37: Transport | E37: 17.7 | F37: 41.7 | H37: 25 | I37: 63.2 | K37: 45.2 | L37: 101 | N37: 38.6 | O37: 43.1 | Q37: 100.6 | R37: 115.8 | S37: 106.6 | U37: 137.2 | V37: 146.4
A39: 8 | B39: Communication | E39: 10.9 | F39: 16.8 | H39: 12.5 | I39: 18.7 | K39: 13.6 | L39: 23.8 | N39: 15.5 | O39: 17.8 | Q39: 25.6 | R39: 25.7 | S39: 27 | U39: 31.1 | V39: 36.4
A41: 9 | B41: Recreation & culture | E41: 31.3 | F41: 58.3 | H41: 42.5 | I41: 99.7 | K41: 33.7 | L41: 87.4 | N41: 37.7 | O41: 42.1 | Q41: 80.4 | R41: 103.2 | S41: 83.2 | U41: 108.9 | V41: 97.5
A43: 10 | B43: Education | E43: .. | F43: : | H43: .. | I43: .. | K43: [1.40] | L43: 2.7 | N43: [10.70] | O43: [4.20] | Q43: 5.3 | R43: 13.6 | S43: 17.3 | U43: 6.7 | V43: 11.1
A45: 11 | B45: Restaurants & hotels | E45: 11.7 | F45: 29.1 | H45: 18.1 | I45: 50.4 | K45: 27.1 | L45: 63.3 | N45: 21.7 | O45: 31.7 | Q45: 61.6 | R45: 74.3 | S45: 61 | U45: 93.9 | V45: 90.2
A47: 12 | B47: Miscellaneous goods & services | E47: 42.8 | F47: 25.9 | H47: 22.3 | I47: 45.5 | K47: 27.4 | L47: 47.5 | N47: 29.6 | O47: 28 | Q47: 60.8 | R47: 64.9 | S47: 58.9 | U47: 62.4 | V47: 71.2
A50: 1-12 | B50: All expenditure groups | E50: 225.7 | F50: 345.1 | H50: 241.7 | I50: 483.4 | K50: 299.4 | L50: 574.4 | N50: 342.9 | O50: 371 | Q50: 605.7 | R50: 682.7 | S50: 658.8 | U50: 784.4 | V50: 778
A53: 13 | B53: Other expenditure items | E53: 31.3 | F53: 40.1 | H53: 33 | I53: 67.8 | K53: 57.2 | L53: 90.1 | N53: 39.8 | O53: 37.1 | Q53: 102.6 | R53: 118.5 | S53: 113.9 | U53: 110.4 | V53: 107.8
A56: Total expenditure | E56: 257 | F56: 385.2 | H56: 274.7 | I56: 551.1 | K56: 356.6 | L56: 664.5 | N56: 382.8 | O56: 408.1 | Q56: 708.3 | R56: 801.2 | S56: 772.7 | U56: 894.8 | V56: 885.8
A59: Average weekly expenditure per person (£)
A60: Total expenditure | E60: 257 | F60: 192.6 | H60: 274.7 | I60: 275.6 | K60: 356.6 | L60: 332.3 | N60: 191.4 | O60: 118.6 | Q60: 236.1 | R60: 200.3 | S60: 147.9 | U60: 259.8 | V60: 177.3
A63: Note: The commodity and service categories are not comparable to those in publications before 2001-02.
A64: Please see background notes for symbols and conventions used in this report.
A65: 1 Mainly dependent on state pensions and not economically active.
A66: 2 Excluding mortgage interest payments, council tax and Northern Ireland rates.
A69: Source: Office for National Statistics

Sheet ONS 2016 (hidden)
A1: Table A23
A2: Expenditure by household composition
A3: UK, financial year ending 2016
F6: Retired households | J6: Non-retired | L6: Retired and non-retired households
F7: State pension1 | H7: Other retired | J7: One | K7: Two | L7: One adult | N7: Two adults | Q7: Three or more adults
F8: One | G8: Two | H8: One | I8: Two | J8: person | K8: adults | L8: with | M8: with | N8: with | O8: with | P8: with | Q8: without | R8: with
F9: person | G9: adults | H9: person | I9: adults | L9: one | M9: two | N9: one | O9: two | P9: three | Q9: children | R9: children
L10: child | M10: or more | N10: child | O10: children | P10: or more
M11: children | P11: children
A14: Weighted number of households (thousands) | F14: 740 | G14: 450 | H14: 2660 | I14: 2830 | J14: 4380 | K14: 5860 | L14: 670 | M14: 580 | N14: 2270 | O14: 2340 | P14: 960 | Q14: 2460 | R14: 1040
A15: Total number of households in sample | F15: 120 | G15: 90 | H15: 460 | I15: 570 | J15: 770 | K15: 1060 | L15: 130 | M15: 130 | N15: 400 | O15: 460 | P15: 200 | Q15: 370 | R15: 160
A16: Total number of persons in sample | F16: 120 | G16: 190 | H16: 460 | I16: 1140 | J16: 770 | K16: 2130 | L16: 270 | M16: 440 | N16: 1210 | O16: 1820 | P16: 1070 | Q16: 1240 | R16: 770
A17: Total number of adults in sample | F17: 120 | G17: 190 | H17: 460 | I17: 1140 | J17: 770 | K17: 2130 | L17: 130 | M17: 130 | N17: 810 | O17: 910 | P17: 400 | Q17: 1240 | R17: 540
A19: Weighted average number of persons per household | F19: 1 | G19: 2 | H19: 1 | I19: 2 | J19: 1 | K19: 2 | L19: 2 | M19: 3.4 | N19: 3 | O19: 4 | P19: 5.3 | Q19: 3.4 | R19: 4.9
A22: Commodity or service | G22: Average weekly household expenditure (£)
A25: 1 | B25: Food and non-alcoholic drinks | F25: 25.4 | G25: 51.4 | H25: 32.7 | I25: 63.2 | J25: 29 | K25: 56.8 | L25: 42.5 | M25: 55.4 | N25: 65.3 | O25: 81.4 | P25: 86.1 | Q25: 82.2 | R25: 93.1
A27: 2 | B27: Alcoholic drinks, tobacco and narcotics | F27: 4.3 | G27: 9.4 | H27: 6.6 | I27: 11.3 | J27: 8.7 | K27: 13.8 | L27: 6 | M27: 7.5 | N27: 10.9 | O27: 12.5 | P27: 11.3 | Q27: 17.7 | R27: 16.5
A29: 3 | B29: Clothing and footwear | F29: 4.5 | G29: 12.4 | H29: 7.8 | I29: 18.2 | J29: 8.5 | K29: 25.8 | L29: 21 | M29: 22.9 | N29: 29.6 | O29: 32.8 | P29: 39.3 | Q29: 44.9 | R29: 48
A31: 4 | B31: Housing(net)2, fuel and power | F31: 43.9 | G31: 52.4 | H31: 40.4 | I31: 55.1 | J31: 66.3 | K31: 85.8 | L31: 71.6 | M31: 72.7 | N31: 88.1 | O31: 80.3 | P31: 89.2 | Q31: 91.2 | R31: 70.3
A33: 5 | B33: Household goods and services | F33: 13.6 | G33: 23.1 | H33: 21.8 | I33: 36.5 | J33: 19.2 | K33: 42.8 | L33: 23.7 | M33: 23.6 | N33: 45.2 | O33: 48.3 | P33: 53.5 | Q33: 47.2 | R33: 35.6
A35: 6 | B35: Health | F35: 3.3 | G35: 3.8 | H35: 5.1 | I35: 13.8 | J35: 3.4 | K35: 9.1 | L35: 1.1 | M35: 2.8 | N35: 4.4 | O35: 10 | P35: 4.1 | Q35: 10.3 | R35: 5.7
A37: 7 | B37: Transport | F37: 9 | G37: 34.5 | H37: 28 | I37: 63.8 | J37: 36.2 | K37: 95 | L37: 30.4 | M37: 32.1 | N37: 92 | O37: 102.9 | P37: 91.1 | Q37: 119.1 | R37: 115.6
A39: 8 | B39: Communication | F39: 6.3 | G39: 10.4 | H39: 8.5 | I39: 12.4 | J39: 10.4 | K39: 17.5 | L39: 12.3 | M39: 17.5 | N39: 21.3 | O39: 20.7 | P39: 22.9 | Q39: 22.4 | R39: 27.3
A41: 9 | B41: Recreation and culture | F41: 18.3 | G41: 47.9 | H41: 32 | I41: 84.6 | J41: 32.5 | K41: 85.4 | L41: 39.5 | M41: 46.9 | N41: 73.5 | O41: 93.6 | P41: 95.1 | Q41: 89 | R41: 95.9
A43: 10 | B43: Education | F43: - | G43: - | H43: 0.1 | I43: 1.1 | J43: 1.1 | K43: 7.7 | L43: 2.2 | M43: 12.5 | N43: 9.9 | O43: 17.2 | P43: 23.5 | Q43: 14.2 | R43: 9.2
A45: 11 | B45: Restaurants and hotels | F45: 7.6 | G45: 23.7 | H45: 15.8 | I45: 43.3 | J45: 24.1 | K45: 58.1 | L45: 21.4 | M45: 35.5 | N45: 48.2 | O45: 58.5 | P45: 55.3 | Q45: 79.4 | R45: 70.2
A47: 12 | B47: Miscellaneous goods and services | F47: 13.3 | G47: 18.8 | H47: 24.8 | I47: 38.4 | J47: 18.3 | K47: 40.5 | L47: 25.7 | M47: 35 | N47: 56.1 | O47: 65.2 | P47: 56.5 | Q47: 52.4 | R47: 67
A50: 1-12 | B50: All expenditure groups | F50: 149.5 | G50: 287.9 | H50: 223.5 | I50: 441.7 | J50: 257.7 | K50: 538.3 | L50: 297.5 | M50: 364.5 | N50: 544.3 | O50: 623.3 | P50: 627.8 | Q50: 669.9 | R50: 654.5
A53: 13 | B53: Other expenditure items | F53: 16.6 | G53: 27.7 | H53: 36.4 | I53: 57 | J53: 50.8 | K53: 86.5 | L53: 27.4 | M53: 31.7 | N53: 88.2 | O53: 114.7 | P53: 125.6 | Q53: 88.8 | R53: 141.7
A56: Total expenditure | F56: 166.2 | G56: 315.7 | H56: 260 | I56: 498.7 | J56: 308.5 | K56: 624.7 | L56: 324.9 | M56: 396.3 | N56: 632.5 | O56: 738 | P56: 753.4 | Q56: 758.8 | R56: 796.2
A59: Average weekly expenditure per person (£)
A60: Total expenditure | F60: 166.2 | G60: 157.8 | H60: 260 | I60: 249.3 | J60: 308.5 | K60: 312.4 | L60: 162.4 | M60: 116.7 | N60: 210.8 | O60: 184.5 | P60: 141.1 | Q60: 220.3 | R60: 163.9
A63: Note: The commodity and service categories are not comparable to those in publications before 2001-02.
A64: Please see background notes for symbols and conventions used in this report.
A65: 1 Mainly dependent on state pensions and not economically active - see definitions in technical report.
A66: 2 Excluding mortgage interest payments, council tax and Northern Ireland rates.
A69: Source: Office for National Statistics

Sheet ONS 2018 (hidden)
A1: Table A23
A2: Expenditure by household composition
A3: UK, financial year ending 2018
F6: Retired households | J6: Non-retired | L6: Retired and non-retired households
F7: State pension1 | H7: Other retired | J7: One | K7: Two | L7: One adult | N7: Two adults | Q7: Three or more adults | U7: One | V7: Two | W7: One adult | Y7: Two adults
F8: One | G8: Two | H8: One | I8: Two | J8: person | K8: adults | L8: with | M8: with | N8: with | O8: with | P8: with | Q8: without | R8: with | U8: person | V8: adults | W8: with | X8: with | Y8: with | Z8: with | AA8: with
F9: person | G9: adults | H9: person | I9: adults | L9: one | M9: two | N9: one | O9: two | P9: three | Q9: children | R9: children | W9: one | X9: two | Y9: one | Z9: two | AA9: three
L10: child | M10: or more | N10: child | O10: children | P10: or more | W10: child | X10: or more | Y10: child | Z10: children | AA10: or more
M11: children | P11: children | X11: children | AA11: children
S13: 1 | T13: Food and non-alcoholic drinks | U13: 31.4 | V13: 60.8 | W13: 40.5 | X13: 57.1 | Y13: 69.3 | Z13: 83.4 | AA13: 88.6
A14: Weighted number of households (thousands) | F14: 750 | G14: 440 | H14: 2770 | I14: 2780 | J14: 3870 | K14: 5890 | L14: 680 | M14: 610 | N14: 2230 | O14: 2650 | P14: 740 | Q14: 2460 | R14: 1290 | S14: 2 | T14: Alcoholic drinks, tobacco and narcotics | U14: 9.3 | V14: 15.1 | W14: 4.7 | X14: 7.1 | Y14: 11.2 | Z14: 12.3 | AA14: 13.3
A15: Total number of households in sample | F15: 130 | G15: 100 | H15: 510 | I15: 630 | J15: 800 | K15: 1190 | L15: 140 | M15: 140 | N15: 440 | O15: 540 | P15: 160 | Q15: 410 | R15: 210 | S15: 3 | T15: Clothing and footwear | U15: 9.8 | V15: 25.1 | W15: 17.9 | X15: 24.8 | Y15: 26.2 | Z15: 43.8 | AA15: 34.4
A16: Total number of persons in sample | F16: 130 | G16: 210 | H16: 510 | I16: 1260 | J16: 800 | K16: 2380 | L16: 280 | M16: 480 | N16: 1310 | O16: 2150 | P16: 840 | Q16: 1380 | R16: 1030 | S16: 4 | T16: Housing(net)2, fuel and power | U16: 70.3 | V16: 84.1 | W16: 85.2 | X16: 63.3 | Y16: 86 | Z16: 89.1 | AA16: 100.6
A17: Total number of adults in sample | F17: 130 | G17: 210 | H17: 510 | I17: 1260 | J17: 800 | K17: 2380 | L17: 140 | M17: 140 | N17: 880 | O17: 1080 | P17: 320 | Q17: 1380 | R17: 710 | S17: 5 | T17: Household goods and services | U17: 26.9 | V17: 49.5 | W17: 35.6 | X17: 23.5 | Y17: 53.3 | Z17: 46.7 | AA17: 51.2
S18: 6 | T18: Health | U18: 5.5 | V18: 7.1 | W18: 1.3 | X18: 4.2 | Y18: 5.4 | Z18: 5.9 | AA18: 6.6
A19: Weighted average number of persons per household | F19: 1 | G19: 2 | H19: 1 | I19: 2 | J19: 1 | K19: 2 | L19: 2 | M19: 3.4 | N19: 3 | O19: 4 | P19: 5.3 | Q19: 3.4 | R19: 5 | S19: 7 | T19: Transport | U19: 45.3 | V19: 97.7 | W19: 44.7 | X19: 40.4 | Y19: 93.8 | Z19: 118.4 | AA19: 93.6
S20: 8 | T20: Communication | U20: 11.6 | V20: 19.6 | W20: 14.8 | X20: 15.5 | Y20: 21.3 | Z20: 22.6 | AA20: 23.8
S21: 9 | T21: Recreation and culture | U21: 41.5 | V21: 86.8 | W21: 38.4 | X21: 48.6 | Y21: 67.8 | Z21: 104.7 | AA21: 91.6
A22: Commodity or service | G22: Average weekly household expenditure (£) | S22: 10 | T22: Education | U22: 6.1 | V22: 5.5 | W22: 8.8 | X22: 8.2 | Y22: 14.2 | Z22: 15.9 | AA22: 23.6
S23: 11 | T23: Restaurants and hotels | U23: 27.7 | V23: 63.6 | W23: 25.6 | X23: 27.7 | Y23: 52.4 | Z23: 65.7 | AA23: 62.7
S24: 12 | T24: Miscellaneous goods and services | U24: 21.1 | V24: 46.5 | W24: 29.6 | X24: 26 | Y24: 55.6 | Z24: 63.9 | AA24: 48.5
A25: 1 | B25: Food and non-alcoholic drinks | F25: 27.9 | G25: 58.1 | H25: 33.7 | I25: 64.5 | J25: 31.4 | K25: 60.8 | L25: 40.5 | M25: 57.1 | N25: 69.3 | O25: 83.4 | P25: 88.6 | Q25: 83.3 | R25: 108.8
A26: 2 | B26: Alcoholic drinks, tobacco and narcotics | F26: 6.7 | G26: 10.6 | H26: 6 | I26: 14 | J26: 9.3 | K26: 15.1 | L26: 4.7 | M26: 7.1 | N26: 11.2 | O26: 12.3 | P26: 13.3 | Q26: 21.2 | R26: 15.9 | S26: 1-12 | T26: All expenditure groups | U26: 306.4 | V26: 561.3 | W26: 347.1 | X26: 346.5 | Y26: 556.4 | Z26: 672.5 | AA26: 638.6
A27: 3 | B27: Clothing and footwear | F27: 5.8 | G27: 10.1 | H27: 7.3 | I27: 18.9 | J27: 9.8 | K27: 25.1 | L27: 17.9 | M27: 24.8 | N27: 26.2 | O27: 43.8 | P27: 34.4 | Q27: 38.7 | R27: 55.5
A28: 4 | B28: Housing(net)2, fuel and power | F28: 43.8 | G28: 45.8 | H28: 41.5 | I28: 53.1 | J28: 70.3 | K28: 84.1 | L28: 85.2 | M28: 63.3 | N28: 86 | O28: 89.1 | P28: 100.6 | Q28: 105.1 | R28: 98.8 | S28: 13 | T28: Other expenditure items | U28: 47.1 | V28: 99.8 | W28: 42.6 | X28: 40.6 | Y28: 97.8 | Z28: 110.6 | AA28: 103.3
A29: 5 | B29: Household goods and services | F29: 11 | G29: 33.6 | H29: 22.5 | I29: 39 | J29: 26.9 | K29: 49.5 | L29: 35.6 | M29: 23.5 | N29: 53.3 | O29: 46.7 | P29: 51.2 | Q29: 50.2 | R29: 56.1
A30: 6 | B30: Health | F30: 2.9 | G30: 7 | H30: 3.5 | I30: 11.5 | J30: 5.5 | K30: 7.1 | L30: 1.3 | M30: 4.2 | N30: 5.4 | O30: 5.9 | P30: 6.6 | Q30: 9.3 | R30: 14.2 | S30: Total expenditure | U30: 353.5 | V30: 661.1 | W30: 389.7 | X30: 387 | Y30: 654.2 | Z30: 783.1 | AA30: 741.9
A31: 7 | B31: Transport | F31: 14.2 | G31: 38.2 | H31: 23.3 | I31: 66.3 | J31: 45.3 | K31: 97.7 | L31: 44.7 | M31: 40.4 | N31: 93.8 | O31: 118.4 | P31: 93.6 | Q31: 136.1 | R31: 143.9
A32: 8 | B32: Communication | F32: 7.6 | G32: 11.6 | H32: 9.5 | I32: 14.6 | J32: 11.6 | K32: 19.6 | L32: 14.8 | M32: 15.5 | N32: 21.3 | O32: 22.6 | P32: 23.8 | Q32: 25.2 | R32: 32
A33: 9 | B33: Recreation and culture | F33: 21.1 | G33: 58.9 | H33: 39 | I33: 92.4 | J33: 41.5 | K33: 86.8 | L33: 38.4 | M33: 48.6 | N33: 67.8 | O33: 104.7 | P33: 91.6 | Q33: 99.8 | R33: 116
A34: 10 | B34: Education | F34: : | G34: : | H34: .. | I34: 1.4 | J34: 6.1 | K34: 5.5 | L34: 8.8 | M34: 8.2 | N34: 14.2 | O34: 15.9 | P34: 23.6 | Q34: 22.8 | R34: 12.2
A35: 11 | B35: Restaurants and hotels | F35: 11.5 | G35: 28.1 | H35: 17.7 | I35: 43.6 | J35: 27.7 | K35: 63.6 | L35: 25.6 | M35: 27.7 | N35: 52.4 | O35: 65.7 | P35: 62.7 | Q35: 79.6 | R35: 83.7
A36: 12 | B36: Miscellaneous goods and services | F36: 16.6 | G36: 26.5 | H36: 30.2 | I36: 42.1 | J36: 21.1 | K36: 46.5 | L36: 29.6 | M36: 26 | N36: 55.6 | O36: 63.9 | P36: 48.5 | Q36: 56.7 | R36: 75.7
A38: 1-12 | B38: All expenditure groups | F38: 169.2 | G38: 328.6 | H38: 234.6 | I38: 461.3 | J38: 306.4 | K38: 561.3 | L38: 347.1 | M38: 346.5 | N38: 556.4 | O38: 672.5 | P38: 638.6 | Q38: 727.9 | R38: 812.8
A40: 13 | B40: Other expenditure items | F40: 23 | G40: 36.1 | H40: 37.5 | I40: 65.8 | J40: 47.1 | K40: 99.8 | L40: 42.6 | M40: 40.6 | N40: 97.8 | O40: 110.6 | P40: 103.3 | Q40: 88.9 | R40: 97.3
A42: Total expenditure | F42: 192.2 | G42: 364.7 | H42: 272.1 | I42: 527.1 | J42: 353.5 | K42: 661.1 | L42: 389.7 | M42: 387 | N42: 654.2 | O42: 783.1 | P42: 741.9 | Q42: 816.8 | R42: 910
A45: Average weekly expenditure per person (£)
A46: Total expenditure | F46: 192.2 | G46: 182.3 | H46: 272.1 | I46: 263.5 | J46: 353.5 | K46: 330.5 | L46: 194.8 | M46: 113 | N46: 218.1 | O46: 195.8 | P46: 140.7 | Q46: 239.4 | R46: 181.8
A49: Note: The commodity and service categories are not comparable to those in publications before 2001-02.
A50: Please see background notes for symbols and conventions used in this report.
A51: 1 Mainly dependent on state pensions and not economically active - see definitions in technical report.
A52: 2 Excluding mortgage interest payments, council tax and Northern Ireland rates.
A55: Source: Office for National Statistics

Sheet ONS expenditure breakdown A1 (hidden)
A1: Table A1
A2: Components of household expenditure
A3: UK, financial year ending 2016
G5: Average weekly | H5: Total | I5: Recording | J5: Percentage
G6: expenditure | H6: weekly | I6: house- | J6: standard
G7: all house- | H7: expenditure | I7: holds | J7: error (full
G8: holds (£) | H8: (£ million) | I8: in sample | J8: method)
A11: Total number of households | I11: 4920
A14: Commodity or service
L15: 1 | M15: Non Essential / Not required for basic standard of living | N15: Total | O15: % considered non -essential | P15: Essential / Basic standard of living | Q15: Esesential or Basic cost of living | R15: Notes
K16: ONS Category | M16: Non Essential / Not required for basic standard of living | N16: Total | O16: % considered non -essential | P16: Essential / Basic standard of living | Q16: Esesential or Basic cost of living | R16: Notes | T16: % of Sample reporting this category of Expense
A17: 1 | B17: Food and non-alcoholic drinks | G17: 56.8 | H17: 1547 | I17: 4890 | J17: 0.9 | K17: 1 | L17: =B17 -> Food and non-alcoholic drinks | M17: 0 | N17: =G17 -> 56.8 | O17: 0 | P17: 1 | Q17: Essential | T17: =I17/$I$11 -> 0.993902439
T18: =I18/$I$11 -> 0
A19: 1.1 | B19: Food | G19: 52.2 | H19: 1421 | I19: 4880 | J19: 1 | L19: =B19 -> Food | M19: 0 | T19: 0.9918699187
B20: 1.1.1 | C20: Bread, rice and cereals | G20: 5.2 | H20: 141 | I20: 4770 | J20: 1.2 | T20: 0.9695121951
C21: 1.1.1.1 | D21: Rice | G21: 0.4 | H21: 12 | I21: 1350 | J21: 5.4 | T21: 0.2743902439
C22: 1.1.1.2 | D22: Bread | G22: 2.4 | H22: 66 | I22: 4580 | J22: 1.2 | T22: 0.9308943089
C23: 1.1.1.3 | D23: Other breads and cereals | G23: 2.3 | H23: 63 | I23: 3990 | J23: 1.5 | T23: 0.8109756098
B24: 1.1.2 | C24: Pasta products | G24: 0.4 | H24: 11 | I24: 2000 | J24: 2.7 | T24: 0.406504065
B25: 1.1.3 | C25: Buns, cakes, biscuits etc | G25: 3.6 | H25: 98 | I25: 4380 | J25: 1.5 | T25: 0.8902439024
C26: 1.1.3.1 | D26: Buns, crispbread and biscuits | G26: 2.2 | H26: 60 | I26: 4070 | J26: 1.6 | T26: 0.8272357724
C27: 1.1.3.2 | D27: Cakes and puddings | G27: 1.4 | H27: 38 | I27: 3170 | J27: 2.1 | T27: 0.6443089431
B28: 1.1.4 | C28: Pastry (savoury) | G28: 0.8 | H28: 23 | I28: 1900 | J28: 2.6 | T28: 0.3861788618
J29: 0 | T29: 0
B30: 1.1.5 | C30: Beef (fresh, chilled or frozen) | G30: 1.9 | H30: 53 | I30: 2190 | J30: 2.7 | T30: 0.4451219512
B31: 1.1.6 | C31: Pork (fresh, chilled or frozen) | G31: 0.6 | H31: 16 | I31: 1090 | J31: 3.9 | T31: 0.2215447154
B32: 1.1.7 | C32: Lamb (fresh, chilled or frozen) | G32: 0.7 | H32: 19 | I32: 730 | J32: 6 | T32: 0.1483739837
B33: 1.1.8 | C33: Poultry (fresh, chilled or frozen) | G33: 2.1 | H33: 58 | I33: 2570 | J33: 2.1 | T33: 0.5223577236
B34: 1.1.9 | C34: Bacon and ham | G34: 0.9 | H34: 24 | I34: 2130 | J34: 2.6 | T34: 0.4329268293
B35: 1.1.10 | C35: Other meats and meat preparations | G35: 6 | H35: 164 | I35: 4330 | J35: 1.5 | T35: 0.8800813008
C36: 1.1.10.1 | D36: Sausages | G36: 0.8 | H36: 23 | I36: 2170 | J36: 2.5 | T36: 0.4410569106
C37: 1.1.10.2 | D37: Offal, pate etc | G37: 0.1 | H37: 3 | I37: 590 | J37: 5.9 | T37: 0.1199186992
C38: 1.1.10.3 | D38: Other preserved or processed meat and meat preparations | G38: 5.1 | H38: 138 | I38: 4180 | J38: 1.7 | T38: 0.8495934959
C39: 1.1.10.4 | D39: Other fresh, chilled or frozen edible meat | G39: 0 | H39: 0 | I39: 20 | J39: 22 | T39: 0.00406504065
T40: 0
B41: 1.1.11 | C41: Fish and fish products | G41: 2.6 | H41: 71 | I41: 3170 | J41: 2.2 | T41: 0.6443089431
C42: 1.1.11.1 | D42: Fish (fresh, chilled or frozen) | G42: 0.8 | H42: 22 | I42: 1230 | J42: 3.9 | T42: 0.25
C43: 1.1.11.2 | D43: Seafood, dried, smoked or salted fish | G43: 0.6 | H43: 17 | I43: 1110 | J43: 4.2 | T43: 0.2256097561
C44: 1.1.11.3 | D44: Other preserved or processed fish and seafood | G44: 1.2 | H44: 32 | I44: 2470 | J44: 2.4 | T44: 0.5020325203
T45: 0
B46: 1.1.12 | C46: Milk | G46: 2.1 | H46: 58 | I46: 4470 | J46: 1.8 | T46: 0.9085365854
C47: 1.1.12.1 | D47: Whole milk | G47: 0.4 | H47: 11 | I47: 1250 | J47: 3.8 | T47: 0.2540650407
C48: 1.1.12.2 | D48: Low fat milk | G48: 1.4 | H48: 39 | I48: 3830 | J48: 1.7 | T48: 0.7784552846
C49: 1.1.12.3 | D49: Preserved milk | G49: 0.3 | H49: 8 | I49: 330 | J49: 9.2 | T49: 0.06707317073
B50: 1.1.13 | C50: Cheese and curd | G50: 1.9 | H50: 51 | I50: 3540 | J50: 1.8 | T50: 0.7195121951
B51: 1.1.14 | C51: Eggs | G51: 0.7 | H51: 18 | I51: 2900 | J51: 1.9 | T51: 0.5894308943
B52: 1.1.15 | C52: Other milk products | G52: 2.1 | H52: 56 | I52: 3780 | J52: 1.7 | T52: 0.7682926829
C53: 1.1.15.1 | D53: Other milk products | G53: 0.9 | H53: 26 | I53: 2840 | J53: 2.2 | T53: 0.5772357724
C54: 1.1.15.2 | D54: Yoghurt | G54: 1.1 | H54: 30 | I54: 2790 | J54: 2.1 | T54: 0.5670731707
T55: 0
B56: 1.1.16 | C56: Butter | G56: 0.5 | H56: 13 | I56: 1630 | J56: 3.1 | T56: 0.331300813
B57: 1.1.17 | C57: Margarine, other vegetable fats and peanut butter | G57: 0.4 | H57: 12 | I57: 1980 | J57: 2.3 | T57: 0.4024390244
B58: 1.1.18 | C58: Cooking oils and fats | G58: 0.4 | H58: 10 | I58: 1140 | J58: 13.9 | T58: 0.2317073171
C59: 1.1.18.1 | D59: Olive oil | G59: 0.1 | H59: 4 | I59: 430 | J59: 6.2 | T59: 0.08739837398
C60: 1.1.18.2 | D60: Edible oils and other edible animal fats | G60: 0.2 | H60: 6 | I60: 810 | J60: 21 | T60: 0.1646341463
T61: 0
B62: 1.1.19 | C62: Fresh fruit | G62: 3.6 | H62: 98 | I62: 4150 | J62: 1.7 | T62: 0.843495935
C63: 1.1.19.1 | D63: Citrus fruits (fresh) | G63: 0.5 | H63: 15 | I63: 2240 | J63: 2.7 | T63: 0.4552845528
C64: 1.1.19.2 | D64: Bananas (fresh) | G64: 0.5 | H64: 13 | I64: 3030 | J64: 1.9 | T64: 0.6158536585
C65: 1.1.19.3 | D65: Apples (fresh) | G65: 0.6 | H65: 15 | I65: 2250 | J65: 2.3 | T65: 0.4573170732
C66: 1.1.19.4 | D66: Pears (fresh) | G66: 0.1 | H66: 4 | I66: 820 | J66: 4.1 | T66: 0.1666666667
C67: 1.1.19.5 | D67: Stone fruits (fresh) | G67: 0.5 | H67: 15 | I67: 1680 | J67: 3.7 | T67: 0.3414634146
C68: 1.1.19.6 | D68: Berries (fresh) | G68: 1.4 | H68: 37 | I68: 2610 | J68: 2.2 | T68: 0.5304878049
B69: 1.1.20 | C69: Other fresh, chilled or frozen fruits | G69: 0.4 | H69: 11 | I69: 1440 | J69: 3.4 | T69: 0.2926829268
B70: 1.1.21 | C70: Dried fruit and nuts | G70: 0.7 | H70: 20 | I70: 1770 | J70: 3.3 | T70: 0.3597560976
B71: 1.1.22 | C71: Preserved fruit and fruit based products | G71: 0.2 | H71: 4 | I71: 780 | J71: 4.9 | T71: 0.1585365854
T72: 0
B73: 1.1.23 | C73: Fresh vegetables | G73: 4.1 | H73: 111 | I73: 4450 | J73: 1.6 | T73: 0.9044715447
C74: 1.1.23.1 | D74: Leaf and stem vegetables (fresh or chilled) | G74: 0.9 | H74: 25 | I74: 3170 | J74: 2.3 | T74: 0.6443089431
C75: 1.1.23.2 | D75: Cabbages (fresh or chilled) | G75: 0.4 | H75: 10 | I75: 2250 | J75: 2.4 | T75: 0.4573170732
C76: 1.1.23.3 | D76: Vegetables grown for their fruit (fresh, chilled or frozen) | G76: 1.4 | H76: 38 | I76: 3720 | J76: 1.7 | T76: 0.756097561
C77: 1.1.23.4 | D77: Root crops, non-starchy bulbs and mushrooms (fresh, chilled or frozen) | G77: 1.4 | H77: 39 | I77: 3980 | J77: 2 | T77: 0.8089430894
T78: 0
T79: 0
A80: Note: The commodity and service categories are not comparable with those in publications before 2001-02. | T80: 0
A81: The numbering is sequential, it does not use actual COICOP codes. | T81: 0
A82: Please see background notes for symbols and conventions used in this report. | T82: =I82/$I$11 -> 0
T83: 0
T84: 0
T85: 0
A86: Table A1 | T86: 0
A87: Components of household expenditure (cont) | T87: 0
A88: UK, financial year ending 2016 | T88: 0
T89: 0
T90: 0
G91: Average weekly | H91: Total | I91: Recording | J91: Percentage
G92: expenditure | H92: weekly | I92: house- | J92: standard
G93: all house- | H93: expenditure | I93: holds | J93: error (full
G94: holds (£) | H94: (£ million) | I94: in sample | J94: method)
T95: 0
T96: 0
A97: Commodity or service | T97: 0
T98: 0
T99: 0
A100: 1 | B100: Food and non-alcoholic drinks (continued) | T100: 0
T101: 0
B102: 1.1.24 | C102: Dried vegetables | G102: 0.1 | H102: 1 | I102: 250 | J102: 9.1 | T102: 0.05081300813
B103: 1.1.25 | C103: Other preserved or processed vegetables | G103: 1.4 | H103: 39 | I103: 3570 | J103: 2 | T103: 0.7256097561
B104: 1.1.26 | C104: Potatoes | G104: 0.8 | H104: 22 | I104: 3060 | J104: 1.8 | T104: 0.6219512195
B105: 1.1.27 | C105: Other tubers and products of tuber vegetables | G105: 1.6 | H105: 43 | I105: 3530 | J105: 1.6 | T105: 0.7174796748
T106: 0
B107: 1.1.28 | C107: Sugar and sugar products | G107: 0.4 | H107: 10 | I107: 1690 | J107: 3.2 | T107: 0.343495935
C108: 1.1.28.1 | D108: Sugar | G108: 0.2 | H108: 6 | I108: 1330 | J108: 3.8 | T108: 0.2703252033
C109: 1.1.28.2 | D109: Other sugar products | G109: 0.2 | H109: 4 | I109: 600 | J109: 5.2 | T109: 0.1219512195
B110: 1.1.29 | C110: Jams, marmalades | G110: 0.3 | H110: 8 | I110: 1370 | J110: 4.7 | T110: 0.2784552846
B111: 1.1.30 | C111: Chocolate | G111: 1.9 | H111: 53 | I111: 3170 | J111: 3.1 | T111: 0.6443089431
B112: 1.1.31 | C112: Confectionery products | G112: 0.7 | H112: 20 | I112: 2350 | J112: 2.7 | T112: 0.4776422764
B113: 1.1.32 | C113: Edible ices and ice cream | G113: 0.6 | H113: 16 | I113: 1670 | J113: 2.9 | T113: 0.3394308943
T114: 0
B115: 1.1.33 | C115: Other food products | G115: 2.5 | H115: 68 | I115: 4040 | J115: 1.9 | T115: 0.8211382114
C116: 1.1.33.1 | D116: Sauces, condiments | G116: 1.2 | H116: 33 | I116: 3280 | J116: 1.8 | T116: 0.6666666667
C117: 1.1.33.2 | D117: Baker's yeast, dessert preparations, soups | G117: 1 | H117: 28 | I117: 2610 | J117: 3.7 | T117: 0.5304878049
C118: 1.1.33.3 | D118: Salt, spices, culinary herbs and other food products | G118: 0.3 | H118: 7 | I118: 1130 | J118: 4.9 | T118: 0.2296747967
T119: 0
A120: 1.2 | B120: Non-alcoholic drinks | G120: 4.6 | H120: 126 | I120: 4380 | J120: 1.5 | L120: =B120 -> Non-alcoholic drinks | M120: 0 | T120: 0.8902439024
B121: 1.2.1 | C121: Coffee | G121: 0.9 | H121: 24 | I121: 1630 | J121: 3.5 | T121: 0.331300813
B122: 1.2.2 | C122: Tea | G122: 0.5 | H122: 13 | I122: 1520 | J122: 3.3 | T122: 0.3089430894
B123: 1.2.3 | C123: Cocoa and powdered chocolate | G123: 0.1 | H123: 3 | I123: 440 | J123: 5.7 | T123: 0.08943089431
B124: 1.2.4 | C124: Fruit and vegetable juices | G124: 1 | H124: 28 | I124: 2610 | J124: 2.2 | T124: 0.5304878049
B125: 1.2.5 | C125: Mineral or spring waters | G125: 0.3 | H125: 9 | I125: 1320 | J125: 4 | T125: 0.2682926829
B126: 1.2.6 | C126: Soft drinks (inc. fizzy and ready to drink fruit drinks) | G126: 1.8 | H126: 50 | I126: 3090 | J126: 2.2 | T126: 0.6280487805
T127: 0
T128: 0
A129: 2 | B129: Alcoholic drink, tobacco and narcotics | G129: 11.4 | H129: 309 | I129: 3010 | J129: 2.3 | K129: 2 | L129: =B129 -> Alcoholic drink, tobacco and narcotics | M129: =SUM(M131:M151) -> 6.468 | N129: =G129 -> 11.4 | O129: =(M129/N129) -> 0.5673684211 | P129: 0.4 | Q129: Basic | R129: Wouldn’t consider 100% essential, only 60% of households recorded spending on alcohol and 16% on tobacco and narcotics so have used this as basis for quantification to get 43% and then rounded down to 40% as expectation would be to reduce if in financial hardship | T129: 0.6117886179
T130: 0
A131: 2.1 | B131: Alcoholic drinks | G131: 7.8 | H131: 211 | I131: 2660 | J131: 2.4 | L131: =B131 -> Alcoholic drinks | M131: =G131*46% -> 3.588 | R131: used % of households recording this expenditure as proxy for calculation (54%) | T131: 0.5406504065
B132: 2.1.1 | C132: Spirits and liqueurs (brought home) | G132: 1.7 | H132: 47 | I132: 760 | J132: 4.7 | T132: 0.1544715447
T133: 0
B134: 2.1.2 | C134: Wines, fortified wines (brought home) | G134: 4 | H134: 108 | I134: 1800 | J134: 3.4 | T134: 0.3658536585
C135: 2.1.2.1 | D135: Wine from grape or other fruit (brought home) | G135: 3.3 | H135: 91 | I135: 1630 | J135: 3.7 | T135: 0.331300813
C136: 2.1.2.2 | D136: Fortified wine (brought home) | G136: 0.2 | H136: 4 | I136: 140 | J136: 12.6 | T136: 0.02845528455
C137: 2.1.2.3 | D137: Champagne and sparkling wines (brought home) | G137: 0.5 | H137: 13 | I137: 340 | J137: 7.7 | T137: 0.06910569106
T138: 0
B139: 2.1.3 | C139: Beer, lager, ciders and perry (brought home) | G139: 2 | H139: 55 | I139: 1480 | J139: 3.5 | T139: 0.3008130081
C140: 2.1.3.1 | D140: Beer and lager (brought home) | G140: 1.7 | H140: 45 | I140: 1220 | J140: 3.9 | T140: 0.2479674797
C141: 2.1.3.2 | D141: Ciders and perry (brought home) | G141: 0.4 | H141: 10 | I141: 470 | J141: 7 | T141: 0.09552845528
T142: 0
B143: 2.1.4 | C143: Alcopops (brought home) | G143: 0 | H143: 1 | I143: 80 | J143: 17.9 | T143: 0.0162601626
T144: 0
A145: 2.2 | B145: Tobacco and narcotics1 | G145: 3.6 | H145: 98 | I145: 790 | J145: 5.1 | L145: =B145 -> Tobacco and narcotics1 | M145: =G145*80% -> 2.88 | R145: used % of households recording this expenditure as proxy for calculation (16%) | T145: 0.1605691057
B146: 2.2.1 | C146: Cigarettes | G146: 2.8 | H146: 77 | I146: 640 | J146: 5.9 | T146: =I146/$I$11 -> 0.1300813008
T147: 0
B148: 2.2.2 | C148: Cigars, other tobacco products and narcotics | G148: 0.8 | H148: 21 | I148: 310 | J148: 8.2 | T148: 0.06300813008
C149: 2.2.2.1 | D149: Cigars | G149: 0 | H149: 1 | I149: 10 | J149: 36.1 | T149: 0.002032520325
C150: 2.2.2.2 | D150: Other tobacco | G150: 0.7 | H150: 20 | I150: 300 | J150: 8.1 | T150: 0.06097560976
C151: 2.2.2.3 | D151: Narcotics | G151: - | H151: - | I151: - | J151: -
T152: 0
T153: 0
A154: 3 | B154: Clothing and footwear | G154: 23.5 | H154: 638 | I154: 3220 | J154: 2.8 | K154: 3 | L154: =B154 -> Clothing and footwear | M154: =SUM(M156:M206) -> 11.75 | N154: =G154 -> 23.5 | O154: =(M154/N154) -> 0.5 | P154: 0.5 | Q154: Basic | R154: Only consider 50% as essential for basic quality of life as a) not all the categories would apply and b) in times of financial hardship it is likely thay this could be reduced by 50% | T154: 0.6544715447
T155: 0
A156: 3.1 | B156: Clothing | G156: 18.9 | H156: 513 | I156: 3040 | J156: 3.1 | L156: =B156 -> Clothing | M156: =G156*50% -> 9.45 | T156: 0.6178861789
B157: 3.1.1 | C157: Men's outer garments | G157: 4.8 | H157: 131 | I157: 960 | J157: 5.2 | T157: 0.1951219512
B158: 3.1.2 | C158: Men's under garments | G158: 0.6 | H158: 16 | I158: 420 | J158: 7.4 | T158: 0.08536585366
B159: 3.1.3 | C159: Women's outer garments | G159: 8.3 | H159: 226 | I159: 1770 | J159: 4.6 | T159: 0.3597560976
B160: 3.1.4 | C160: Women's under garments | G160: 1.1 | H160: 30 | I160: 820 | J160: 4.8 | T160: 0.1666666667
B161: 3.1.5 | C161: Boys' outer garments (5-15) | G161: 0.9 | H161: 25 | I161: 370 | J161: 8.3 | T161: 0.07520325203
B162: 3.1.6 | C162: Girls' outer garments (5-15) | G162: 1 | H162: 26 | I162: 440 | J162: 7 | T162: 0.08943089431
B163: 3.1.7 | C163: Infants' outer garments (under 5) | G163: 0.6 | H163: 17 | I163: 340 | J163: 7.8 | T163: 0.06910569106
B164: 3.1.8 | C164: Children's under garments (under 16) | G164: 0.4 | H164: 11 | I164: 430 | J164: 6.7 | T164: 0.08739837398
T165: 0
T166: 0
A167: Note: The commodity and service categories are not comparable with those in publications before 2001-02. | T167: 0
A168: The numbering is sequential, it does not use actual COICOP codes. | T168: 0
A169: Please see background notes for symbols and conventions used in this report. | T169: 0
A170: 1 Changes were made to the recording of e-cigarettes in 2015. | T170: 0
T171: 0
T172: 0
T173: 0
T174: 0
A175: Table A1 | T175: 0
A176: Components of household expenditure (cont) | T176: 0
A177: UK, financial year ending 2016 | T177: 0
T178: 0
T179: 0
G180: Average weekly | H180: Total | I180: Recording | J180: Percentage
G181: expenditure | H181: weekly | I181: house- | J181: standard
G182: all house- | H182: expenditure | I182: holds | J182: error (full
G183: holds (£) | H183: (£ million) | I183: in sample | J183: method)
T184: 0
T185: 0
A186: Commodity or service | T186: 0
T187: 0
A188: 3 | B188: Clothing and footwear (continued) | T188: 0
T189: 0
B190: 3.1.9 | C190: Accessories | G190: 0.7 | H190: 19 | I190: 650 | J190: 7.2 | T190: 0.1321138211
C191: 3.1.9.1 | D191: Men's accessories | G191: 0.2 | H191: 6 | I191: 230 | J191: 9.1 | T191: 0.04674796748
C192: 3.1.9.2 | D192: Women's accessories | G192: 0.3 | H192: 9 | I192: 320 | J192: 11.9 | T192: 0.06504065041
C193: 3.1.9.3 | D193: Children's accessories | G193: 0.1 | H193: 3 | I193: 150 | J193: 13 | T193: 0.03048780488
C194: 3.1.9.4 | D194: Protective head gear (crash helmets) | G194: 0 | H194: 1 | I194: 10 | J194: 32.1 | T194: 0.002032520325
T195: 0
B196: 3.1.10 | C196: Haberdashery, clothing materials and clothing hire | G196: 0.2 | H196: 5 | I196: 230 | J196: 11.9 | T196: 0.04674796748
T197: 0
B198: 3.1.11 | C198: Dry cleaners, laundry and dyeing | G198: 0.2 | H198: 6 | I198: 130 | J198: 11.5 | T198: 0.02642276423
C199: 3.1.11.1 | D199: Dry cleaners and dyeing | G199: 0.2 | H199: 5 | I199: 100 | J199: 13.1 | T199: 0.02032520325
C200: 3.1.11.2 | D200: Laundry, launderettes | G200: 0 | H200: 1 | I200: 30 | J200: 19.1 | T200: 0.006097560976
T201: 0
A202: 3.2 | B202: Footwear | G202: 4.6 | H202: 125 | I202: 1290 | J202: 3.8 | L202: =B202 -> Footwear | M202: =G202*50% -> 2.3 | T202: 0.262195122
B203: 3.2.1 | C203: Footwear for men | G203: 1.6 | H203: 43 | I203: 380 | J203: 6.3 | T203: 0.07723577236
B204: 3.2.2 | C204: Footwear for women | G204: 2.2 | H204: 59 | I204: 740 | J204: 5.2 | T204: 0.1504065041
B205: 3.2.3 | C205: Footwear for children (5 to 15 years) and infants (under 5) | G205: 0.8 | H205: 21 | I205: 350 | J205: 7.8 | T205: 0.07113821138
... 663 more rows

Sheet Version control (hidden)
A1: Affordability model - Version control
A2: Version no | B2: Date | C2: Changes | D2: Actioned by | E2: Notes / Authorised by
A4: 1 | B4: 26042014 | C4: Initial model
A5: 2 | B5: 30062014 | C5: Amended for minor formal error in ONS calculation | E5: No risk as not used for underwriting
A6: 3 | B6: 01082014 | C6: Amended to put in 4.5/4 times income caps and also ensures set to 2+ if more than one income | E6: Warning message(s) now shows
A7: 2.5 | B7: 08122015 | C7: ONS statistics updated to latest version
C8: Model changed to show mortgage required rather than deposit
C9: 4.5/4 times income caps refined to take account of committed expenditure etc
C10: Warning if interest only loan exceeds 60%
C11: 4th column added for potential joint guarantor
A12: 2.6 | C12: Mortgage scheme LTV calculation amended following v2.5 amendment
A13: 2.7 | B13: 2016-12-01 | C13: Max term extended to 35 years, VBS mortgage products updated, ONS table updated, over 4 times income warning removed, Income multiple calculated
A14: 2.8 | B14: 2017-05-01 | C14: Revised input sheet to allow notes, prepared by and date for users. Also make income excess etc clearer for underwriters. Updated ONS table (2016)
A15: New Risk Vs0.1 - 0.6 | B15: 2018-02-01 | C15: Introduced field to capture Credit Score for use in future analysis Income - Removed the Guaranteed O/T/ Bonus income category as not sure that these are ever guaranteed Committed Expenditure - added in category fotr non self financing mortgages/rent - added in a total Credit Card Balance category - (to use the higher of 3% total balances or customer repayment amount) Regular Expenditure - combined categories and aligned to ONS data categories, assessment carried out to apportion the amounts considerd to be basic/ essential and the higher of cut declared or ONS is then used in the calculation - with an override available where the customer declared amount is proven to be lower (if this is required). -Basic Recreation category removed as this is now captured within the surplus income amount (along with other ad hoc ONS categories which do not fit well elsewhere). Calculation now uses the higher of the cust declared or ONS calculated to determine the mortgage amount that we would lend. - Updated Income Multiples to align to latest version of 4.5x - Updated to SVR +3% stress rate and - updated SVR rate to 4.95 in line with latest versuion of calculator in use (V2.11) | D15: Sam B
A16: v0.7 | B16: 2018-04-01 | C16: Following walkthrough with Andrew - amended formular corrections and removed calculations no longer in use | D16: Sam B
A17: V0.8 | B17: 2018-04-01 | C17: Added in a calculator to work out the stressed payments for any non self financing mortgages and to calculate the net Basic and Additional incomes. | D17: Sam B
A18: v0.9 | B18: 2018-04-24 | C18: Added in u/w validation worksheets and updated income calculator following walkthrough with Jessica T | D18: Sam B
A19: v0.10 | B19: 2018-05-04 | C19: Updates to u/w sheets and correction of decision ( where loan amount =max allowed the decision was declining - have set so that decision is based on loan amount requested being less than or = to which has corrected the error). Have also removed the cell notes on the override as they get in the way. Also updated table of proofs - no longer need p60 as standard only if basic fluctuates or add income used. Aslo YTD must be greater than 3months worth of salary not at least 3months | D19: Sam B
A20: v0.11 | B20: 2018-05-15 | C20: Updated decision from Accept, Decline, Refer to Pass, Fail and Marginal Pass (was refer), Added in I/O retirement category which allows for assessment to be made purely on I/O given the repayyment vehicle is sale of property, also removed other category and included I/O costs in other unsecure commitments | D20: Sam B
A21: v0.12 | B21: June | C21: Increase amount of non std income used to 50% from current 30% Amended split gross income input cell into gross basic and gross additional - to apply the 50% rule to gross Included an approximation calculation for the split of Net salary into basic and other based on the proportions in gross Where I/O amended the calculation of documentary evidencing levels to apply to the i/o affordability removed the 'refer' on i/o calculations which do not pass affordability for C&I Amended proof docs for S/E to 2 tax retn and overviews plus 1 year accts - in line with Core Criteria | D21: Sam B | E21: Sent to Andrew Entwisle and Finance to review
A22: v1.0 | B22: 2018-07-30 | C22: Updated to Version 1.0 - as calculations are in line with Core Criteria version 1 . Have increase mortgage term to 40 years and updated the Mort repay tab ( by pulling the formulars down). Updated ONS to the 2017/18 Y/E dat. formatted the data entry headings / formatting inline with feedback to create a broker view and an internal view | D22: Sam B | E22: AE Approved
A23: v1.1 | B23: 2018-08-17 | C23: corrections made to link net additional income to 50% rule from 30% hard coded, updated I/O max loan to cap at 4.49% in line with C&I and amended positioning of customer signature boxes and removed input for 2nd household inorder to encourage 2 separate calculators - replaced UW sheets 2 and 4 with ones replaced from Jess to aid u/w assessment process and data capture. amended refernce to ONS to household composion and added in a no of applicants field, removed max term warning from RIO mortgages | D23: Sam B
A24: v2.0 | B24: 2018-04-17 | C24: Updated to Version 2.0 following approval | D24: Sam B | E24: AE Approved
A25: v2.1 | B25: 2018-04-21 | C25: error found in other (Net) income tab have corrected, and Broker view to have a separate print area so the full calculator prints off, also added in a gross other income field to capture benefits / investment income. | D25: Sam B
A26: v3.0 | B26: 2018-04-21 | C26: Updated to V3.0 following approval | D26: Sam B | E26: AE Approved
A27: V3.1 | B27: 2018-09-07 | C27: Uodated for SVR change | D27: Andrew E
A28: V3.2 | B28: 2018-09-10 | C28: Correction of calculation formula error resulting from the SVR rate change (caused by mismatch in number formats) Alignment of the Adviser and U/W calculator tabs and Version control | D28: Sam B | E28: AJE Approved that the changes to the SVR have been actioned correctly in the model
A29: V3.3 | B29: 2018-09-10 | C29: Update to the links in the Underwriter assessment tabs | D29: Jessica T
A30: v4.0 | B30: 2018-09-11 | C30: Updated to V4.0 following approval | D30: Sam B
A31: v5.0 | B31: 2018-11-14 | C31: corrected error on cells f-j 22 (Total Gross income calculation) & updated standard wording of customer declaration to include reference to reducing spending if required.- Approved AE | D31: Sam B | E31: AE Approved
A32: v6.0 | B32: 2018-12-04 | C32: Updated the Max LTI from 4.49% to 5% as per agreement at Nov Board (changed on VBS criteria tab - income multiple cap for max loan amount) | D32: Sam B | E32: change in line with Board approval
A33: 6.1 | B33: 2018-12-31 | C33: Updated the table to include the evidence requirements for Retired applicnts and added a refer decisiojn code for the high LTI cases requiring underwriter approval in line with policy where loan req is >90% of max loan allowed, amended the calculation for Loan requested as % of max loan affordable to exclude the cap from the max loan affordable | D33: Sam B
A34: 7 | B34: 2019-01-08 | C34: updated to V7.0 followoing AE Approval | D34: Sam B | E34: AE Approved
A35: 7.1 | B35: 2019-04-16 | C35: Updated the ONS figures from table A23 to 2018 year end data | D35: Sam B, KM tested
A36: 7.2 | B36: 2019-04-17 | C36: reduced stress rate from SVR +3% to SVR +2% in line with the Board paper which was agreed at March Board,also removed % from the SVR and Stress rate (along with associated formula) as the mort repay table was not recognising, and removed autopopulation from the date field. | D36: Sam B, KM Tested
A37: 7.3 | B37: 2019-04-23 | C37: Identified error in formula for mort repay table for any loans over 30 years. - impacted by the removal of % on rates, up to yr30 were hardcoded numbers - have amended back to formular consistent with the 31+ years | D37: Sam B, KM Tested
A38: v8.0 | B38: 2019-04-24 | C38: Testing completed, updated documentatry evidence table on calculator to align to core criteria (to 2 months payslips- previously 3, for Level 3) - SB Approved version no. updated and publishing requested | D38: Sam B
A39: V8.1 | B39: 2019-04-24 | C39: removal of the >4.5x LTI on i/o mortgages as no discretion is permitted (outside of Board) and this could potentially be misleading | D39: Sam B, KM Tested
A40: V9.0 | B40: 2019-04-24 | C40: Testing completed, no concerns - SB approved version no. updated and publishing requested | D40: Sam B
A41: V10.0 | B41: 2019-09-19 | C41: Rebranded ready for external brand launch plus added a warning message that the funcionality will be impaired if used on pre- 2010 versions (following feedback from Broker) | D41: Sam B | E41: Colour / Font changes only no approval necessary
C42: Version control now tracked through Creditco updates

Sheet Admin (hidden)
A1: UW | B1: General1 | C1: General2 | D1: Approval Level | E1: Affordability Level | F1: Approver | G1: Repayment Type | H1: Deposit | I1: Repayment Type | J1: Loan Purpose
A2: Karen | B2: Yes | C2: Yes | D2: Level 1 | E2: Level 1 | F2: N/A - by Underwriter | G2: Capital & Interest | H2: Equity in property | I2: Capital & Repayment | J2: Purchase
A3: Claire | B3: No | C3: No | D3: Level 2 | E3: Level 2 | F3: Barrie | G3: Interest-only | H3: Savings | I3: Interest-Only | J3: Like for like Remo
A4: Louise | C4: N/A | D4: Level 3 | E4: Level 3 | F4: Ian | G4: Part & Part | H4: HTB ISA | I4: Part & Part | J4: Remo + Cap raising
A5: Dan | D5: 2 x Level 3 | E5: Level 4 | F5: Steve | H5: Gifted Deposit | J5: Porting
A6: Barrie | D6: Creditco | F6: Barrie/Ian | H6: Combination (see notes) | J6: Porting + F/A
F7: Barrie/Steve | H7: Other (see notes) | J7: Further Advance
F8: Ian/Steve
F9: Creditco
